Capital or Revenue,Directorate,SERCOP High Level Category,SERCOP Detailed Category,Transaction Number,Date,Service Area,Expenses Type,Amount,Supplier Name
Revenue,Adult Services,Adult Social Care,Central Codes (to be reallocated),5105622152,09.10.2019,Gouldings Resource Centre,Professional Services,104.00,A & M APPLIANCE CARE
Revenue,Adult Services,Adult Social Care,Learning Disab Supp (to be reallocated),5105623140,18.10.2019,Plean Dene,Consumable Cleaning Materials,80.00,A & M APPLIANCE CARE
Revenue,Adult Services,Adult Social Care,Central Codes (to be reallocated),5105622150,09.10.2019,Adelaide Resource Centre,Consumable Cleaning Materials,160.00,A & M APPLIANCE CARE
Revenue,Adult Services,Adult Social Care,Central Codes (to be reallocated),5105621039,16.10.2019,Adelaide Resource Centre,Consumable Cleaning Materials,135.00,A & M APPLIANCE CARE
Revenue,Neighbourhoods,Environmental & Regulatory Services,"Cemetery, Cremation & Mortuary Services",5105623982,30.10.2019,Cemeteries-Northwood,Grounds Maintenance,"3,150.00",A GUSTAR T/A IVY TREE CARE
Revenue,Adult Services,Adult Social Care,Assistive Equipment & Technology,5105622678,18.10.2019,Community Equipment Store,Consultants Fees,300.00,REDACTED PERSONAL DATA
Revenue,Adult Services,Adult Social Care,Assistive Equipment & Technology,5105622745,18.10.2019,Community Equipment Store,Consultants Fees,600.00,REDACTED PERSONAL DATA
Revenue,Adult Services,Adult Social Care,Assistive Equipment & Technology,5105622746,16.10.2019,Community Equipment Store,General Materials,"1,208.33",REDACTED PERSONAL DATA
Revenue,Childrens Services,Children's & Education Services,Other Education and Community Budget,5105623078,18.10.2019,Home to School SEN Transport (LA),Taxis - Contract Hire,589.00,AMAR EXCLUSIVES
Revenue,Adult Services,Adult Social Care,Assistive Equipment & Technology,5105623604,28.10.2019,Wightcare,Vehicle Maintenance Costs,90.00,ISLANDWIDE WINDSCREENS
Revenue,Resources,Children's & Education Services,Other Education and Community Budget,5105623041,18.10.2019,Workforce Development Schools,Training,200.00,ANOTHER WAY AROUND
Revenue,Neighbourhoods,Environmental & Regulatory Services,Regulatory Services,5105624261,30.10.2019,Environmental Health - Environmental Regulation & Protection,Payment to Private Contractors,509.10,BUCKINGHAM FUTURES LTD
Revenue,Neighbourhoods,Environmental & Regulatory Services,Regulatory Services,5105623612,28.10.2019,Environmental Health - Environmental Regulation & Protection,Payment to Private Contractors,509.10,BUCKINGHAM FUTURES LTD
Revenue,Fire & Rescue,Fire & Rescue Services,Fire fighting and Rescue Operations,5105618955,02.10.2019,Business Support  - Fire,Property Services - Day to day Maintenance,"2,945.00",C & J GROUND MAINTENANCE
Revenue,Regeneration,Central Services,Support Services,5105622639,16.10.2019,"Enterprise House, Newport",Property Services - Day to day Maintenance,190.00,C & J GROUND MAINTENANCE
Revenue,Regeneration,Housing Services,Other Council Property,5105622725,16.10.2019,Shared Ownership,Grounds Maintenance,150.00,C & J GROUND MAINTENANCE
Capital,Place,Capital,Capital,5105623813,30.10.2019,Parks and Gardens Capital,Payment to Contractors - Capital,"1,450.00",C & J GROUND MAINTENANCE
Capital,Place,Capital,Capital,5105623813,30.10.2019,Parks and Gardens Capital,Payment to Contractors - Capital,930.00,C & J GROUND MAINTENANCE
Revenue,Regeneration,Central Services,Support Services,5105622726,16.10.2019,"24 Daish Way, Newport (WISE)",Grounds Maintenance,110.00,C & J GROUND MAINTENANCE
Revenue,Regeneration,Planning services,Business Support,5105622641,16.10.2019,Dodnor Industrial Estate,Grounds Maintenance,150.00,C & J GROUND MAINTENANCE
Revenue,Regeneration,Planning services,Business Support,5105622640,16.10.2019,Somerton Industrial Park,Grounds Maintenance,200.00,C & J GROUND MAINTENANCE
Revenue,Childrens Services,Children's & Education Services,Other Education and Community Budget,5105622221,18.10.2019,Home to College Post 16 Transport,Taxis - Contract Hire,368.00,MICK'S TAXI
Revenue,Childrens Services,Children's & Education Services,Other Education and Community Budget,5105622226,18.10.2019,Home to School Mainstream Transport,Taxis - Contract Hire,836.00,MICK'S TAXI
Revenue,Childrens Services,Children's & Education Services,Children Looked After,5105623761,28.10.2019,Support for Looked After Children,Transport of Clients,700.00,CAROLS TAXIS
Revenue,Childrens Services,Children's & Education Services,Other Education and Community Budget,5105622689,16.10.2019,Home to School SEN Transport (LA),Taxis - Contract Hire,"1,045.00",CLARES CABS
Revenue,Resources,Central Services,Support Services,5105622117,04.10.2019,Litigation Costs,Legal Fees - Other Parties,600.00,COLLEGE CHAMBERS BARRISTERS
Revenue,Resources,Central Services,Support Services,5105624221,30.10.2019,Litigation Costs,Legal Fees - Other Parties,"1,250.00",COLLEGE CHAMBERS BARRISTERS
Revenue,Resources,Central Services,Support Services,5105622710,16.10.2019,Litigation Costs,Legal Fees - Other Parties,400.00,COLLEGE CHAMBERS BARRISTERS
Revenue,Resources,Central Services,Support Services,5105623615,28.10.2019,Litigation Costs,Legal Fees - Other Parties,400.00,COLLEGE CHAMBERS BARRISTERS
Revenue,Resources,Central Services,Support Services,5105622705,16.10.2019,Litigation Costs,Legal Fees - Other Parties,400.00,COLLEGE CHAMBERS BARRISTERS
Revenue,Neighbourhoods,Cultural and Related Services,Culture and Heritage,5105622721,16.10.2019,Dinosaur Isle Museum (Sandown Geology),Travel Expenses,195.00,REDACTED PERSONAL DATA
Revenue,Childrens Services,Children's & Education Services,Management & Support Services,5105618689,23.10.2019,Special Discretionary Grants,Charges from Independent Providers,"3,080.00",REDACTED PERSONAL DATA
Revenue,Childrens Services,Children's & Education Services,Safeguarding Children/Young Peoples Svs,5105623742,28.10.2019,Court Work & Consultancy Services,Legal Fees - Other Parties,267.61,GARY TAYLOR ASSOCIATES LIMITED
Revenue,Childrens Services,Children's & Education Services,Other Education and Community Budget,5105623778,28.10.2019,Home to School SEN Transport (LA),Taxis - Contract Hire,600.00,HAYLES TAXIS
Revenue,Childrens Services,Children's & Education Services,Other Education and Community Budget,5105622407,09.10.2019,Home to College Post 16 Transport,Taxis - Contract Hire,200.00,HAYLES TAXIS
Revenue,Childrens Services,Children's & Education Services,Other Education and Community Budget,5105622403,18.10.2019,Home to College Post 16 Transport,Taxis - Contract Hire,400.00,HAYLES TAXIS
Capital,Place,Capital,Capital,5105622309,16.10.2019,Bus Infrastructure,Payment to Contractors - Capital,297.50,ISLAND HIGHWAY & TRANSPORT
Revenue,Adult Services,Adult Social Care,Learning Disab Supp (to be reallocated),5105622153,16.10.2019,Plean Dene,Cleaning Contracts,85.00,ISLANDWIDE WINDOW CLEANING
Revenue,Adult Services,Adult Social Care,Learning Disab Supp (to be reallocated),5105622153,16.10.2019,Saxonbury,Cleaning Contracts,32.00,ISLANDWIDE WINDOW CLEANING
Revenue,Adult Services,Adult Social Care,Social Support - Support for Carer,5105622153,16.10.2019,Westminster House,Cleaning Contracts,60.00,ISLANDWIDE WINDOW CLEANING
Revenue,Adult Services,Adult Social Care,Learning Disab Supp (to be reallocated),5105622153,16.10.2019,31 Carter Avenue,Cleaning Contracts,27.00,ISLANDWIDE WINDOW CLEANING
Revenue,Fire & Rescue,Fire & Rescue Services,Fire fighting and Rescue Operations,5105622800,23.10.2019,Fire Control,Computer Software Licencing,200.00,REDACTED PERSONAL DATA
Revenue,Resources,Central Services,Support Services,5105622272,11.10.2019,ICT Contracts,Computer Maintenance,300.00,REDACTED PERSONAL DATA
Revenue,Resources,Central Services,Support Services,5105620634,10.10.2019,Litigation Costs,Legal Fees - Other Parties,450.00,"COLLEGE CHAMBERS, BARRISTERS"
Revenue,Resources,Central Services,Support Services,5105621249,10.10.2019,Litigation Costs,Legal Fees - Other Parties,-540.00,"COLLEGE CHAMBERS, BARRISTERS"
Revenue,Childrens Services,Children's & Education Services,Special Schools & Alternative Provision,5105621566,16.10.2019,Island Learning Centre,Bought in Prof Services - Curriculum (Schools),150.00,JOHN CATTLE'S SKATE CLUB
Revenue,Childrens Services,Children's & Education Services,Special Schools & Alternative Provision,5105621566,16.10.2019,Island Learning Centre,Bought in Prof Services - Curriculum (Schools),150.00,JOHN CATTLE'S SKATE CLUB
Revenue,Childrens Services,Children's & Education Services,Special Schools & Alternative Provision,5105622685,23.10.2019,Island Learning Centre,Bought in Prof Services - Curriculum (Schools),200.00,JOHN CATTLE'S SKATE CLUB
Revenue,Resources,Central Services,Support Services,5105622613,11.10.2019,Litigation Costs,Legal Fees - Other Parties,"1,725.00",REDACTED PERSONAL DATA
Capital,Childrens Services,Capital,Capital,5105622217,16.10.2019,Administration and Inspection Schemes,Payment to Contractors - Capital,300.00,LINSCH CONSULTANTS
Revenue,Adult Services,Adult Social Care,Social Care Activities,5105621800,16.10.2019,Safeguarding Adults,Consultants Fees,"3,600.00",MAKING CONNECTIONS (IW) LTD
Revenue,Childrens Services,Adult Social Care,Social Care Activities,5105621168,04.10.2019,Adult Social Care - Workforce Development,Training,810.00,MAKING CONNECTIONS (IW) LTD
Revenue,Childrens Services,Children's & Education Services,Other Education and Community Budget,5105622366,16.10.2019,Home to School SEN Transport (LA),Taxis - Contract Hire,927.00,MR TAXIS
Revenue,Childrens Services,Children's & Education Services,Children Looked After,5105622034,04.10.2019,Adoption Support Fund,Charges from Independent Providers,458.33,REDACTED PERSONAL DATA
Revenue,Childrens Services,Children's & Education Services,Children Looked After,5105622034,04.10.2019,Adoption Support Fund,Charges from Independent Providers,458.33,REDACTED PERSONAL DATA
Revenue,Childrens Services,Children's & Education Services,Children Looked After,5105622034,04.10.2019,Adoption Support Fund,Charges from Independent Providers,458.33,REDACTED PERSONAL DATA
Revenue,Neighbourhoods,Cultural and Related Services,Open Spaces,5105623025,18.10.2019,Rights of Way Operations,Payment to Private Contractors,750.00,NIGEL EARLEY SERVICES LTD
Revenue,Neighbourhoods,Cultural and Related Services,Open Spaces,5105623946,30.10.2019,Rights of Way Operations,Payment to Private Contractors,200.00,NIGEL EARLEY SERVICES LTD
Revenue,Resources,Central Services,Support Services,5105622229,09.10.2019,Legal Services Section,Sundry Office Expenses,59.97,OD CONSULTANCY LTD
Revenue,Adult Services,Housing Services,Homelessness,5105623247,23.10.2019,Private Rented Sector Leasing Scheme,Accommodation Costs - Leaseholder Payments,695.89,REDACTED PERSONAL DATA
Revenue,Adult Services,Housing Services,Homelessness,5105623247,23.10.2019,Private Rented Sector Leasing Scheme,Accommodation Costs - Leaseholder Payments,695.89,REDACTED PERSONAL DATA
Revenue,Adult Services,Housing Services,Homelessness,5105623247,23.10.2019,Private Rented Sector Leasing Scheme,Accommodation Costs - Leaseholder Payments,695.89,REDACTED PERSONAL DATA
Revenue,Adult Services,Housing Services,Homelessness,5105623247,23.10.2019,Private Rented Sector Leasing Scheme,Accommodation Costs - Leaseholder Payments,695.89,REDACTED PERSONAL DATA
Revenue,Adult Services,Housing Services,Homelessness,5105623247,23.10.2019,Private Rented Sector Leasing Scheme,Accommodation Costs - Leaseholder Payments,695.89,REDACTED PERSONAL DATA
Revenue,Childrens Services,Children's & Education Services,Children Looked After,5105620323,30.10.2019,Adoption Support Fund,Charges from Independent Providers,60.00,REDACTED PERSONAL DATA
Revenue,Childrens Services,Children's & Education Services,Other Education and Community Budget,5105622381,11.10.2019,Children's Services Strategic Management,Professional Services,250.00,PRINCIPAL SURVEYORS LTD
Revenue,Neighbourhoods,Cultural and Related Services,Library Service,5105622404,16.10.2019,Cowes Library,Professional Services,250.00,PRINCIPAL SURVEYORS LTD
Revenue,Regeneration,Central Services,Support Services,5105622379,23.10.2019,Strategic Assets Team,Professional Services,250.00,PRINCIPAL SURVEYORS LTD
Revenue,Adult Services,Adult Social Care,Commissioning & Service Delivery,5105621242,02.10.2019,Deferred Payment Fees,Professional Services,150.00,PRINCIPAL SURVEYORS LTD
Revenue,Neighbourhoods,Cultural and Related Services,Culture and Heritage,5105622380,16.10.2019,Cothey Bottom Store RYDE,Professional Services,250.00,PRINCIPAL SURVEYORS LTD
Revenue,Regeneration,Planning services,Business Support,5105623068,23.10.2019,Somerton Industrial Park,Professional Services,150.00,PRINCIPAL SURVEYORS LTD
Revenue,Regeneration,Planning services,Business Support,5105623178,23.10.2019,Somerton Industrial Park,Professional Services,150.00,PRINCIPAL SURVEYORS LTD
Revenue,Regeneration,Planning services,Business Support,5105624266,30.10.2019,Somerton Industrial Park,Professional Services,150.00,PRINCIPAL SURVEYORS LTD
Revenue,Regeneration,Planning services,Business Support,5105622637,11.10.2019,Somerton Industrial Park,Professional Services,150.00,PRINCIPAL SURVEYORS LTD
Revenue,Regeneration,Planning services,Business Support,5105623816,28.10.2019,Somerton Industrial Park,Professional Services,150.00,PRINCIPAL SURVEYORS LTD
Revenue,Regeneration,Planning services,Business Support,5105623860,30.10.2019,Somerton Industrial Park,Professional Services,150.00,PRINCIPAL SURVEYORS LTD
Revenue,Childrens Services,Children's & Education Services,Sure Start Children's Centres,5105622795,18.10.2019,Family Centres Maintenance,Professional Services,250.00,PRINCIPAL SURVEYORS LTD
Revenue,Childrens Services,Children's & Education Services,Sure Start Children's Centres,5105623558,25.10.2019,Family Centres Maintenance,Professional Services,250.00,PRINCIPAL SURVEYORS LTD
Revenue,Childrens Services,Children's & Education Services,Sure Start Children's Centres,5105623859,30.10.2019,Family Centres Maintenance,Professional Services,250.00,PRINCIPAL SURVEYORS LTD
Revenue,Childrens Services,Children's & Education Services,Sure Start Children's Centres,5105623766,28.10.2019,Family Centres Maintenance,Professional Services,250.00,PRINCIPAL SURVEYORS LTD
Revenue,Regeneration,Central Services,Support Services,5105623042,30.10.2019,"Guildhall,Newport",Property Services - Planned Maintenance,195.00,R G PROPERTY SERVICES
Revenue,Childrens Services,Children's & Education Services,Other Education and Community Budget,5105622359,09.10.2019,Home to School SEN Transport (LA),Taxis - Contract Hire,-135.00,ROUNSEVELLS TAXIS
Revenue,Childrens Services,Children's & Education Services,Other Education and Community Budget,5105622361,11.10.2019,Home to School SEN Transport (LA),Taxis - Contract Hire,135.00,ROUNSEVELLS TAXIS
Revenue,Childrens Services,Children's & Education Services,Other Education and Community Budget,5105623127,25.10.2019,Home to School SEN Transport (LA),Taxis - Contract Hire,190.00,ROUNSEVELLS TAXIS
Revenue,Childrens Services,Children's & Education Services,Other Education and Community Budget,5105623012,25.10.2019,Home to School SEN Transport (LA),Taxis - Contract Hire,150.00,ROUNSEVELLS TAXIS
Revenue,Childrens Services,Children's & Education Services,Other Education and Community Budget,5105622212,09.10.2019,Home to School SEN Transport (LA),Taxis - Contract Hire,135.00,ROUNSEVELLS TAXIS
Revenue,Childrens Services,Children's & Education Services,Other Education and Community Budget,5105621814,11.10.2019,Home to College Post 16 Transport,Taxis - Contract Hire,284.00,ROUNSEVELLS TAXIS
Revenue,Childrens Services,Children's & Education Services,Other Education and Community Budget,5105621815,23.10.2019,Home to College Post 16 Transport,Taxis - Contract Hire,284.00,ROUNSEVELLS TAXIS
Revenue,Childrens Services,Children's & Education Services,Other Education and Community Budget,5105621816,11.10.2019,Home to College Post 16 Transport,Taxis - Contract Hire,284.00,ROUNSEVELLS TAXIS
Revenue,Childrens Services,Children's & Education Services,Other Education and Community Budget,5105623125,25.10.2019,Home to College Post 16 Transport,Taxis - Contract Hire,214.00,ROUNSEVELLS TAXIS
Revenue,Childrens Services,Children's & Education Services,Other Education and Community Budget,5105622653,23.10.2019,Home to College Post 16 Transport,Taxis - Contract Hire,249.00,ROUNSEVELLS TAXIS
Revenue,Adult Services,Adult Social Care,Learning Disability Suppt-adults (18-64),5105623937,29.10.2019,Learning Disability Other LT Care 18-64,Taxis - Contract Hire,-400.00,ROUNSEVELLS TAXIS
Revenue,Adult Services,Adult Social Care,Learning Disability Suppt-adults (18-64),5105621270,16.10.2019,Learning Disability Other LT Care 18-64,Taxis - Contract Hire,400.00,ROUNSEVELLS TAXIS
Revenue,Neighbourhoods,Highways and Transport Services,"Airports, Harbours & Toll Facilities",5105623908,30.10.2019,Ferry Operation,Payment to Private Contractors,"5,300.00",SHORELINE SURVEYS LIMITED
Revenue,Regeneration,Planning services,Economic Development,5105621818,02.10.2019,Director of Regeneration,Consultants Fees,"5,021.00",SOUTH ISLAND ESTATES LTD
Revenue,Childrens Services,Children's & Education Services,Children Looked After,5105623047,30.10.2019,Beaulieu House,Client Expenses,120.00,SPLAT MESSY PLAY LTD
Revenue,Childrens Services,Children's & Education Services,Family Support Services,5105622080,04.10.2019,Short Breaks,Charges from Independent Providers,100.00,SPLAT MESSY PLAY LTD
Revenue,Childrens Services,Children's & Education Services,Family Support Services,5105622704,16.10.2019,Short Breaks,Charges from Independent Providers,200.00,SPLAT MESSY PLAY LTD
Revenue,Childrens Services,Adult Social Care,Social Care Activities,5105621538,04.10.2019,Adult Social Care - Workforce Development,Training,549.00,ST THOMAS TRAINING
Revenue,Childrens Services,Children's & Education Services,Other Education and Community Budget,5105622608,11.10.2019,Commissioning ACL,Grants to External Bodies,"6,000.00",THE CROSSLEY COMPANY (IOW) LTD
Revenue,Adult Services,Adult Social Care,Social Support - Social Isolation/Other,5105621514,18.10.2019,Social Isolation/Other Other ST Support,Charges from Independent Providers,650.00,THE ROBOS SPECIALIST CLEANING
Revenue,Adult Services,Adult Social Care,Social Support - Social Isolation/Other,5105621734,25.10.2019,Social Isolation/Other Other ST Support,Professional Services,425.00,THE ROBOS SPECIALIST CLEANING
Revenue,Adult Services,Adult Social Care,Social Support - Social Isolation/Other,5105623198,23.10.2019,Social Isolation/Other Other ST Support,Professional Services,800.00,THE ROBOS SPECIALIST CLEANING
Revenue,Adult Services,Adult Social Care,Social Support - Social Isolation/Other,5105623754,28.10.2019,Social Isolation/Other Other ST Support,Professional Services,650.00,THE ROBOS SPECIALIST CLEANING
Revenue,Childrens Services,Children's & Education Services,Family Support Services,5105623964,30.10.2019,Short Breaks,Charges from Independent Providers,216.00,THE VECTIS RADIO 4PS TRAINING
Revenue,Childrens Services,Children's & Education Services,Other Education and Community Budget,5105622178,16.10.2019,Home to School SEN Transport (LA),Taxis - Contract Hire,"1,330.00",THOMPSON TAXI
Revenue,Childrens Services,Children's & Education Services,Other Education and Community Budget,5105622184,16.10.2019,Home to School SEN Transport (LA),Taxis - Contract Hire,"2,090.00",THOMPSON TAXI
Revenue,Childrens Services,Children's & Education Services,Other Education and Community Budget,5105622186,11.10.2019,Home to School SEN Transport (LA),Taxis - Contract Hire,720.00,THOMPSON TAXI
Revenue,Childrens Services,Children's & Education Services,Other Education and Community Budget,5105622235,16.10.2019,Home to School Mainstream Transport,Taxis - Contract Hire,900.00,THOMPSON TAXI
Revenue,Childrens Services,Children's & Education Services,Other Education and Community Budget,5105623017,23.10.2019,Home to School SEN Transport (LA),Taxis - Contract Hire,608.00,TJ CAR SERVICES LTD
Revenue,Childrens Services,Children's & Education Services,Other Education and Community Budget,5105623017,23.10.2019,Home to College Post 16 Transport,Taxis - Contract Hire,322.00,TJ CAR SERVICES LTD
Revenue,Childrens Services,Children's & Education Services,Other Education and Community Budget,5105623017,23.10.2019,Home to College Post 16 Transport,Taxis - Contract Hire,864.00,TJ CAR SERVICES LTD
Revenue,Childrens Services,Children's & Education Services,Other Education and Community Budget,5105623017,23.10.2019,Home to College Post 16 Transport,Taxis - Contract Hire,320.00,TJ CAR SERVICES LTD
Revenue,Childrens Services,Children's & Education Services,Other Education and Community Budget,5105623017,23.10.2019,Home to College Post 16 Transport,Taxis - Contract Hire,456.00,TJ CAR SERVICES LTD
Revenue,Adult Services,Adult Social Care,Social Support - Social Isolation/Other,5105621548,16.10.2019,Social Isolation/Other Other ST Support,Charges from Independent Providers,740.00,TOP MOPS LIMITED
Revenue,Regeneration,Planning services,Economic Development,5105623821,28.10.2019,"Pier St, Sandown",Cleaning Contracts,18.00,TOP MOPS LIMITED
Revenue,Regeneration,Planning services,Economic Development,5105623821,28.10.2019,"Pier St, Sandown",Cleaning Contracts,510.00,TOP MOPS LIMITED
Revenue,Regeneration,Planning services,Economic Development,5105623554,28.10.2019,"Pier St, Sandown",Cleaning Contracts,18.00,TOP MOPS LIMITED
Revenue,Regeneration,Planning services,Economic Development,5105623818,28.10.2019,"Pier St, Sandown",Cleaning Contracts,18.00,TOP MOPS LIMITED
Revenue,Regeneration,Planning services,Economic Development,5105623818,28.10.2019,"Pier St, Sandown",Cleaning Contracts,510.00,TOP MOPS LIMITED
Revenue,Regeneration,Planning services,Economic Development,5105623819,28.10.2019,"Pier St, Sandown",Cleaning Contracts,18.00,TOP MOPS LIMITED
Revenue,Regeneration,Planning services,Economic Development,5105623819,28.10.2019,"Pier St, Sandown",Cleaning Contracts,510.00,TOP MOPS LIMITED
Revenue,Regeneration,Planning services,Economic Development,5105623553,28.10.2019,"Pier St, Sandown",Cleaning Contracts,510.00,TOP MOPS LIMITED
Revenue,Regeneration,Planning services,Economic Development,5105623553,28.10.2019,"Pier St, Sandown",Cleaning Contracts,18.00,TOP MOPS LIMITED
Revenue,Regeneration,Planning services,Economic Development,5105623554,28.10.2019,"Pier St, Sandown",Cleaning Contracts,510.00,TOP MOPS LIMITED
Revenue,Regeneration,Planning services,Economic Development,5105622245,11.10.2019,"Pier St, Sandown",Cleaning Contracts,182.14,TOP MOPS LIMITED
Revenue,Regeneration,Planning services,Economic Development,5105622245,11.10.2019,"Pier St, Sandown",Cleaning Contracts,6.42,TOP MOPS LIMITED
Revenue,Regeneration,Planning services,Economic Development,5105622371,09.10.2019,"Pier St, Sandown",Consumable Cleaning Materials,-51.75,TOP MOPS LIMITED
Revenue,Regeneration,Planning services,Economic Development,5105622068,09.10.2019,"Pier St, Sandown",Consumable Cleaning Materials,252.23,TOP MOPS LIMITED
Revenue,Neighbourhoods,Cultural and Related Services,Recreation and Sport,5105622421,11.10.2019,Medina Leisure Centre,Payment to Private Contractors,32.00,VECTIS GROUP SECURITY LTD
Revenue,Regeneration,Children's & Education Services,Support Services,5105621069,02.10.2019,97 High St (former Ryde Yth),Security of Buildings,147.00,VECTIS GROUP SECURITY LTD
Revenue,Childrens Services,Children's & Education Services,Support Services,5105619824,04.10.2019,Grafton Street Sandown (ex Sandown Yth),Security of Buildings,87.00,VECTIS GROUP SECURITY LTD
Revenue,Childrens Services,Children's & Education Services,Support Services,5105622420,16.10.2019,Grafton Street Sandown (ex Sandown Yth),Security of Buildings,72.00,VECTIS GROUP SECURITY LTD
Revenue,Neighbourhoods,Cultural and Related Services,Recreation and Sport,5105622422,11.10.2019,Westridge Squash Courts,Maintenance of Operational Equipment,12.00,VECTIS GROUP SECURITY LTD
Revenue,Childrens Services,Children's & Education Services,Special Schools & Alternative Provision,5105622419,28.10.2019,Island Learning Centre,Stationery,27.00,VECTIS GROUP SECURITY LTD
Revenue,Childrens Services,Children's & Education Services,Special Schools & Alternative Provision,5105619844,23.10.2019,Island Learning Centre,Stationery,12.00,VECTIS GROUP SECURITY LTD
Revenue,Childrens Services,Children's & Education Services,Special Schools & Alternative Provision,5105619844,23.10.2019,Island Learning Centre,Stationery,15.00,VECTIS GROUP SECURITY LTD
Revenue,Neighbourhoods,Cultural and Related Services,Recreation and Sport,5105622423,11.10.2019,The Heights,Maintenance of Operational Equipment,12.00,VECTIS GROUP SECURITY LTD
Revenue,Childrens Services,Children's & Education Services,Other Education and Community Budget,5105622289,16.10.2019,Home to School SEN Transport (LA),Taxis - Contract Hire,760.00,W W CARS OF SEAVIEW
Revenue,Childrens Services,Children's & Education Services,Other Education and Community Budget,5105622214,25.10.2019,Home to School SEN Transport (LA),Taxis - Contract Hire,"1,850.00",W W CARS OF SEAVIEW
Revenue,Childrens Services,Children's & Education Services,Other Education and Community Budget,5105622228,16.10.2019,Home to College Post 16 Transport,Taxis - Contract Hire,756.00,W W CARS OF SEAVIEW
Capital,Childrens Services,Capital,Capital,5105622192,11.10.2019,Administration and Inspection Schemes,Payment to Contractors - Capital,"4,895.63",WIGHT HEATING LTD
Revenue,Fire & Rescue,Fire & Rescue Services,Fire fighting and Rescue Operations,5105622042,04.10.2019,Business Support  - Fire,Property Services - Planned Maintenance,92.03,WIGHT HEATING LTD
Revenue,Fire & Rescue,Fire & Rescue Services,Fire fighting and Rescue Operations,5105622044,04.10.2019,Business Support  - Fire,Property Services - Day to day Maintenance,80.00,WIGHT HEATING LTD
Revenue,Childrens Services,Children's & Education Services,Other Education and Community Budget,5105623547,25.10.2019,Children's Services Strategic Management,Property Services - Planned Maintenance,565.13,WIGHT HEATING LTD
Revenue,Neighbourhoods,Cultural and Related Services,Recreation and Sport,5105622196,16.10.2019,Medina Leisure Centre,Property Services - Day to day Maintenance,"2,046.17",WIGHT HEATING LTD
Revenue,Neighbourhoods,Cultural and Related Services,Recreation and Sport,5105624244,30.10.2019,Medina Leisure Centre,Property Services - Day to day Maintenance,80.00,WIGHT HEATING LTD
Revenue,Adult Services,Adult Social Care,Social Support - Support for Carer,5105621845,04.10.2019,Westminster House,Property Services - Day to day Maintenance,80.00,WIGHT HEATING LTD
Revenue,Childrens Services,Children's & Education Services,Children Looked After,5105624240,30.10.2019,Beaulieu House,Minor Works,80.00,WIGHT HEATING LTD
Revenue,Regeneration,Central Services,Support Services,5105624242,30.10.2019,"County Hall,Newport",Property Services - Day to day Maintenance,80.00,WIGHT HEATING LTD
Revenue,Childrens Services,Children's & Education Services,Sure Start Children's Centres,5105621842,04.10.2019,Family Centres Maintenance,Minor Works,80.00,WIGHT HEATING LTD
Revenue,Childrens Services,Children's & Education Services,Sure Start Children's Centres,5105621843,04.10.2019,Family Centres Maintenance,Minor Works,189.85,WIGHT HEATING LTD
Revenue,Childrens Services,Children's & Education Services,Sure Start Children's Centres,5105624243,30.10.2019,Family Centres Maintenance,Minor Works,80.00,WIGHT HEATING LTD
Revenue,Childrens Services,Children's & Education Services,Sure Start Children's Centres,5105621840,04.10.2019,Family Centres Maintenance,Minor Works,197.47,WIGHT HEATING LTD
Revenue,Adult Services,Adult Social Care,Learning Disab Supp (to be reallocated),5105621839,04.10.2019,The Laurels,Minor Works,132.50,WIGHT HEATING LTD
Revenue,Adult Services,Adult Social Care,Learning Disab Supp (to be reallocated),5105621821,02.10.2019,The Laurels,Minor Works,45.00,WIGHT HEATING LTD
Revenue,Adult Services,Adult Social Care,Learning Disab Supp (to be reallocated),5105624241,30.10.2019,The Laurels,Minor Works,115.00,WIGHT HEATING LTD
Revenue,Adult Services,Adult Social Care,Central Codes (to be reallocated),5105622992,18.10.2019,Adelaide Resource Centre,Property Services - Planned Maintenance,586.67,WIGHT HEATING LTD
Revenue,Adult Services,Adult Social Care,Central Codes (to be reallocated),5105621847,04.10.2019,Adelaide Resource Centre,Property Services - Day to day Maintenance,97.50,WIGHT HEATING LTD
Revenue,Adult Services,Adult Social Care,Physical Support - older people (65+),5105622674,16.10.2019,Physical Support Nursing 65+,Charges from Independent Providers,"59,073.00",DCSL LTD
Revenue,Adult Services,Adult Social Care,Physical Support - older people (65+),5105623634,28.10.2019,Physical Support Nursing 65+,Charges from Independent Providers,"19,012.00",DCSL LTD
Revenue,Adult Services,Housing Services,Homelessness,5105623260,23.10.2019,Private Rented Sector Leasing Scheme,Accommodation Costs - Leaseholder Payments,866.67,2K PROPERTY
Revenue,Childrens Services,Children's & Education Services,Children Looked After,5105623377,25.10.2019,Special Guardianship Order Costs,Support Children,168.39,REDACTED PERSONAL DATA
Revenue,Childrens Services,Children's & Education Services,Children Looked After,5105624042,30.10.2019,Special Guardianship Order Costs,Support Children,168.39,REDACTED PERSONAL DATA
Revenue,Childrens Services,Children's & Education Services,Children Looked After,5105621867,04.10.2019,Special Guardianship Order Costs,Support Children,168.39,REDACTED PERSONAL DATA
Revenue,Childrens Services,Children's & Education Services,Children Looked After,5105622453,11.10.2019,Special Guardianship Order Costs,Support Children,168.39,REDACTED PERSONAL DATA
Revenue,Childrens Services,Children's & Education Services,Children Looked After,5105622830,18.10.2019,Special Guardianship Order Costs,Support Children,168.39,REDACTED PERSONAL DATA
Revenue,Childrens Services,Children's & Education Services,Children Looked After,5105621867,04.10.2019,In-house Fostering,Boarding Out Allowances,239.44,REDACTED PERSONAL DATA
Revenue,Childrens Services,Children's & Education Services,Children Looked After,5105621867,04.10.2019,In-house Fostering,Boarding Out Allowances,239.44,REDACTED PERSONAL DATA
Revenue,Childrens Services,Children's & Education Services,Children Looked After,5105622830,18.10.2019,In-house Fostering,Boarding Out Allowances,239.44,REDACTED PERSONAL DATA
Revenue,Childrens Services,Children's & Education Services,Children Looked After,5105622830,18.10.2019,In-house Fostering,Boarding Out Allowances,239.44,REDACTED PERSONAL DATA
Revenue,Childrens Services,Children's & Education Services,Children Looked After,5105622453,11.10.2019,In-house Fostering,Boarding Out Allowances,239.44,REDACTED PERSONAL DATA
Revenue,Childrens Services,Children's & Education Services,Children Looked After,5105622453,11.10.2019,In-house Fostering,Boarding Out Allowances,239.44,REDACTED PERSONAL DATA
Revenue,Childrens Services,Children's & Education Services,Children Looked After,5105623377,25.10.2019,In-house Fostering,Boarding Out Allowances,239.44,REDACTED PERSONAL DATA
Revenue,Childrens Services,Children's & Education Services,Children Looked After,5105623377,25.10.2019,In-house Fostering,Boarding Out Allowances,239.44,REDACTED PERSONAL DATA
Revenue,Childrens Services,Children's & Education Services,Children Looked After,5105624042,30.10.2019,In-house Fostering,Boarding Out Allowances,239.44,REDACTED PERSONAL DATA
Revenue,Childrens Services,Children's & Education Services,Children Looked After,5105624042,30.10.2019,In-house Fostering,Boarding Out Allowances,239.44,REDACTED PERSONAL DATA
Revenue,Childrens Services,Children's & Education Services,Children Looked After,5105624086,30.10.2019,Leaving Care Costs,Support Children,120.89,REDACTED PERSONAL DATA
Revenue,Childrens Services,Children's & Education Services,Children Looked After,5105624086,30.10.2019,Leaving Care Costs,Support Children,68.50,REDACTED PERSONAL DATA
Revenue,Childrens Services,Children's & Education Services,Children Looked After,5105623420,25.10.2019,Leaving Care Costs,Support Children,120.89,REDACTED PERSONAL DATA
Revenue,Childrens Services,Children's & Education Services,Children Looked After,5105623420,25.10.2019,Leaving Care Costs,Support Children,68.50,REDACTED PERSONAL DATA
Revenue,Childrens Services,Children's & Education Services,Children Looked After,5105622497,11.10.2019,Leaving Care Costs,Support Children,120.89,REDACTED PERSONAL DATA
Revenue,Childrens Services,Children's & Education Services,Children Looked After,5105622497,11.10.2019,Leaving Care Costs,Support Children,68.50,REDACTED PERSONAL DATA
Revenue,Childrens Services,Children's & Education Services,Children Looked After,5105622873,18.10.2019,Leaving Care Costs,Support Children,120.89,REDACTED PERSONAL DATA
Revenue,Childrens Services,Children's & Education Services,Children Looked After,5105622873,18.10.2019,Leaving Care Costs,Support Children,68.50,REDACTED PERSONAL DATA
Revenue,Childrens Services,Children's & Education Services,Children Looked After,5105621911,04.10.2019,Leaving Care Costs,Support Children,120.89,REDACTED PERSONAL DATA
Revenue,Childrens Services,Children's & Education Services,Children Looked After,5105621911,04.10.2019,Leaving Care Costs,Support Children,68.50,REDACTED PERSONAL DATA
Revenue,Adult Services,Housing Services,Homelessness,5105623257,23.10.2019,Private Rented Sector Leasing Scheme,Accommodation Costs - Leaseholder Payments,510.25,REDACTED PERSONAL DATA
Revenue,Adult Services,Housing Services,Homelessness,5105623257,23.10.2019,Private Rented Sector Leasing Scheme,Accommodation Costs - Leaseholder Payments,510.25,REDACTED PERSONAL DATA
Revenue,Adult Services,Housing Services,Homelessness,5105623257,23.10.2019,Private Rented Sector Leasing Scheme,Accommodation Costs - Leaseholder Payments,510.25,REDACTED PERSONAL DATA
Revenue,Adult Services,Housing Services,Homelessness,5105623257,23.10.2019,Private Rented Sector Leasing Scheme,Accommodation Costs - Leaseholder Payments,510.25,REDACTED PERSONAL DATA
Revenue,Adult Services,Housing Services,Homelessness,5105623257,23.10.2019,Private Rented Sector Leasing Scheme,Accommodation Costs - Leaseholder Payments,510.25,REDACTED PERSONAL DATA
Revenue,Adult Services,Housing Services,Homelessness,5105623257,23.10.2019,Private Rented Sector Leasing Scheme,Accommodation Costs - Leaseholder Payments,510.25,REDACTED PERSONAL DATA
Revenue,Childrens Services,Children's & Education Services,Children Looked After,5105624109,30.10.2019,In-house Fostering,Support Children,60.00,REDACTED PERSONAL DATA
Revenue,Childrens Services,Children's & Education Services,Children Looked After,5105624030,30.10.2019,Adoption Costs,Support Children,225.83,REDACTED PERSONAL DATA
Revenue,Childrens Services,Children's & Education Services,Children Looked After,5105621855,04.10.2019,Adoption Costs,Support Children,225.83,REDACTED PERSONAL DATA
Revenue,Childrens Services,Children's & Education Services,Children Looked After,5105622818,18.10.2019,Adoption Costs,Support Children,225.83,REDACTED PERSONAL DATA
Revenue,Childrens Services,Children's & Education Services,Children Looked After,5105622441,11.10.2019,Adoption Costs,Support Children,225.83,REDACTED PERSONAL DATA
Revenue,Childrens Services,Children's & Education Services,Children Looked After,5105623365,25.10.2019,Adoption Costs,Support Children,225.83,REDACTED PERSONAL DATA
Revenue,Childrens Services,Children's & Education Services,Children Looked After,5105622848,18.10.2019,In-house Fostering,Boarding Out Allowances,510.50,REDACTED PERSONAL DATA
Revenue,Childrens Services,Children's & Education Services,Children Looked After,5105622848,18.10.2019,In-house Fostering,Boarding Out Allowances,510.50,REDACTED PERSONAL DATA
Revenue,Childrens Services,Children's & Education Services,Children Looked After,5105621886,04.10.2019,In-house Fostering,Boarding Out Allowances,510.50,REDACTED PERSONAL DATA
Revenue,Childrens Services,Children's & Education Services,Children Looked After,5105621886,04.10.2019,In-house Fostering,Boarding Out Allowances,510.50,REDACTED PERSONAL DATA
Revenue,Childrens Services,Children's & Education Services,Children Looked After,5105622471,11.10.2019,In-house Fostering,Boarding Out Allowances,510.50,REDACTED PERSONAL DATA
Revenue,Childrens Services,Children's & Education Services,Children Looked After,5105622471,11.10.2019,In-house Fostering,Boarding Out Allowances,510.50,REDACTED PERSONAL DATA
Revenue,Childrens Services,Children's & Education Services,Children Looked After,5105623395,25.10.2019,In-house Fostering,Boarding Out Allowances,510.50,REDACTED PERSONAL DATA
Revenue,Childrens Services,Children's & Education Services,Children Looked After,5105623395,25.10.2019,In-house Fostering,Boarding Out Allowances,510.50,REDACTED PERSONAL DATA
Revenue,Childrens Services,Children's & Education Services,Children Looked After,5105624061,30.10.2019,In-house Fostering,Boarding Out Allowances,510.50,REDACTED PERSONAL DATA
Revenue,Childrens Services,Children's & Education Services,Children Looked After,5105624061,30.10.2019,In-house Fostering,Boarding Out Allowances,510.50,REDACTED PERSONAL DATA
Revenue,Adult Services,Adult Social Care,Support - Memory /Cognition-older people (65+),5105623716,28.10.2019,Memory & Cognition Residential 65+,Charges from Independent Providers,"3,200.12",ABBERDALE LIMITED
Revenue,Childrens Services,Children's & Education Services,Children Looked After,5105622400,09.10.2019,Adoption Costs,Professional Services,88.00,ACCESS PERSONAL CHECKING SERVICES LTD
Revenue,Childrens Services,Children's & Education Services,Children Looked After,5105622400,09.10.2019,Adoption Costs,Professional Services,12.00,ACCESS PERSONAL CHECKING SERVICES LTD
Revenue,Neighbourhoods,Environmental & Regulatory Services,Community Safety (Crime reduction),5105622400,09.10.2019,Community Support Officers,Professional Services,8.00,ACCESS PERSONAL CHECKING SERVICES LTD
Revenue,Neighbourhoods,Environmental & Regulatory Services,Community Safety (Crime reduction),5105622400,09.10.2019,Community Support Officers,Professional Services,25.00,ACCESS PERSONAL CHECKING SERVICES LTD
Revenue,Adult Services,Housing Services,Homelessness,5105622400,09.10.2019,Housing Needs Team,Professional Services,132.00,ACCESS PERSONAL CHECKING SERVICES LTD
Revenue,Adult Services,Housing Services,Homelessness,5105622400,09.10.2019,Housing Needs Team,Professional Services,18.00,ACCESS PERSONAL CHECKING SERVICES LTD
Capital,Corporate Items,Balance Sheet,Balance Sheet,5105622400,09.10.2019,Balance Sheet,Professional Services,44.00,ACCESS PERSONAL CHECKING SERVICES LTD
Capital,Corporate Items,Balance Sheet,Balance Sheet,5105622400,09.10.2019,Balance Sheet,Professional Services,44.00,ACCESS PERSONAL CHECKING SERVICES LTD
Capital,Corporate Items,Balance Sheet,Balance Sheet,5105622400,09.10.2019,Balance Sheet,Professional Services,6.00,ACCESS PERSONAL CHECKING SERVICES LTD
Capital,Corporate Items,Balance Sheet,Balance Sheet,5105622679,28.10.2019,Balance Sheet,Professional Services,6.00,ACCESS PERSONAL CHECKING SERVICES LTD
Capital,Corporate Items,Balance Sheet,Balance Sheet,5105622679,28.10.2019,Balance Sheet,Professional Services,6.00,ACCESS PERSONAL CHECKING SERVICES LTD
Capital,Corporate Items,Balance Sheet,Balance Sheet,5105622679,28.10.2019,Balance Sheet,Professional Services,44.00,ACCESS PERSONAL CHECKING SERVICES LTD
Capital,Corporate Items,Balance Sheet,Balance Sheet,5105622400,09.10.2019,Balance Sheet,Professional Services,6.00,ACCESS PERSONAL CHECKING SERVICES LTD
Revenue,Neighbourhoods,Cultural and Related Services,Recreation and Sport,5105622400,09.10.2019,Medina Leisure Centre,Professional Services,25.00,ACCESS PERSONAL CHECKING SERVICES LTD
Revenue,Neighbourhoods,Cultural and Related Services,Recreation and Sport,5105622400,09.10.2019,Medina Leisure Centre,Professional Services,8.00,ACCESS PERSONAL CHECKING SERVICES LTD
Revenue,Adult Services,Adult Social Care,Learning Disab Supp (to be reallocated),5105622679,28.10.2019,Plean Dene,Interview & recruitment expenses,44.00,ACCESS PERSONAL CHECKING SERVICES LTD
Revenue,Adult Services,Adult Social Care,Social Care Activities,5105622400,09.10.2019,Service Manager Principle Social Worker,Professional Services,6.00,ACCESS PERSONAL CHECKING SERVICES LTD
Revenue,Adult Services,Adult Social Care,Social Care Activities,5105622400,09.10.2019,Service Manager Principle Social Worker,Professional Services,44.00,ACCESS PERSONAL CHECKING SERVICES LTD
Revenue,Childrens Services,Children's & Education Services,Children Looked After,5105622400,09.10.2019,Beaulieu House,Professional Services,24.00,ACCESS PERSONAL CHECKING SERVICES LTD
Revenue,Childrens Services,Children's & Education Services,Children Looked After,5105622400,09.10.2019,Beaulieu House,Professional Services,176.00,ACCESS PERSONAL CHECKING SERVICES LTD
Revenue,Adult Services,Adult Social Care,Learning Disab Supp (to be reallocated),5105622679,28.10.2019,31 Carter Avenue,Interview & recruitment expenses,44.00,ACCESS PERSONAL CHECKING SERVICES LTD
Revenue,Adult Services,Adult Social Care,Learning Disab Supp (to be reallocated),5105622400,09.10.2019,31 Carter Avenue,Professional Services,6.00,ACCESS PERSONAL CHECKING SERVICES LTD
Revenue,Adult Services,Adult Social Care,Learning Disab Supp (to be reallocated),5105622400,09.10.2019,31 Carter Avenue,Professional Services,44.00,ACCESS PERSONAL CHECKING SERVICES LTD
Revenue,Childrens Services,Children's & Education Services,Other Education and Community Budget,5105622400,09.10.2019,Education and Inclusion Service,Professional Services,30.00,ACCESS PERSONAL CHECKING SERVICES LTD
Revenue,Childrens Services,Children's & Education Services,Other Education and Community Budget,5105622679,28.10.2019,Education and Inclusion Service,Professional Services,36.00,ACCESS PERSONAL CHECKING SERVICES LTD
Revenue,Resources,Children's & Education Services,Other Education and Community Budget,5105622400,09.10.2019,Learning & Development Support,Professional Services,6.00,ACCESS PERSONAL CHECKING SERVICES LTD
Revenue,Resources,Children's & Education Services,Other Education and Community Budget,5105622400,09.10.2019,Learning & Development Support,Professional Services,44.00,ACCESS PERSONAL CHECKING SERVICES LTD
Revenue,Childrens Services,Children's & Education Services,Special Schools & Alternative Provision,5105622400,09.10.2019,Island Learning Centre,Professional Services,30.00,ACCESS PERSONAL CHECKING SERVICES LTD
Revenue,Childrens Services,Children's & Education Services,Special Schools & Alternative Provision,5105622400,09.10.2019,Island Learning Centre,Professional Services,220.00,ACCESS PERSONAL CHECKING SERVICES LTD
Revenue,Childrens Services,Children's & Education Services,Safeguarding Children/Young Peoples Svs,5105622400,09.10.2019,Childrens Assess & Safeguarding Team,Professional Services,6.00,ACCESS PERSONAL CHECKING SERVICES LTD
Revenue,Childrens Services,Children's & Education Services,Safeguarding Children/Young Peoples Svs,5105622400,09.10.2019,Childrens Assess & Safeguarding Team,Professional Services,44.00,ACCESS PERSONAL CHECKING SERVICES LTD
Revenue,Childrens Services,Children's & Education Services,Management & Support Services,5105622400,09.10.2019,"Speech, Language and Communication",Professional Services,6.00,ACCESS PERSONAL CHECKING SERVICES LTD
Revenue,Childrens Services,Children's & Education Services,Management & Support Services,5105622400,09.10.2019,"Speech, Language and Communication",Professional Services,44.00,ACCESS PERSONAL CHECKING SERVICES LTD
Revenue,Neighbourhoods,Environmental & Regulatory Services,Regulatory Services,5105622627,11.10.2019,Licensing Services,Professional Services,484.00,ACCESS PERSONAL CHECKING SERVICES LTD
Revenue,Neighbourhoods,Environmental & Regulatory Services,Regulatory Services,5105622627,11.10.2019,Licensing Services,Professional Services,66.00,ACCESS PERSONAL CHECKING SERVICES LTD
Revenue,Childrens Services,Children's & Education Services,Children Looked After,5105622679,28.10.2019,In-house Fostering,Professional Services,36.00,ACCESS PERSONAL CHECKING SERVICES LTD
Revenue,Childrens Services,Children's & Education Services,Children Looked After,5105622679,28.10.2019,In-house Fostering,Professional Services,36.00,ACCESS PERSONAL CHECKING SERVICES LTD
Revenue,Childrens Services,Children's & Education Services,Children Looked After,5105622400,09.10.2019,In-house Fostering,Professional Services,42.00,ACCESS PERSONAL CHECKING SERVICES LTD
Revenue,Childrens Services,Children's & Education Services,Children Looked After,5105622400,09.10.2019,In-house Fostering,Professional Services,308.00,ACCESS PERSONAL CHECKING SERVICES LTD
Revenue,Childrens Services,Children's & Education Services,Children Looked After,5105622679,28.10.2019,In-house Fostering,Interview & recruitment expenses,176.00,ACCESS PERSONAL CHECKING SERVICES LTD
Revenue,Childrens Services,Children's & Education Services,Other Education and Community Budget,5105622679,28.10.2019,Adult Community Learning,Interview & recruitment expenses,44.00,ACCESS PERSONAL CHECKING SERVICES LTD
Revenue,Neighbourhoods,Cultural and Related Services,Recreation and Sport,5105622400,09.10.2019,The Heights,Professional Services,8.00,ACCESS PERSONAL CHECKING SERVICES LTD
Revenue,Neighbourhoods,Cultural and Related Services,Recreation and Sport,5105622400,09.10.2019,The Heights,Professional Services,25.00,ACCESS PERSONAL CHECKING SERVICES LTD
Revenue,Childrens Services,Children's & Education Services,Youth Justice,5105622400,09.10.2019,Youth Offending Team,Professional Services,6.00,ACCESS PERSONAL CHECKING SERVICES LTD
Revenue,Resources,Central Services,Support Services,5105622679,28.10.2019,Human Resources Support Team,Interview & recruitment expenses,132.00,ACCESS PERSONAL CHECKING SERVICES LTD
Revenue,Resources,Central Services,Support Services,5105622400,09.10.2019,Human Resources Support Team,Professional Services,220.00,ACCESS PERSONAL CHECKING SERVICES LTD
Revenue,Resources,Central Services,Support Services,5105622400,09.10.2019,Human Resources Support Team,Professional Services,30.00,ACCESS PERSONAL CHECKING SERVICES LTD
Revenue,Adult Services,Adult Social Care,Commissioning & Service Delivery,5105622400,09.10.2019,Shared Lives Management,Professional Services,24.00,ACCESS PERSONAL CHECKING SERVICES LTD
Revenue,Adult Services,Adult Social Care,Commissioning & Service Delivery,5105622400,09.10.2019,Shared Lives Management,Professional Services,176.00,ACCESS PERSONAL CHECKING SERVICES LTD
Revenue,Adult Services,Adult Social Care,Learning Disab Supp (to be reallocated),5105622166,09.10.2019,"17 Newport Road, Ventnor",Charges from Independent Providers,"4,553.00",TRACSCARE WELLCARE LIFESTYLES
Revenue,Adult Services,Adult Social Care,Learning Disab Supp (to be reallocated),5105622166,09.10.2019,"17 Newport Road, Ventnor",Charges from Independent Providers,"2,190.72",TRACSCARE WELLCARE LIFESTYLES
Revenue,Adult Services,Housing Services,Supporting People,5105623111,18.10.2019,Supporting People Mental Health,Payment to Private Contractors,"1,425.21",TRACSCARE WELLCARE LIFESTYLES
Revenue,Adult Services,Housing Services,Supporting People,5105623110,18.10.2019,Supporting People Physical Disability,Payment to Private Contractors,"2,014.41",TRACSCARE WELLCARE LIFESTYLES
Revenue,Adult Services,Adult Social Care,Learning Disab Supp (to be reallocated),5105622166,09.10.2019,Westhorpe Supported Living,Charges from Independent Providers,"4,060.00",TRACSCARE WELLCARE LIFESTYLES
Revenue,Adult Services,Adult Social Care,Learning Disab Supp (to be reallocated),5105622166,09.10.2019,Westhorpe Supported Living,Charges from Independent Providers,"2,030.00",TRACSCARE WELLCARE LIFESTYLES
Revenue,Adult Services,Adult Social Care,Learning Disab Supp (to be reallocated),5105622166,09.10.2019,Westhorpe Supported Living,Charges from Independent Providers,"5,684.00",TRACSCARE WELLCARE LIFESTYLES
Revenue,Adult Services,Adult Social Care,Learning Disab Supp (to be reallocated),5105622166,09.10.2019,"Greengates, Ryde",Charges from Independent Providers,"5,684.00",TRACSCARE WELLCARE LIFESTYLES
Revenue,Adult Services,Adult Social Care,Learning Disab Supp (to be reallocated),5105622166,09.10.2019,"Greengates, Ryde",Charges from Independent Providers,"2,190.72",TRACSCARE WELLCARE LIFESTYLES
Revenue,Adult Services,Adult Social Care,Learning Disab Supp (to be reallocated),5105622166,09.10.2019,"41 Newport Road, Cowes",Charges from Independent Providers,"5,684.00",TRACSCARE WELLCARE LIFESTYLES
Revenue,Adult Services,Adult Social Care,Learning Disab Supp (to be reallocated),5105622166,09.10.2019,"41 Newport Road, Cowes",Charges from Independent Providers,"2,190.72",TRACSCARE WELLCARE LIFESTYLES
Revenue,Adult Services,Housing Services,Supporting People,5105623109,18.10.2019,Supporting People Learning Disability,Payment to Private Contractors,"1,780.65",TRACSCARE WELLCARE LIFESTYLES
Revenue,Adult Services,Adult Social Care,Learning Disab Supp (to be reallocated),5105622166,09.10.2019,"Heath Road, Lake",Charges from Independent Providers,"4,553.00",TRACSCARE WELLCARE LIFESTYLES
Revenue,Adult Services,Adult Social Care,Learning Disab Supp (to be reallocated),5105622166,09.10.2019,"Heath Road, Lake",Charges from Independent Providers,"2,190.72",TRACSCARE WELLCARE LIFESTYLES
Revenue,Adult Services,Adult Social Care,Learning Disab Supp (to be reallocated),5105622166,09.10.2019,"Winton Street, Ryde",Charges from Independent Providers,"5,684.00",TRACSCARE WELLCARE LIFESTYLES
Revenue,Adult Services,Adult Social Care,Learning Disab Supp (to be reallocated),5105622166,09.10.2019,"Winton Street, Ryde",Charges from Independent Providers,"2,190.72",TRACSCARE WELLCARE LIFESTYLES
Revenue,Adult Services,Adult Social Care,Assistive Equipment & Technology,5105622802,18.10.2019,Community Equipment Store,Operational Equipment,"3,945.00",ACCORA  LIMITED
Revenue,Adult Services,Adult Social Care,Commissioning & Service Delivery,5105623147,28.10.2019,BCF Care Bill Implementation,Payment to Private Contractors,"37,397.26",ADAM HTT LTD
Revenue,Childrens Services,Children's & Education Services,Management & Support Services,5105622790,18.10.2019,Special Discretionary Grants,Charges from Independent Providers,52.50,A-DAY CONSULTANTS LTD
Revenue,Childrens Services,Children's & Education Services,Management & Support Services,5105615735,11.10.2019,Pupil Premium Managed Centrally,Professional Services,-27.20,A-DAY CONSULTANTS LTD
Revenue,Childrens Services,Children's & Education Services,Management & Support Services,5105615735,11.10.2019,Pupil Premium Managed Centrally,Professional Services,-13.60,A-DAY CONSULTANTS LTD
Revenue,Childrens Services,Children's & Education Services,Management & Support Services,5105615735,11.10.2019,Pupil Premium Managed Centrally,Professional Services,-27.20,A-DAY CONSULTANTS LTD
Revenue,Childrens Services,Children's & Education Services,Management & Support Services,5105615737,11.10.2019,Pupil Premium Managed Centrally,Professional Services,-26.20,A-DAY CONSULTANTS LTD
Revenue,Childrens Services,Children's & Education Services,Management & Support Services,5105606797,11.10.2019,Pupil Premium Managed Centrally,Professional Services,131.20,A-DAY CONSULTANTS LTD
Revenue,Childrens Services,Children's & Education Services,Management & Support Services,5105606797,11.10.2019,Pupil Premium Managed Centrally,Professional Services,65.60,A-DAY CONSULTANTS LTD
Revenue,Childrens Services,Children's & Education Services,Management & Support Services,5105606797,11.10.2019,Pupil Premium Managed Centrally,Professional Services,52.00,A-DAY CONSULTANTS LTD
Revenue,Childrens Services,Children's & Education Services,Management & Support Services,5105606797,11.10.2019,Pupil Premium Managed Centrally,Professional Services,104.00,A-DAY CONSULTANTS LTD
Revenue,Childrens Services,Children's & Education Services,Management & Support Services,5105607617,11.10.2019,Pupil Premium Managed Centrally,Professional Services,131.20,A-DAY CONSULTANTS LTD
Revenue,Childrens Services,Children's & Education Services,Management & Support Services,5105607617,11.10.2019,Pupil Premium Managed Centrally,Professional Services,131.20,A-DAY CONSULTANTS LTD
Revenue,Childrens Services,Children's & Education Services,Special Schools & Alternative Provision,5105623578,28.10.2019,Island Learning Centre,Agency staff,"3,735.30",A-DAY CONSULTANTS LTD
Revenue,Regeneration,Central Services,Support Services,5105622717,30.10.2019,"County Hall,Newport",Security of Buildings,320.00,ADT FIRE AND SECURITY PLC
Revenue,Regeneration,Central Services,Support Services,5105623757,28.10.2019,"11 York Avenue, East Cowes",Advertising & Publicity,600.00,SCOTCHER AND CO
Revenue,Resources,Children's & Education Services,Other Education and Community Budget,5105623797,28.10.2019,Specialist Cross-Council Training,Training,"2,500.00",AIREY CONSULTANCY SERVICES LTD
Revenue,Adult Services,Adult Social Care,Central Codes (to be reallocated),5105621720,04.10.2019,Gouldings Resource Centre,Property Services - Day to day Maintenance,120.00,AIRTEK SERVICES IOW LTD
Revenue,Regeneration,Central Services,Support Services,5105623186,23.10.2019,"County Hall,Newport",Property Services - Day to day Maintenance,105.00,AIRTEK SERVICES IOW LTD
Revenue,Regeneration,Central Services,Support Services,5105622354,09.10.2019,"Civic Centre,Sandown",Property Services - Day to day Maintenance,537.20,AIRTEK SERVICES IOW LTD
Revenue,Adult Services,Adult Social Care,Learning Disability Suppt-adults (18-64),5105624025,30.10.2019,Learning Disability Residential 18-64,Charges from Independent Providers,"52,441.20",AITCH CARE HOMES (LONDON) LTD
Revenue,Childrens Services,Children's & Education Services,Other Education and Community Budget,5105622799,18.10.2019,Home to School SEN Transport (LA),Taxis - Contract Hire,700.00,AKAR TAXIS
Revenue,Neighbourhoods,Environmental & Regulatory Services,"Cemetery, Cremation & Mortuary Services",5105622300,09.10.2019,Crematorium,Operational Equipment,80.64,ALBANY FARM & G MACHINERY LTD
Revenue,Resources,Adult Social Care,Physical Support (to be reallocated),5105622993,18.10.2019,Blue Badge Admin Team Shared Services,Printing Costs,869.40,ALLIED PUBLICITY SERVICES LTD
Revenue,Resources,Highways and Transport Services,Public Transport,5105622356,09.10.2019,Transport Fleet Administration,Vehicle Fuel Costs,"11,680.14",ALLSTAR BUSINESS SOLUTIONS LTD
Revenue,Childrens Services,Children's & Education Services,Other Education and Community Budget,5105620668,09.10.2019,Home to School SEN Transport (LA),Taxis - Contract Hire,240.00,ALPHA (IOW) LTD
Revenue,Childrens Services,Children's & Education Services,Other Education and Community Budget,5105620668,09.10.2019,Home to School SEN Transport (LA),Taxis - Contract Hire,150.00,ALPHA (IOW) LTD
Revenue,Childrens Services,Children's & Education Services,Other Education and Community Budget,5105620668,09.10.2019,Home to School SEN Transport (LA),Taxis - Contract Hire,210.00,ALPHA (IOW) LTD
Revenue,Childrens Services,Children's & Education Services,Other Education and Community Budget,5105620668,09.10.2019,Home to School SEN Transport (LA),Taxis - Contract Hire,156.00,ALPHA (IOW) LTD
Revenue,Childrens Services,Children's & Education Services,Other Education and Community Budget,5105620668,09.10.2019,Home to School SEN Transport (LA),Taxis - Contract Hire,186.00,ALPHA (IOW) LTD
Revenue,Childrens Services,Children's & Education Services,Other Education and Community Budget,5105620668,09.10.2019,Home to School SEN Transport (LA),Taxis - Contract Hire,120.00,ALPHA (IOW) LTD
Revenue,Childrens Services,Children's & Education Services,Other Education and Community Budget,5105620668,09.10.2019,Home to School SEN Transport (LA),Taxis - Contract Hire,225.00,ALPHA (IOW) LTD
Revenue,Childrens Services,Children's & Education Services,Other Education and Community Budget,5105620668,09.10.2019,Home to School SEN Transport (LA),Taxis - Contract Hire,270.00,ALPHA (IOW) LTD
Revenue,Childrens Services,Children's & Education Services,Other Education and Community Budget,5105620668,09.10.2019,Home to School SEN Transport (LA),Taxis - Contract Hire,180.00,ALPHA (IOW) LTD
Revenue,Childrens Services,Children's & Education Services,Other Education and Community Budget,5105620668,09.10.2019,Home to School SEN Transport (LA),Taxis - Contract Hire,168.00,ALPHA (IOW) LTD
Revenue,Childrens Services,Children's & Education Services,Other Education and Community Budget,5105620668,09.10.2019,Home to School SEN Transport (LA),Taxis - Contract Hire,237.00,ALPHA (IOW) LTD
Revenue,Childrens Services,Children's & Education Services,Other Education and Community Budget,5105620668,09.10.2019,Home to School SEN Transport (LA),Taxis - Contract Hire,240.00,ALPHA (IOW) LTD
Revenue,Childrens Services,Children's & Education Services,Other Education and Community Budget,5105620668,09.10.2019,Home to School SEN Transport (LA),Taxis - Contract Hire,360.00,ALPHA (IOW) LTD
Revenue,Childrens Services,Children's & Education Services,Other Education and Community Budget,5105620668,09.10.2019,Home to School SEN Transport (LA),Taxis - Contract Hire,420.00,ALPHA (IOW) LTD
Revenue,Childrens Services,Children's & Education Services,Other Education and Community Budget,5105620668,09.10.2019,Home to School SEN Transport (LA),Taxis - Contract Hire,150.00,ALPHA (IOW) LTD
Revenue,Childrens Services,Children's & Education Services,Other Education and Community Budget,5105620668,09.10.2019,Home to School SEN Transport (LA),Taxis - Contract Hire,84.00,ALPHA (IOW) LTD
Revenue,Childrens Services,Children's & Education Services,Other Education and Community Budget,5105620668,09.10.2019,Home to School SEN Transport (LA),Taxis - Contract Hire,90.00,ALPHA (IOW) LTD
Revenue,Childrens Services,Children's & Education Services,Other Education and Community Budget,5105620668,09.10.2019,Home to School SEN Transport (LA),Taxis - Contract Hire,150.00,ALPHA (IOW) LTD
Revenue,Childrens Services,Children's & Education Services,Other Education and Community Budget,5105621194,04.10.2019,Home to School SEN Transport (LA),Taxis - Contract Hire,400.00,ALPHA (IOW) LTD
Revenue,Childrens Services,Children's & Education Services,Other Education and Community Budget,5105620668,09.10.2019,Home to School SEN Transport (LA),Taxis - Contract Hire,225.00,ALPHA (IOW) LTD
Revenue,Childrens Services,Children's & Education Services,Other Education and Community Budget,5105620668,09.10.2019,Home to School SEN Transport (LA),Taxis - Contract Hire,345.00,ALPHA (IOW) LTD
Revenue,Childrens Services,Children's & Education Services,Other Education and Community Budget,5105621194,04.10.2019,Home to School SEN Transport (LA),Taxis - Contract Hire,280.00,ALPHA (IOW) LTD
Revenue,Childrens Services,Children's & Education Services,Other Education and Community Budget,5105621194,04.10.2019,Home to School SEN Transport (LA),Taxis - Contract Hire,395.00,ALPHA (IOW) LTD
Revenue,Childrens Services,Children's & Education Services,Other Education and Community Budget,5105621194,04.10.2019,Home to School SEN Transport (LA),Taxis - Contract Hire,260.00,ALPHA (IOW) LTD
Revenue,Childrens Services,Children's & Education Services,Other Education and Community Budget,5105621194,04.10.2019,Home to School SEN Transport (LA),Taxis - Contract Hire,480.00,ALPHA (IOW) LTD
Revenue,Childrens Services,Children's & Education Services,Other Education and Community Budget,5105621194,04.10.2019,Home to School SEN Transport (LA),Taxis - Contract Hire,575.00,ALPHA (IOW) LTD
Revenue,Childrens Services,Children's & Education Services,Other Education and Community Budget,5105621194,04.10.2019,Home to School SEN Transport (LA),Taxis - Contract Hire,600.00,ALPHA (IOW) LTD
Revenue,Childrens Services,Children's & Education Services,Other Education and Community Budget,5105621194,04.10.2019,Home to School SEN Transport (LA),Taxis - Contract Hire,700.00,ALPHA (IOW) LTD
Revenue,Childrens Services,Children's & Education Services,Other Education and Community Budget,5105621194,04.10.2019,Home to School SEN Transport (LA),Taxis - Contract Hire,250.00,ALPHA (IOW) LTD
Revenue,Childrens Services,Children's & Education Services,Other Education and Community Budget,5105621194,04.10.2019,Home to School SEN Transport (LA),Taxis - Contract Hire,140.00,ALPHA (IOW) LTD
Revenue,Childrens Services,Children's & Education Services,Other Education and Community Budget,5105621194,04.10.2019,Home to School SEN Transport (LA),Taxis - Contract Hire,150.00,ALPHA (IOW) LTD
Revenue,Childrens Services,Children's & Education Services,Other Education and Community Budget,5105621194,04.10.2019,Home to School SEN Transport (LA),Taxis - Contract Hire,400.00,ALPHA (IOW) LTD
Revenue,Childrens Services,Children's & Education Services,Other Education and Community Budget,5105621194,04.10.2019,Home to School SEN Transport (LA),Taxis - Contract Hire,150.00,ALPHA (IOW) LTD
Revenue,Childrens Services,Children's & Education Services,Other Education and Community Budget,5105621194,04.10.2019,Home to School SEN Transport (LA),Taxis - Contract Hire,310.00,ALPHA (IOW) LTD
Revenue,Childrens Services,Children's & Education Services,Other Education and Community Budget,5105621194,04.10.2019,Home to School SEN Transport (LA),Taxis - Contract Hire,450.00,ALPHA (IOW) LTD
Revenue,Childrens Services,Children's & Education Services,Other Education and Community Budget,5105621194,04.10.2019,Home to School SEN Transport (LA),Taxis - Contract Hire,300.00,ALPHA (IOW) LTD
Revenue,Childrens Services,Children's & Education Services,Other Education and Community Budget,5105621194,04.10.2019,Home to School SEN Transport (LA),Taxis - Contract Hire,350.00,ALPHA (IOW) LTD
Revenue,Childrens Services,Children's & Education Services,Other Education and Community Budget,5105621194,04.10.2019,Home to School SEN Transport (LA),Taxis - Contract Hire,250.00,ALPHA (IOW) LTD
Revenue,Childrens Services,Children's & Education Services,Other Education and Community Budget,5105621194,04.10.2019,Home to School SEN Transport (LA),Taxis - Contract Hire,375.00,ALPHA (IOW) LTD
Revenue,Childrens Services,Children's & Education Services,Other Education and Community Budget,5105621813,04.10.2019,Home to School SEN Transport (LA),Taxis - Contract Hire,140.00,ALPHA (IOW) LTD
Revenue,Childrens Services,Children's & Education Services,Other Education and Community Budget,5105621813,04.10.2019,Home to School SEN Transport (LA),Taxis - Contract Hire,260.00,ALPHA (IOW) LTD
Revenue,Childrens Services,Children's & Education Services,Other Education and Community Budget,5105621813,04.10.2019,Home to School SEN Transport (LA),Taxis - Contract Hire,310.00,ALPHA (IOW) LTD
Revenue,Childrens Services,Children's & Education Services,Other Education and Community Budget,5105621813,04.10.2019,Home to School SEN Transport (LA),Taxis - Contract Hire,550.00,ALPHA (IOW) LTD
Revenue,Childrens Services,Children's & Education Services,Other Education and Community Budget,5105621813,04.10.2019,Home to School SEN Transport (LA),Taxis - Contract Hire,480.00,ALPHA (IOW) LTD
Revenue,Childrens Services,Children's & Education Services,Other Education and Community Budget,5105621194,04.10.2019,Home to School SEN Transport (LA),Taxis - Contract Hire,200.00,ALPHA (IOW) LTD
Revenue,Childrens Services,Children's & Education Services,Other Education and Community Budget,5105621813,04.10.2019,Home to School SEN Transport (LA),Taxis - Contract Hire,300.00,ALPHA (IOW) LTD
Revenue,Childrens Services,Children's & Education Services,Other Education and Community Budget,5105621813,04.10.2019,Home to School SEN Transport (LA),Taxis - Contract Hire,450.00,ALPHA (IOW) LTD
Revenue,Childrens Services,Children's & Education Services,Other Education and Community Budget,5105621813,04.10.2019,Home to School SEN Transport (LA),Taxis - Contract Hire,375.00,ALPHA (IOW) LTD
Revenue,Childrens Services,Children's & Education Services,Other Education and Community Budget,5105621813,04.10.2019,Home to School SEN Transport (LA),Taxis - Contract Hire,600.00,ALPHA (IOW) LTD
Revenue,Childrens Services,Children's & Education Services,Other Education and Community Budget,5105621813,04.10.2019,Home to School SEN Transport (LA),Taxis - Contract Hire,200.00,ALPHA (IOW) LTD
Revenue,Childrens Services,Children's & Education Services,Other Education and Community Budget,5105621813,04.10.2019,Home to School SEN Transport (LA),Taxis - Contract Hire,575.00,ALPHA (IOW) LTD
Revenue,Childrens Services,Children's & Education Services,Other Education and Community Budget,5105621813,04.10.2019,Home to School SEN Transport (LA),Taxis - Contract Hire,395.00,ALPHA (IOW) LTD
Revenue,Childrens Services,Children's & Education Services,Other Education and Community Budget,5105621813,04.10.2019,Home to School SEN Transport (LA),Taxis - Contract Hire,700.00,ALPHA (IOW) LTD
Revenue,Childrens Services,Children's & Education Services,Other Education and Community Budget,5105621813,04.10.2019,Home to School SEN Transport (LA),Taxis - Contract Hire,280.00,ALPHA (IOW) LTD
Revenue,Childrens Services,Children's & Education Services,Other Education and Community Budget,5105621813,04.10.2019,Home to School SEN Transport (LA),Taxis - Contract Hire,150.00,ALPHA (IOW) LTD
Revenue,Childrens Services,Children's & Education Services,Other Education and Community Budget,5105621813,04.10.2019,Home to School SEN Transport (LA),Taxis - Contract Hire,350.00,ALPHA (IOW) LTD
Revenue,Childrens Services,Children's & Education Services,Other Education and Community Budget,5105621813,04.10.2019,Home to School SEN Transport (LA),Taxis - Contract Hire,250.00,ALPHA (IOW) LTD
Revenue,Childrens Services,Children's & Education Services,Other Education and Community Budget,5105621813,04.10.2019,Home to School SEN Transport (LA),Taxis - Contract Hire,250.00,ALPHA (IOW) LTD
Revenue,Childrens Services,Children's & Education Services,Other Education and Community Budget,5105621813,04.10.2019,Home to School SEN Transport (LA),Taxis - Contract Hire,400.00,ALPHA (IOW) LTD
Revenue,Childrens Services,Children's & Education Services,Other Education and Community Budget,5105623345,23.10.2019,Home to School SEN Transport (LA),Taxis - Contract Hire,300.00,ALPHA (IOW) LTD
Revenue,Childrens Services,Children's & Education Services,Other Education and Community Budget,5105623345,23.10.2019,Home to School SEN Transport (LA),Taxis - Contract Hire,450.00,ALPHA (IOW) LTD
Revenue,Childrens Services,Children's & Education Services,Other Education and Community Budget,5105623345,23.10.2019,Home to School SEN Transport (LA),Taxis - Contract Hire,375.00,ALPHA (IOW) LTD
Revenue,Childrens Services,Children's & Education Services,Other Education and Community Budget,5105623345,23.10.2019,Home to School SEN Transport (LA),Taxis - Contract Hire,150.00,ALPHA (IOW) LTD
Revenue,Childrens Services,Children's & Education Services,Other Education and Community Budget,5105623345,23.10.2019,Home to School SEN Transport (LA),Taxis - Contract Hire,600.00,ALPHA (IOW) LTD
Revenue,Childrens Services,Children's & Education Services,Other Education and Community Budget,5105623345,23.10.2019,Home to School SEN Transport (LA),Taxis - Contract Hire,480.00,ALPHA (IOW) LTD
Revenue,Childrens Services,Children's & Education Services,Other Education and Community Budget,5105623346,23.10.2019,Home to School SEN Transport (LA),Taxis - Contract Hire,600.00,ALPHA (IOW) LTD
Revenue,Childrens Services,Children's & Education Services,Other Education and Community Budget,5105623345,23.10.2019,Home to School SEN Transport (LA),Taxis - Contract Hire,350.00,ALPHA (IOW) LTD
Revenue,Childrens Services,Children's & Education Services,Other Education and Community Budget,5105623345,23.10.2019,Home to School SEN Transport (LA),Taxis - Contract Hire,250.00,ALPHA (IOW) LTD
Revenue,Childrens Services,Children's & Education Services,Other Education and Community Budget,5105623345,23.10.2019,Home to School SEN Transport (LA),Taxis - Contract Hire,700.00,ALPHA (IOW) LTD
Revenue,Childrens Services,Children's & Education Services,Other Education and Community Budget,5105623346,23.10.2019,Home to School SEN Transport (LA),Taxis - Contract Hire,480.00,ALPHA (IOW) LTD
Revenue,Childrens Services,Children's & Education Services,Other Education and Community Budget,5105623345,23.10.2019,Home to School SEN Transport (LA),Taxis - Contract Hire,250.00,ALPHA (IOW) LTD
Revenue,Childrens Services,Children's & Education Services,Other Education and Community Budget,5105623345,23.10.2019,Home to School SEN Transport (LA),Taxis - Contract Hire,400.00,ALPHA (IOW) LTD
Revenue,Childrens Services,Children's & Education Services,Other Education and Community Budget,5105623345,23.10.2019,Home to School SEN Transport (LA),Taxis - Contract Hire,395.00,ALPHA (IOW) LTD
Revenue,Childrens Services,Children's & Education Services,Other Education and Community Budget,5105623345,23.10.2019,Home to School SEN Transport (LA),Taxis - Contract Hire,280.00,ALPHA (IOW) LTD
Revenue,Childrens Services,Children's & Education Services,Other Education and Community Budget,5105623345,23.10.2019,Home to School SEN Transport (LA),Taxis - Contract Hire,575.00,ALPHA (IOW) LTD
Revenue,Childrens Services,Children's & Education Services,Other Education and Community Budget,5105623345,23.10.2019,Home to School SEN Transport (LA),Taxis - Contract Hire,140.00,ALPHA (IOW) LTD
Revenue,Childrens Services,Children's & Education Services,Other Education and Community Budget,5105623345,23.10.2019,Home to School SEN Transport (LA),Taxis - Contract Hire,260.00,ALPHA (IOW) LTD
Revenue,Childrens Services,Children's & Education Services,Other Education and Community Budget,5105623345,23.10.2019,Home to School SEN Transport (LA),Taxis - Contract Hire,310.00,ALPHA (IOW) LTD
Revenue,Childrens Services,Children's & Education Services,Other Education and Community Budget,5105623345,23.10.2019,Home to School SEN Transport (LA),Taxis - Contract Hire,550.00,ALPHA (IOW) LTD
Revenue,Childrens Services,Children's & Education Services,Other Education and Community Budget,5105623345,23.10.2019,Home to School SEN Transport (LA),Taxis - Contract Hire,100.00,ALPHA (IOW) LTD
Revenue,Childrens Services,Children's & Education Services,Other Education and Community Budget,5105623346,23.10.2019,Home to School SEN Transport (LA),Taxis - Contract Hire,400.00,ALPHA (IOW) LTD
Revenue,Childrens Services,Children's & Education Services,Other Education and Community Budget,5105623346,23.10.2019,Home to School SEN Transport (LA),Taxis - Contract Hire,395.00,ALPHA (IOW) LTD
Revenue,Childrens Services,Children's & Education Services,Other Education and Community Budget,5105623346,23.10.2019,Home to School SEN Transport (LA),Taxis - Contract Hire,700.00,ALPHA (IOW) LTD
Revenue,Childrens Services,Children's & Education Services,Other Education and Community Budget,5105623346,23.10.2019,Home to School SEN Transport (LA),Taxis - Contract Hire,280.00,ALPHA (IOW) LTD
Revenue,Childrens Services,Children's & Education Services,Other Education and Community Budget,5105623346,23.10.2019,Home to School SEN Transport (LA),Taxis - Contract Hire,150.00,ALPHA (IOW) LTD
Revenue,Childrens Services,Children's & Education Services,Other Education and Community Budget,5105623345,23.10.2019,Home to School SEN Transport (LA),Taxis - Contract Hire,200.00,ALPHA (IOW) LTD
Revenue,Childrens Services,Children's & Education Services,Other Education and Community Budget,5105623346,23.10.2019,Home to School SEN Transport (LA),Taxis - Contract Hire,295.00,ALPHA (IOW) LTD
Revenue,Childrens Services,Children's & Education Services,Other Education and Community Budget,5105622201,23.10.2019,Home to School SEN Transport (LA),Taxis - Contract Hire,600.00,ALPHA (IOW) LTD
Revenue,Childrens Services,Children's & Education Services,Other Education and Community Budget,5105622201,23.10.2019,Home to School SEN Transport (LA),Taxis - Contract Hire,480.00,ALPHA (IOW) LTD
Revenue,Childrens Services,Children's & Education Services,Other Education and Community Budget,5105622201,23.10.2019,Home to School SEN Transport (LA),Taxis - Contract Hire,150.00,ALPHA (IOW) LTD
Revenue,Childrens Services,Children's & Education Services,Other Education and Community Budget,5105622201,23.10.2019,Home to School SEN Transport (LA),Taxis - Contract Hire,350.00,ALPHA (IOW) LTD
Revenue,Childrens Services,Children's & Education Services,Other Education and Community Budget,5105622201,23.10.2019,Home to School SEN Transport (LA),Taxis - Contract Hire,250.00,ALPHA (IOW) LTD
Revenue,Childrens Services,Children's & Education Services,Other Education and Community Budget,5105622201,23.10.2019,Home to School SEN Transport (LA),Taxis - Contract Hire,300.00,ALPHA (IOW) LTD
Revenue,Childrens Services,Children's & Education Services,Other Education and Community Budget,5105622201,23.10.2019,Home to School SEN Transport (LA),Taxis - Contract Hire,450.00,ALPHA (IOW) LTD
Revenue,Childrens Services,Children's & Education Services,Other Education and Community Budget,5105622201,23.10.2019,Home to School SEN Transport (LA),Taxis - Contract Hire,375.00,ALPHA (IOW) LTD
Revenue,Childrens Services,Children's & Education Services,Other Education and Community Budget,5105623346,23.10.2019,Home to School SEN Transport (LA),Taxis - Contract Hire,375.00,ALPHA (IOW) LTD
Revenue,Childrens Services,Children's & Education Services,Other Education and Community Budget,5105622201,23.10.2019,Home to School SEN Transport (LA),Taxis - Contract Hire,265.00,ALPHA (IOW) LTD
Revenue,Childrens Services,Children's & Education Services,Other Education and Community Budget,5105622201,23.10.2019,Home to School SEN Transport (LA),Taxis - Contract Hire,400.00,ALPHA (IOW) LTD
Revenue,Childrens Services,Children's & Education Services,Other Education and Community Budget,5105622201,23.10.2019,Home to School SEN Transport (LA),Taxis - Contract Hire,395.00,ALPHA (IOW) LTD
Revenue,Childrens Services,Children's & Education Services,Other Education and Community Budget,5105622201,23.10.2019,Home to School SEN Transport (LA),Taxis - Contract Hire,700.00,ALPHA (IOW) LTD
Revenue,Childrens Services,Children's & Education Services,Other Education and Community Budget,5105622201,23.10.2019,Home to School SEN Transport (LA),Taxis - Contract Hire,280.00,ALPHA (IOW) LTD
Revenue,Childrens Services,Children's & Education Services,Other Education and Community Budget,5105623346,23.10.2019,Home to School SEN Transport (LA),Taxis - Contract Hire,550.00,ALPHA (IOW) LTD
Revenue,Childrens Services,Children's & Education Services,Other Education and Community Budget,5105623346,23.10.2019,Home to School SEN Transport (LA),Taxis - Contract Hire,100.00,ALPHA (IOW) LTD
Revenue,Childrens Services,Children's & Education Services,Other Education and Community Budget,5105623346,23.10.2019,Home to School SEN Transport (LA),Taxis - Contract Hire,350.00,ALPHA (IOW) LTD
Revenue,Childrens Services,Children's & Education Services,Other Education and Community Budget,5105623346,23.10.2019,Home to School SEN Transport (LA),Taxis - Contract Hire,250.00,ALPHA (IOW) LTD
Revenue,Childrens Services,Children's & Education Services,Other Education and Community Budget,5105623346,23.10.2019,Home to School SEN Transport (LA),Taxis - Contract Hire,300.00,ALPHA (IOW) LTD
Revenue,Childrens Services,Children's & Education Services,Other Education and Community Budget,5105623346,23.10.2019,Home to School SEN Transport (LA),Taxis - Contract Hire,450.00,ALPHA (IOW) LTD
Revenue,Childrens Services,Children's & Education Services,Other Education and Community Budget,5105622201,23.10.2019,Home to School SEN Transport (LA),Taxis - Contract Hire,380.00,ALPHA (IOW) LTD
Revenue,Childrens Services,Children's & Education Services,Other Education and Community Budget,5105623346,23.10.2019,Home to School SEN Transport (LA),Taxis - Contract Hire,200.00,ALPHA (IOW) LTD
Revenue,Childrens Services,Children's & Education Services,Other Education and Community Budget,5105623346,23.10.2019,Home to School SEN Transport (LA),Taxis - Contract Hire,575.00,ALPHA (IOW) LTD
Revenue,Childrens Services,Children's & Education Services,Other Education and Community Budget,5105623346,23.10.2019,Home to School SEN Transport (LA),Taxis - Contract Hire,140.00,ALPHA (IOW) LTD
Revenue,Childrens Services,Children's & Education Services,Other Education and Community Budget,5105623346,23.10.2019,Home to School SEN Transport (LA),Taxis - Contract Hire,260.00,ALPHA (IOW) LTD
Revenue,Childrens Services,Children's & Education Services,Other Education and Community Budget,5105623346,23.10.2019,Home to School SEN Transport (LA),Taxis - Contract Hire,310.00,ALPHA (IOW) LTD
Revenue,Childrens Services,Children's & Education Services,Other Education and Community Budget,5105622201,23.10.2019,Home to School SEN Transport (LA),Taxis - Contract Hire,200.00,ALPHA (IOW) LTD
Revenue,Childrens Services,Children's & Education Services,Other Education and Community Budget,5105622201,23.10.2019,Home to School SEN Transport (LA),Taxis - Contract Hire,575.00,ALPHA (IOW) LTD
Revenue,Childrens Services,Children's & Education Services,Other Education and Community Budget,5105622201,23.10.2019,Home to School SEN Transport (LA),Taxis - Contract Hire,140.00,ALPHA (IOW) LTD
Revenue,Childrens Services,Children's & Education Services,Other Education and Community Budget,5105622201,23.10.2019,Home to School SEN Transport (LA),Taxis - Contract Hire,260.00,ALPHA (IOW) LTD
Revenue,Childrens Services,Children's & Education Services,Other Education and Community Budget,5105622201,23.10.2019,Home to School SEN Transport (LA),Taxis - Contract Hire,310.00,ALPHA (IOW) LTD
Revenue,Childrens Services,Children's & Education Services,Other Education and Community Budget,5105622201,23.10.2019,Home to School SEN Transport (LA),Taxis - Contract Hire,550.00,ALPHA (IOW) LTD
Revenue,Childrens Services,Children's & Education Services,Other Education and Community Budget,5105622288,09.10.2019,Home to College Post 16 Transport,Taxis - Contract Hire,910.00,ALPHA (IOW) LTD
Revenue,Childrens Services,Children's & Education Services,Other Education and Community Budget,5105622288,09.10.2019,Home to College Post 16 Transport,Taxis - Contract Hire,260.00,ALPHA (IOW) LTD
Revenue,Childrens Services,Children's & Education Services,Other Education and Community Budget,5105622288,09.10.2019,Home to College Post 16 Transport,Taxis - Contract Hire,680.00,ALPHA (IOW) LTD
Revenue,Childrens Services,Children's & Education Services,Other Education and Community Budget,5105622288,09.10.2019,Home to College Post 16 Transport,Taxis - Contract Hire,600.00,ALPHA (IOW) LTD
Revenue,Childrens Services,Children's & Education Services,Family Support Services,5105622180,09.10.2019,Childrens Rights & Participation,Support Children,142.30,ALPHA (IOW) LTD
Revenue,Childrens Services,Children's & Education Services,Other Education and Community Budget,5105623346,23.10.2019,Home to School Mainstream Transport,Taxis - Contract Hire,300.00,ALPHA (IOW) LTD
Revenue,Childrens Services,Children's & Education Services,Other Education and Community Budget,5105623345,23.10.2019,Home to School Mainstream Transport,Taxis - Contract Hire,360.00,ALPHA (IOW) LTD
Revenue,Childrens Services,Children's & Education Services,Other Education and Community Budget,5105623346,23.10.2019,Home to School Mainstream Transport,Taxis - Contract Hire,70.00,ALPHA (IOW) LTD
Revenue,Childrens Services,Children's & Education Services,Other Education and Community Budget,5105623345,23.10.2019,Home to School Mainstream Transport,Taxis - Contract Hire,70.00,ALPHA (IOW) LTD
Revenue,Childrens Services,Children's & Education Services,Other Education and Community Budget,5105623345,23.10.2019,Home to School Mainstream Transport,Taxis - Contract Hire,350.00,ALPHA (IOW) LTD
Revenue,Childrens Services,Children's & Education Services,Other Education and Community Budget,5105623345,23.10.2019,Home to School Mainstream Transport,Taxis - Contract Hire,250.00,ALPHA (IOW) LTD
Revenue,Childrens Services,Children's & Education Services,Other Education and Community Budget,5105623345,23.10.2019,Home to School Mainstream Transport,Taxis - Contract Hire,300.00,ALPHA (IOW) LTD
Revenue,Childrens Services,Children's & Education Services,Other Education and Community Budget,5105623346,23.10.2019,Home to School Mainstream Transport,Taxis - Contract Hire,350.00,ALPHA (IOW) LTD
Revenue,Childrens Services,Children's & Education Services,Other Education and Community Budget,5105623346,23.10.2019,Home to School Mainstream Transport,Taxis - Contract Hire,250.00,ALPHA (IOW) LTD
Revenue,Childrens Services,Children's & Education Services,Other Education and Community Budget,5105621194,04.10.2019,Home to School Mainstream Transport,Taxis - Contract Hire,250.00,ALPHA (IOW) LTD
Revenue,Childrens Services,Children's & Education Services,Other Education and Community Budget,5105621194,04.10.2019,Home to School Mainstream Transport,Taxis - Contract Hire,600.00,ALPHA (IOW) LTD
Revenue,Childrens Services,Children's & Education Services,Other Education and Community Budget,5105621194,04.10.2019,Home to School Mainstream Transport,Taxis - Contract Hire,70.00,ALPHA (IOW) LTD
Revenue,Childrens Services,Children's & Education Services,Other Education and Community Budget,5105621194,04.10.2019,Home to School Mainstream Transport,Taxis - Contract Hire,300.00,ALPHA (IOW) LTD
Revenue,Childrens Services,Children's & Education Services,Other Education and Community Budget,5105621813,04.10.2019,Home to School Mainstream Transport,Taxis - Contract Hire,70.00,ALPHA (IOW) LTD
Revenue,Childrens Services,Children's & Education Services,Other Education and Community Budget,5105621813,04.10.2019,Home to School Mainstream Transport,Taxis - Contract Hire,600.00,ALPHA (IOW) LTD
Revenue,Childrens Services,Children's & Education Services,Other Education and Community Budget,5105621813,04.10.2019,Home to School Mainstream Transport,Taxis - Contract Hire,350.00,ALPHA (IOW) LTD
Revenue,Childrens Services,Children's & Education Services,Other Education and Community Budget,5105621813,04.10.2019,Home to School Mainstream Transport,Taxis - Contract Hire,250.00,ALPHA (IOW) LTD
Revenue,Childrens Services,Children's & Education Services,Other Education and Community Budget,5105621813,04.10.2019,Home to School Mainstream Transport,Taxis - Contract Hire,300.00,ALPHA (IOW) LTD
Revenue,Childrens Services,Children's & Education Services,Other Education and Community Budget,5105621194,04.10.2019,Home to School Mainstream Transport,Taxis - Contract Hire,350.00,ALPHA (IOW) LTD
Revenue,Childrens Services,Children's & Education Services,Other Education and Community Budget,5105620668,09.10.2019,Home to School Mainstream Transport,Taxis - Contract Hire,180.00,ALPHA (IOW) LTD
Revenue,Childrens Services,Children's & Education Services,Other Education and Community Budget,5105620668,09.10.2019,Home to School Mainstream Transport,Taxis - Contract Hire,150.00,ALPHA (IOW) LTD
Revenue,Childrens Services,Children's & Education Services,Other Education and Community Budget,5105620668,09.10.2019,Home to School Mainstream Transport,Taxis - Contract Hire,42.00,ALPHA (IOW) LTD
Revenue,Childrens Services,Children's & Education Services,Other Education and Community Budget,5105620668,09.10.2019,Home to School Mainstream Transport,Taxis - Contract Hire,600.00,ALPHA (IOW) LTD
Revenue,Childrens Services,Children's & Education Services,Other Education and Community Budget,5105620668,09.10.2019,Home to School Mainstream Transport,Taxis - Contract Hire,210.00,ALPHA (IOW) LTD
Revenue,Childrens Services,Children's & Education Services,Other Education and Community Budget,5105622201,23.10.2019,Home to School Mainstream Transport,Taxis - Contract Hire,70.00,ALPHA (IOW) LTD
Revenue,Childrens Services,Children's & Education Services,Other Education and Community Budget,5105622201,23.10.2019,Home to School Mainstream Transport,Taxis - Contract Hire,600.00,ALPHA (IOW) LTD
Revenue,Childrens Services,Children's & Education Services,Other Education and Community Budget,5105622201,23.10.2019,Home to School Mainstream Transport,Taxis - Contract Hire,350.00,ALPHA (IOW) LTD
Revenue,Childrens Services,Children's & Education Services,Other Education and Community Budget,5105622201,23.10.2019,Home to School Mainstream Transport,Taxis - Contract Hire,250.00,ALPHA (IOW) LTD
Revenue,Childrens Services,Children's & Education Services,Other Education and Community Budget,5105622201,23.10.2019,Home to School Mainstream Transport,Taxis - Contract Hire,300.00,ALPHA (IOW) LTD
Revenue,Childrens Services,Children's & Education Services,Other Education and Community Budget,5105623346,23.10.2019,Home to School Mainstream Transport,Taxis - Contract Hire,660.00,ALPHA (IOW) LTD
Revenue,Adult Services,Adult Social Care,Learning Disability Suppt-adults (18-64),5105623663,28.10.2019,Learning Disability Residential 18-64,Charges from Independent Providers,"3,836.84",ALPHAGRANGE LTD
Revenue,Neighbourhoods,Cultural and Related Services,Open Spaces,5105624285,30.10.2019,John O�Conner Grounds Maintenance Contract,Payment to Private Contractors,"2,790.00",AMEY (IOW) SPV LIMITED
Revenue,Neighbourhoods,Environmental & Regulatory Services,Waste Disposal,5105623987,30.10.2019,Waste Disposal - Amey Contract,Waste Contractors,"154,981.96",AMEY (IOW) SPV LIMITED
Revenue,Neighbourhoods,Environmental & Regulatory Services,Waste Disposal,5105623993,30.10.2019,Waste Disposal - Amey Contract,Waste Contractors,"154,981.96",AMEY (IOW) SPV LIMITED
Revenue,Neighbourhoods,Environmental & Regulatory Services,Waste Disposal,5105623991,30.10.2019,Waste Disposal - Amey Contract,Waste Contractors,367.68,AMEY (IOW) SPV LIMITED
Revenue,Neighbourhoods,Environmental & Regulatory Services,Waste Disposal,5105623996,30.10.2019,Waste Disposal - Amey Contract,Waste Contractors,367.68,AMEY (IOW) SPV LIMITED
Revenue,Neighbourhoods,Environmental & Regulatory Services,Waste Disposal,5105623999,30.10.2019,Waste Disposal - Amey Contract,Waste Contractors,367.68,AMEY (IOW) SPV LIMITED
Revenue,Neighbourhoods,Environmental & Regulatory Services,Waste Disposal,5105623997,30.10.2019,Waste Disposal - Amey Contract,Waste Contractors,"154,981.96",AMEY (IOW) SPV LIMITED
Revenue,Neighbourhoods,Environmental & Regulatory Services,Recycling,5105623987,30.10.2019,Waste Recycling - Amey Contract,Waste Contractors,"23,595.62",AMEY (IOW) SPV LIMITED
Revenue,Neighbourhoods,Environmental & Regulatory Services,Recycling,5105623993,30.10.2019,Waste Recycling - Amey Contract,Waste Contractors,"23,595.62",AMEY (IOW) SPV LIMITED
Revenue,Neighbourhoods,Environmental & Regulatory Services,Recycling,5105623997,30.10.2019,Waste Recycling - Amey Contract,Waste Contractors,"23,595.62",AMEY (IOW) SPV LIMITED
Capital,Place,Capital,Capital,5105622768,16.10.2019,Waste Capital Programme,Payment to Contractors - Capital,"1,318,781.26",AMEY (IOW) SPV LIMITED
Capital,Place,Capital,Capital,5105622769,16.10.2019,Waste Capital Programme,Payment to Contractors - Capital,"725,160.95",AMEY (IOW) SPV LIMITED
Revenue,Neighbourhoods,Environmental & Regulatory Services,Waste Collection,5105623997,30.10.2019,Waste Collection - Amey Contract,Waste Contractors,"127,192.07",AMEY (IOW) SPV LIMITED
Revenue,Neighbourhoods,Environmental & Regulatory Services,Waste Collection,5105623999,30.10.2019,Waste Collection - Amey Contract,Waste Contractors,"1,470.74",AMEY (IOW) SPV LIMITED
Revenue,Neighbourhoods,Environmental & Regulatory Services,Waste Collection,5105623996,30.10.2019,Waste Collection - Amey Contract,Waste Contractors,"1,470.74",AMEY (IOW) SPV LIMITED
Revenue,Neighbourhoods,Environmental & Regulatory Services,Waste Collection,5105623991,30.10.2019,Waste Collection - Amey Contract,Waste Contractors,"1,470.74",AMEY (IOW) SPV LIMITED
Revenue,Neighbourhoods,Environmental & Regulatory Services,Waste Collection,5105623993,30.10.2019,Waste Collection - Amey Contract,Waste Contractors,"133,621.81",AMEY (IOW) SPV LIMITED
Revenue,Neighbourhoods,Environmental & Regulatory Services,Waste Collection,5105623987,30.10.2019,Waste Collection - Amey Contract,Waste Contractors,"137,101.80",AMEY (IOW) SPV LIMITED
Revenue,Neighbourhoods,Environmental & Regulatory Services,Waste Collection,5105623998,30.10.2019,Waste Contract Income,Waste Contractors,"4,965.52",AMEY (IOW) SPV LIMITED
Revenue,Neighbourhoods,Environmental & Regulatory Services,Waste Collection,5105623995,30.10.2019,Waste Contract Income,Waste Contractors,"4,965.52",AMEY (IOW) SPV LIMITED
Revenue,Neighbourhoods,Environmental & Regulatory Services,Waste Collection,5105623989,30.10.2019,Waste Contract Income,Waste Contractors,"4,965.52",AMEY (IOW) SPV LIMITED
Revenue,Adult Services,Adult Social Care,Social Support -Substance Misuse Support,5105623636,28.10.2019,Substance Misuse Nursing,Charges from Independent Providers,"2,850.00",ANA TREATMENT CENTRES LTD
Revenue,Adult Services,Adult Social Care,Support - Memory /Cognition-older people (65+),5105623664,28.10.2019,Memory & Cognition Residential 65+,Charges from Independent Providers,"1,960.84",ANCONA CARE HOME
Revenue,Adult Services,Adult Social Care,Physical Support - older people (65+),5105623664,28.10.2019,Physical Support Residential 65+,Charges from Independent Providers,"1,960.84",ANCONA CARE HOME
Revenue,Adult Services,Adult Social Care,Physical Support - older people (65+),5105623664,28.10.2019,Physical Support Residential 65+,Charges from Independent Providers,"2,053.52",ANCONA CARE HOME
Revenue,Adult Services,Adult Social Care,Physical Support - older people (65+),5105623664,28.10.2019,Physical Support Residential 65+,Charges from Independent Providers,"2,053.52",ANCONA CARE HOME
Revenue,Adult Services,Adult Social Care,Physical Support - older people (65+),5105622431,11.10.2019,Physical Support Residential 65+,Charges from Independent Providers,"3,621.24",ANCONA CARE HOME
Revenue,Adult Services,Adult Social Care,Physical Support - older people (65+),5105623664,28.10.2019,Physical Support Residential 65+,Charges from Independent Providers,86.22,ANCONA CARE HOME
Revenue,Adult Services,Adult Social Care,Commissioning & Service Delivery,5105623664,28.10.2019,CHC Residential Care,Charges from Independent Providers,"2,816.24",ANCONA CARE HOME
Revenue,Adult Services,Adult Social Care,Commissioning & Service Delivery,5105620943,02.10.2019,Group Manager (Short-Term Services),Consultants Fees,"7,111.65",ANDERSON QUIGLEY LTD
Revenue,Adult Services,Adult Social Care,Commissioning & Service Delivery,5105621825,02.10.2019,Group Manager (Short-Term Services),Consultants Fees,"5,468.50",ANDERSON QUIGLEY LTD
Revenue,Adult Services,Adult Social Care,Commissioning & Service Delivery,5105622762,23.10.2019,Group Manager (Short-Term Services),Consultants Fees,"1,440.00",ANDERSON QUIGLEY LTD
Revenue,Assistant Chief Executive,Central Services,Support Services,5105623202,23.10.2019,Print Unit,Printing Costs,112.35,ANTALIS MCNAUGHTON
Revenue,Assistant Chief Executive,Central Services,Support Services,5105623202,23.10.2019,Print Unit,Printing Costs,81.30,ANTALIS MCNAUGHTON
Revenue,Assistant Chief Executive,Central Services,Support Services,5105622127,04.10.2019,Print Unit,Printing Costs,112.35,ANTALIS MCNAUGHTON
Revenue,Neighbourhoods,Cultural and Related Services,Recreation and Sport,5105623820,28.10.2019,Medina Leisure Centre,Stock Purchases,244.50,APG SPORTS GROUP LTD
Revenue,Neighbourhoods,Cultural and Related Services,Recreation and Sport,5105622216,11.10.2019,The Heights,Operational Equipment,530.00,APG SPORTS GROUP LTD
Revenue,Neighbourhoods,Cultural and Related Services,Recreation and Sport,5105622216,11.10.2019,The Heights,Postage,170.00,APG SPORTS GROUP LTD
Capital,Resources,Capital,Capital,5105619789,18.10.2019,Server Farm,ICT Hardware & Software - Capital,42.00,APPLE DISTRIBUTION INTERNATIONAL
Capital,Resources,Capital,Capital,5105619791,23.10.2019,Server Farm,ICT Hardware & Software - Capital,297.00,APPLE DISTRIBUTION INTERNATIONAL
Revenue,Childrens Services,Children's & Education Services,Special Schools & Alternative Provision,5105622246,23.10.2019,Island Learning Centre,Catering Equipment,106.50,AQUALICITY LTD
Revenue,Neighbourhoods,Cultural and Related Services,Culture and Heritage,5105622647,16.10.2019,Dinosaur Isle Museum (Sandown Geology),General Materials,150.00,ARC CONSULTING LTD
Capital,Resources,Capital,Capital,5105623750,28.10.2019,Capital Receipts,Consultants Fees,"1,100.00",ARC CONSULTING LTD
Revenue,Neighbourhoods,Highways and Transport Services,"Airports, Harbours & Toll Facilities",5105623983,30.10.2019,Ferry Operation,Clothing & Laundry,17.16,ARCO LTD
Revenue,Neighbourhoods,Highways and Transport Services,"Airports, Harbours & Toll Facilities",5105623983,30.10.2019,Ferry Operation,Clothing & Laundry,5.40,ARCO LTD
Revenue,Neighbourhoods,Highways and Transport Services,"Airports, Harbours & Toll Facilities",5105623729,28.10.2019,Ferry Operation,Clothing & Laundry,81.07,ARCO LTD
Revenue,Adult Services,Adult Social Care,Assistive Equipment & Technology,5105620646,04.10.2019,Community Equipment Store,Operational Equipment,253.00,ARJO UK LTD
Revenue,Adult Services,Adult Social Care,Learning Disab Supp (to be reallocated),5105621112,04.10.2019,Plean Dene,Minor Works,47.53,ARJO UK LTD
Revenue,Adult Services,Adult Social Care,Learning Disab Supp (to be reallocated),5105622713,23.10.2019,Saxonbury,Minor Works,432.00,ARJO UK LTD
Revenue,Adult Services,Adult Social Care,Learning Disab Supp (to be reallocated),5105622296,11.10.2019,Saxonbury,Minor Works,99.00,ARJO UK LTD
Revenue,Adult Services,Adult Social Care,Learning Disab Supp (to be reallocated),5105621114,16.10.2019,31 Carter Avenue,Minor Works,363.00,ARJO UK LTD
Revenue,Neighbourhoods,Environmental & Regulatory Services,"Cemetery, Cremation & Mortuary Services",5105623576,25.10.2019,Crematorium,Operational Equipment,"1,663.20",ASHDOWN SUPPLIES
Revenue,Neighbourhoods,Cultural and Related Services,Library Service,5400002451,01.03.2019,Schools Library Service,Purchase of Books,35.47,ASKEWS LIBRARY SERVICES LTD
Revenue,Neighbourhoods,Cultural and Related Services,Library Service,5400002451,01.03.2019,Schools Library Service,Purchase of Books,6.19,ASKEWS LIBRARY SERVICES LTD
Revenue,Neighbourhoods,Cultural and Related Services,Library Service,5400002451,01.03.2019,Schools Library Service,Purchase of Books,302.85,ASKEWS LIBRARY SERVICES LTD
Revenue,Neighbourhoods,Cultural and Related Services,Library Service,5400002451,01.03.2019,Schools Library Service,Purchase of Books,41.90,ASKEWS LIBRARY SERVICES LTD
Revenue,Neighbourhoods,Cultural and Related Services,Library Service,5400002451,01.03.2019,Schools Library Service,Purchase of Books,105.10,ASKEWS LIBRARY SERVICES LTD
Revenue,Neighbourhoods,Cultural and Related Services,Library Service,5400002451,01.03.2019,Schools Library Service,Purchase of Books,28.17,ASKEWS LIBRARY SERVICES LTD
Revenue,Childrens Services,Children's & Education Services,Services for Young People,5105620066,23.10.2019,Resilience Around the Family Team,Hire of facilities,120.25,ASPIRE RYDE
Revenue,Childrens Services,Children's & Education Services,Children Looked After,5105623552,30.10.2019,Beaulieu House,Minor Works,680.00,ASSA ABLOY ENTRANCE SYSTEMS LTD
Revenue,Childrens Services,Children's & Education Services,Children Looked After,5105623004,18.10.2019,Support for Looked After Children,Furniture and Fittings,190.35,ASSESSMENT & QUALIFICATION ALLIANCE
Revenue,Childrens Services,Children's & Education Services,Children Looked After,5105623004,18.10.2019,Leaving Care Costs,Furniture and Fittings,63.45,ASSESSMENT & QUALIFICATION ALLIANCE
Revenue,Childrens Services,Children's & Education Services,Children Looked After,5105623004,18.10.2019,In-house Fostering,Furniture and Fittings,655.65,ASSESSMENT & QUALIFICATION ALLIANCE
Revenue,Resources,Children's & Education Services,Other Education and Community Budget,5105623756,28.10.2019,Specialist Cross-Council Training,Training,"2,500.00",ASSOCIATION OF ELECTORAL ADMINISTRATORS
Revenue,Adult Services,Adult Social Care,Learning Disability Suppt-adults (18-64),5105623632,28.10.2019,Learning Disability Residential 18-64,Charges from Independent Providers,"5,464.20",ASSURE HEALTHCARE GROUP
Revenue,Neighbourhoods,Environmental & Regulatory Services,"Cemetery, Cremation & Mortuary Services",5105622612,11.10.2019,Crematorium,Operational Equipment,972.00,ASSURED SYSTEMS UK LTD
Revenue,Neighbourhoods,Environmental & Regulatory Services,"Cemetery, Cremation & Mortuary Services",5105622612,11.10.2019,Crematorium,Computer Software & Consumables,24.00,ASSURED SYSTEMS UK LTD
Revenue,Adult Services,Adult Social Care,Social Care Activities,5105622035,11.10.2019,Mental Health Team,Professional Services,"6,557.20",ATTENTI CONSULTING SERVICES
Revenue,Resources,Central Services,Central Services to the Public,5105623970,30.10.2019,National Non Domestic Rates,Stationery,182.10,AUTOMAIL ENVELOPES LTD
Revenue,Resources,Central Services,Central Services to the Public,5105623970,30.10.2019,Council Tax,Stationery,728.40,AUTOMAIL ENVELOPES LTD
Revenue,Adult Services,Adult Social Care,Support - Memory /Cognition-older people (65+),5105623950,30.10.2019,Memory & Cognition Residential 65+,Charges from Independent Providers,"2,713.58",AUTUMN HOUSE CARE LTD
Revenue,Adult Services,Adult Social Care,Support - Memory /Cognition-older people (65+),5105623644,28.10.2019,Memory & Cognition Residential 65+,Charges from Independent Providers,"2,414.16",AUTUMN HOUSE CARE LTD
Revenue,Adult Services,Adult Social Care,Support - Memory /Cognition-older people (65+),5105623644,28.10.2019,Memory & Cognition Residential 65+,Charges from Independent Providers,"2,414.16",AUTUMN HOUSE CARE LTD
Revenue,Adult Services,Adult Social Care,Support - Memory /Cognition-older people (65+),5105623644,28.10.2019,Memory & Cognition Residential 65+,Charges from Independent Providers,"2,053.52",AUTUMN HOUSE CARE LTD
Revenue,Adult Services,Adult Social Care,Support - Memory /Cognition-older people (65+),5105623644,28.10.2019,Memory & Cognition Residential 65+,Charges from Independent Providers,"2,053.52",AUTUMN HOUSE CARE LTD
Revenue,Adult Services,Adult Social Care,Support - Memory /Cognition-older people (65+),5105623644,28.10.2019,Memory & Cognition Residential 65+,Charges from Independent Providers,"2,800.00",AUTUMN HOUSE CARE LTD
Revenue,Adult Services,Adult Social Care,Support - Memory /Cognition-older people (65+),5105623644,28.10.2019,Memory & Cognition Residential 65+,Charges from Independent Providers,"2,414.16",AUTUMN HOUSE CARE LTD
Revenue,Adult Services,Adult Social Care,Support - Memory /Cognition-older people (65+),5105623644,28.10.2019,Memory & Cognition Residential 65+,Charges from Independent Providers,"2,414.16",AUTUMN HOUSE CARE LTD
Revenue,Adult Services,Adult Social Care,Support - Memory /Cognition-older people (65+),5105623644,28.10.2019,Memory & Cognition Residential 65+,Charges from Independent Providers,"2,414.16",AUTUMN HOUSE CARE LTD
Revenue,Adult Services,Adult Social Care,Support - Memory /Cognition-older people (65+),5105623644,28.10.2019,Memory & Cognition Residential 65+,Charges from Independent Providers,"2,414.16",AUTUMN HOUSE CARE LTD
Revenue,Adult Services,Adult Social Care,Support - Memory /Cognition-older people (65+),5105623644,28.10.2019,Memory & Cognition Residential 65+,Charges from Independent Providers,"2,414.16",AUTUMN HOUSE CARE LTD
Revenue,Adult Services,Adult Social Care,Support - Memory /Cognition-older people (65+),5105623644,28.10.2019,Memory & Cognition Residential 65+,Charges from Independent Providers,"2,053.52",AUTUMN HOUSE CARE LTD
Revenue,Adult Services,Adult Social Care,Mental Health Support-older people (65+),5105623644,28.10.2019,Mental Health Residential 65+,Charges from Independent Providers,"2,414.16",AUTUMN HOUSE CARE LTD
Revenue,Adult Services,Balance Sheet,Balance Sheet,5105623644,28.10.2019,REDACTED PERSONAL DATA,Order Settlement to Bal Sht GL,"2,053.52",AUTUMN HOUSE CARE LTD
Revenue,Adult Services,Balance Sheet,Balance Sheet,5105623644,28.10.2019,REDACTED PERSONAL DATA,Order Settlement to Bal Sht GL,"2,414.16",AUTUMN HOUSE CARE LTD
Revenue,Adult Services,Adult Social Care,Social Support - Support for Carer,5105623349,25.10.2019,Carers Residential,Charges from Independent Providers,689.76,AUTUMN HOUSE CARE LTD
Revenue,Adult Services,Adult Social Care,Physical Support - older people (65+),5105622427,11.10.2019,Physical Support Residential 65+,Charges from Independent Providers,"4,742.10",AUTUMN HOUSE CARE LTD
Revenue,Adult Services,Adult Social Care,Physical Support - older people (65+),5105622427,11.10.2019,Physical Support Residential 65+,Charges from Independent Providers,"15,196.51",AUTUMN HOUSE CARE LTD
Revenue,Adult Services,Adult Social Care,Physical Support - older people (65+),5105622427,11.10.2019,Physical Support Residential 65+,Charges from Independent Providers,951.30,AUTUMN HOUSE CARE LTD
Revenue,Adult Services,Adult Social Care,Physical Support - older people (65+),5105623644,28.10.2019,Physical Support Residential 65+,Charges from Independent Providers,"2,053.52",AUTUMN HOUSE CARE LTD
Revenue,Adult Services,Adult Social Care,Physical Support - older people (65+),5105623644,28.10.2019,Physical Support Residential 65+,Charges from Independent Providers,"2,414.16",AUTUMN HOUSE CARE LTD
Revenue,Adult Services,Adult Social Care,Physical Support - older people (65+),5105623644,28.10.2019,Physical Support Residential 65+,Charges from Independent Providers,"2,414.16",AUTUMN HOUSE CARE LTD
Revenue,Adult Services,Adult Social Care,Physical Support - older people (65+),5105623644,28.10.2019,Physical Support Residential 65+,Charges from Independent Providers,"2,414.16",AUTUMN HOUSE CARE LTD
Revenue,Adult Services,Adult Social Care,Physical Support - older people (65+),5105623644,28.10.2019,Physical Support Residential 65+,Charges from Independent Providers,"2,053.52",AUTUMN HOUSE CARE LTD
Revenue,Adult Services,Adult Social Care,Physical Support - older people (65+),5105623644,28.10.2019,Physical Support Residential 65+,Charges from Independent Providers,"2,414.16",AUTUMN HOUSE CARE LTD
Revenue,Adult Services,Adult Social Care,Physical Support - older people (65+),5105623644,28.10.2019,Physical Support Residential 65+,Charges from Independent Providers,"2,414.16",AUTUMN HOUSE CARE LTD
Revenue,Adult Services,Adult Social Care,Physical Support - older people (65+),5105623644,28.10.2019,Physical Support Residential 65+,Charges from Independent Providers,"2,414.16",AUTUMN HOUSE CARE LTD
Revenue,Adult Services,Adult Social Care,Physical Support - older people (65+),5105623644,28.10.2019,Physical Support Residential 65+,Charges from Independent Providers,"2,414.16",AUTUMN HOUSE CARE LTD
Revenue,Adult Services,Adult Social Care,Physical Support - older people (65+),5105623644,28.10.2019,Physical Support Residential 65+,Charges from Independent Providers,"2,414.16",AUTUMN HOUSE CARE LTD
Revenue,Adult Services,Adult Social Care,Physical Support - older people (65+),5105623644,28.10.2019,Physical Support Residential 65+,Charges from Independent Providers,"1,960.84",AUTUMN HOUSE CARE LTD
Revenue,Adult Services,Adult Social Care,Physical Support - older people (65+),5105623644,28.10.2019,Physical Support Residential 65+,Charges from Independent Providers,"2,414.16",AUTUMN HOUSE CARE LTD
Revenue,Adult Services,Adult Social Care,Physical Support - older people (65+),5105623950,30.10.2019,Physical Support Residential 65+,Charges from Independent Providers,"2,126.86",AUTUMN HOUSE CARE LTD
Revenue,Adult Services,Adult Social Care,Physical Support - older people (65+),5105623950,30.10.2019,Physical Support Residential 65+,Charges from Independent Providers,"3,707.46",AUTUMN HOUSE CARE LTD
Revenue,Childrens Services,Children's & Education Services,Children Looked After,5105621862,04.10.2019,In-house Fostering,Boarding Out Allowances,510.50,REDACTED PERSONAL DATA
Revenue,Childrens Services,Children's & Education Services,Children Looked After,5105622825,18.10.2019,In-house Fostering,Boarding Out Allowances,510.50,REDACTED PERSONAL DATA
Revenue,Childrens Services,Children's & Education Services,Children Looked After,5105622448,11.10.2019,In-house Fostering,Boarding Out Allowances,510.50,REDACTED PERSONAL DATA
Revenue,Childrens Services,Children's & Education Services,Children Looked After,5105623372,25.10.2019,In-house Fostering,Boarding Out Allowances,510.50,REDACTED PERSONAL DATA
Revenue,Childrens Services,Children's & Education Services,Children Looked After,5105624037,30.10.2019,In-house Fostering,Boarding Out Allowances,510.50,REDACTED PERSONAL DATA
Revenue,Adult Services,Adult Social Care,Learning Disability Suppt-adults (18-64),5105623654,28.10.2019,Learning Disability Residential 18-64,Charges from Independent Providers,"2,173.08",REDACTED PERSONAL DATA
Revenue,Adult Services,Adult Social Care,Learning Disability Suppt-adults (18-64),5105623654,28.10.2019,Learning Disability Residential 18-64,Charges from Independent Providers,"2,173.08",REDACTED PERSONAL DATA
Revenue,Adult Services,Adult Social Care,Learning Disability Suppt-adults (18-64),5105623654,28.10.2019,Learning Disability Residential 18-64,Charges from Independent Providers,"3,148.60",REDACTED PERSONAL DATA
Revenue,Resources,Central Services,Support Services,5105623312,23.10.2019,Staff Benefits,Payment to Private Contractors,25.00,REDACTED PERSONAL DATA
Revenue,Adult Services,Housing Services,Homelessness,5105623250,23.10.2019,Private Rented Sector Leasing Scheme,Accommodation Costs - Leaseholder Payments,866.67,REDACTED PERSONAL DATA
Revenue,Adult Services,Housing Services,Homelessness,5105623250,23.10.2019,Private Rented Sector Leasing Scheme,Accommodation Costs - Leaseholder Payments,799.50,REDACTED PERSONAL DATA
Revenue,Regeneration,Planning services,Economic Development,5105622658,11.10.2019,Rangefinder House (Ascensos),Rent of Buildings and Rooms,"22,451.51",BAE SYSTEMS PROPERTIES LTD
Revenue,Adult Services,Adult Social Care,Commissioning & Service Delivery,5105621483,02.10.2019,Commissioning Manager for Adult Social Care,Interim Staff,"2,400.00",BALTIMORE CONSULTING LIMITED
Revenue,Adult Services,Adult Social Care,Commissioning & Service Delivery,5105623195,30.10.2019,Commissioning Manager for Adult Social Care,Interim Staff,"5,100.00",BALTIMORE CONSULTING LIMITED
Revenue,Neighbourhoods,Cultural and Related Services,Culture and Heritage,5105621233,16.10.2019,Archives,Stationery,3.20,SUPPLIES TEAM LTD
Revenue,Neighbourhoods,Cultural and Related Services,Culture and Heritage,5105621233,16.10.2019,Archives,Stationery,1.11,SUPPLIES TEAM LTD
Revenue,Neighbourhoods,Cultural and Related Services,Culture and Heritage,5105621233,16.10.2019,Archives,Stationery,0.24,SUPPLIES TEAM LTD
Revenue,Neighbourhoods,Cultural and Related Services,Culture and Heritage,5105621233,16.10.2019,Archives,Stationery,35.69,SUPPLIES TEAM LTD
Revenue,Fire & Rescue,Fire & Rescue Services,Fire fighting and Rescue Operations,5105622282,18.10.2019,Business Support  - Fire,Stationery,21.70,SUPPLIES TEAM LTD
Revenue,Fire & Rescue,Fire & Rescue Services,Fire fighting and Rescue Operations,5105622270,11.10.2019,Business Support  - Fire,Stationery,1.77,SUPPLIES TEAM LTD
Revenue,Fire & Rescue,Fire & Rescue Services,Fire fighting and Rescue Operations,5105622270,11.10.2019,Business Support  - Fire,Stationery,1.11,SUPPLIES TEAM LTD
Revenue,Fire & Rescue,Fire & Rescue Services,Fire fighting and Rescue Operations,5105622270,11.10.2019,Business Support  - Fire,Stationery,1.36,SUPPLIES TEAM LTD
Revenue,Fire & Rescue,Fire & Rescue Services,Fire fighting and Rescue Operations,5105622270,11.10.2019,Business Support  - Fire,Stationery,47.40,SUPPLIES TEAM LTD
Revenue,Fire & Rescue,Fire & Rescue Services,Fire fighting and Rescue Operations,5105622270,11.10.2019,Business Support  - Fire,Stationery,10.20,SUPPLIES TEAM LTD
Revenue,Resources,Central Services,Support Services,5105624230,30.10.2019,County Hall Central Mail Room,Stationery,1.16,SUPPLIES TEAM LTD
Revenue,Resources,Central Services,Support Services,5105622114,09.10.2019,County Hall Central Mail Room,Stationery,3.60,SUPPLIES TEAM LTD
Revenue,Resources,Central Services,Support Services,5105622114,09.10.2019,County Hall Central Mail Room,Stationery,1.62,SUPPLIES TEAM LTD
Revenue,Resources,Central Services,Support Services,5105622114,09.10.2019,County Hall Central Mail Room,Stationery,9.64,SUPPLIES TEAM LTD
Revenue,Adult Services,Adult Social Care,Assistive Equipment & Technology,5105617858,16.10.2019,Community Equipment Store,Stationery,1.38,SUPPLIES TEAM LTD
Revenue,Adult Services,Adult Social Care,Assistive Equipment & Technology,5105617858,16.10.2019,Community Equipment Store,Stationery,2.48,SUPPLIES TEAM LTD
Revenue,Adult Services,Adult Social Care,Assistive Equipment & Technology,5105617858,16.10.2019,Community Equipment Store,Stationery,1.11,SUPPLIES TEAM LTD
Revenue,Adult Services,Adult Social Care,Assistive Equipment & Technology,5105617858,16.10.2019,Community Equipment Store,Stationery,2.12,SUPPLIES TEAM LTD
Revenue,Adult Services,Adult Social Care,Assistive Equipment & Technology,5105617858,16.10.2019,Community Equipment Store,Stationery,3.14,SUPPLIES TEAM LTD
Revenue,Adult Services,Adult Social Care,Assistive Equipment & Technology,5105617858,16.10.2019,Community Equipment Store,Stationery,47.40,SUPPLIES TEAM LTD
Revenue,Adult Services,Adult Social Care,Assistive Equipment & Technology,5105617858,16.10.2019,Community Equipment Store,Stationery,3.68,SUPPLIES TEAM LTD
Revenue,Adult Services,Adult Social Care,Assistive Equipment & Technology,5105617858,16.10.2019,Community Equipment Store,Stationery,1.85,SUPPLIES TEAM LTD
Revenue,Adult Services,Adult Social Care,Assistive Equipment & Technology,5105618949,16.10.2019,Community Equipment Store,Stationery,-47.40,SUPPLIES TEAM LTD
Revenue,Adult Services,Adult Social Care,Assistive Equipment & Technology,5105617858,16.10.2019,Community Equipment Store,Stationery,1.36,SUPPLIES TEAM LTD
Revenue,Adult Services,Adult Social Care,Assistive Equipment & Technology,5105617858,16.10.2019,Community Equipment Store,Stationery,3.78,SUPPLIES TEAM LTD
Revenue,Adult Services,Adult Social Care,Assistive Equipment & Technology,5105617858,16.10.2019,Community Equipment Store,Stationery,3.24,SUPPLIES TEAM LTD
Revenue,Adult Services,Adult Social Care,Assistive Equipment & Technology,5105622275,18.10.2019,Community Equipment Store,Stationery,5.16,SUPPLIES TEAM LTD
Revenue,Adult Services,Adult Social Care,Assistive Equipment & Technology,5105622275,18.10.2019,Community Equipment Store,Stationery,0.63,SUPPLIES TEAM LTD
Revenue,Adult Services,Adult Social Care,Assistive Equipment & Technology,5105622275,18.10.2019,Community Equipment Store,Stationery,2.55,SUPPLIES TEAM LTD
Revenue,Adult Services,Adult Social Care,Assistive Equipment & Technology,5105622275,18.10.2019,Community Equipment Store,Stationery,6.52,SUPPLIES TEAM LTD
Revenue,Adult Services,Adult Social Care,Assistive Equipment & Technology,5105622275,18.10.2019,Community Equipment Store,Stationery,2.46,SUPPLIES TEAM LTD
Revenue,Adult Services,Adult Social Care,Assistive Equipment & Technology,5105622275,18.10.2019,Community Equipment Store,Stationery,5.89,SUPPLIES TEAM LTD
Revenue,Adult Services,Adult Social Care,Assistive Equipment & Technology,5105622275,18.10.2019,Community Equipment Store,Stationery,6.57,SUPPLIES TEAM LTD
Revenue,Adult Services,Adult Social Care,Assistive Equipment & Technology,5105622275,18.10.2019,Community Equipment Store,Stationery,47.40,SUPPLIES TEAM LTD
Revenue,Adult Services,Adult Social Care,Assistive Equipment & Technology,5105622275,18.10.2019,Community Equipment Store,Stationery,1.89,SUPPLIES TEAM LTD
Revenue,Adult Services,Adult Social Care,Assistive Equipment & Technology,5105622275,18.10.2019,Community Equipment Store,Stationery,1.62,SUPPLIES TEAM LTD
Revenue,Adult Services,Adult Social Care,Assistive Equipment & Technology,5105622275,18.10.2019,Community Equipment Store,Stationery,2.22,SUPPLIES TEAM LTD
Revenue,Adult Services,Adult Social Care,Assistive Equipment & Technology,5105622275,18.10.2019,Community Equipment Store,Stationery,3.16,SUPPLIES TEAM LTD
Revenue,Adult Services,Adult Social Care,Assistive Equipment & Technology,5105622275,18.10.2019,Community Equipment Store,Stationery,3.33,SUPPLIES TEAM LTD
Revenue,Adult Services,Adult Social Care,Commissioning & Service Delivery,5105623780,30.10.2019,Direct Payment Finance Team,Stationery,35.64,SUPPLIES TEAM LTD
Revenue,Resources,Central Services,Central Services to the Public,5105623780,30.10.2019,Electoral Registration Canvassing,Stationery,1.11,SUPPLIES TEAM LTD
Revenue,Resources,Central Services,Central Services to the Public,5105623780,30.10.2019,Electoral Registration Canvassing,Stationery,9.00,SUPPLIES TEAM LTD
Revenue,Resources,Central Services,Central Services to the Public,5105624230,30.10.2019,Electoral Registration Canvassing,Stationery,14.80,SUPPLIES TEAM LTD
Revenue,Resources,Central Services,Central Services to the Public,5105619737,04.10.2019,Electoral Registration Canvassing,Stationery,26.38,SUPPLIES TEAM LTD
Revenue,Adult Services,Adult Social Care,Central Codes (to be reallocated),5105620581,04.10.2019,Gouldings Resource Centre,Stationery,2.89,SUPPLIES TEAM LTD
Revenue,Neighbourhoods,Highways and Transport Services,Management and Support Services,5105622278,09.10.2019,Highways PFI Project,Stationery,3.41,SUPPLIES TEAM LTD
Revenue,Neighbourhoods,Highways and Transport Services,Management and Support Services,5105622278,09.10.2019,Highways PFI Project,Stationery,9.92,SUPPLIES TEAM LTD
Revenue,Neighbourhoods,Highways and Transport Services,Management and Support Services,5105622278,09.10.2019,Highways PFI Project,Stationery,3.24,SUPPLIES TEAM LTD
Revenue,Neighbourhoods,Highways and Transport Services,Management and Support Services,5105622278,09.10.2019,Highways PFI Project,Stationery,11.85,SUPPLIES TEAM LTD
Revenue,Neighbourhoods,Highways and Transport Services,Management and Support Services,5105622278,09.10.2019,Highways PFI Project,Stationery,1.24,SUPPLIES TEAM LTD
Revenue,Resources,Housing Services,Housing Benefits Administration,5105624230,30.10.2019,Housing Benefit,Stationery,106.65,SUPPLIES TEAM LTD
Revenue,Resources,Housing Services,Housing Benefits Administration,5105622139,16.10.2019,Housing Benefit,Stationery,3.68,SUPPLIES TEAM LTD
Revenue,Childrens Services,Children's & Education Services,Other Education and Community Budget,5105623771,30.10.2019,Learning & Development Running Costs,Stationery,32.85,SUPPLIES TEAM LTD
Revenue,Neighbourhoods,Cultural and Related Services,Service Management and Support Services,5105623780,30.10.2019,Leisure Management & Admin,Stationery,23.70,SUPPLIES TEAM LTD
Revenue,Neighbourhoods,Cultural and Related Services,Service Management and Support Services,5105622114,09.10.2019,Leisure Management & Admin,Stationery,35.55,SUPPLIES TEAM LTD
Revenue,Neighbourhoods,Cultural and Related Services,Recreation and Sport,5105619721,04.10.2019,Medina Leisure Centre,Stationery,7.34,SUPPLIES TEAM LTD
Revenue,Neighbourhoods,Cultural and Related Services,Recreation and Sport,5105619721,04.10.2019,Medina Leisure Centre,Stationery,1.38,SUPPLIES TEAM LTD
Revenue,Neighbourhoods,Cultural and Related Services,Recreation and Sport,5105619721,04.10.2019,Medina Leisure Centre,Stationery,15.45,SUPPLIES TEAM LTD
Revenue,Neighbourhoods,Cultural and Related Services,Recreation and Sport,5105619721,04.10.2019,Medina Leisure Centre,Stationery,9.64,SUPPLIES TEAM LTD
Revenue,Neighbourhoods,Cultural and Related Services,Recreation and Sport,5105619721,04.10.2019,Medina Leisure Centre,Stationery,1.06,SUPPLIES TEAM LTD
Revenue,Neighbourhoods,Cultural and Related Services,Recreation and Sport,5105619721,04.10.2019,Medina Leisure Centre,Stationery,2.48,SUPPLIES TEAM LTD
Revenue,Neighbourhoods,Cultural and Related Services,Recreation and Sport,5105619721,04.10.2019,Medina Leisure Centre,Stationery,12.64,SUPPLIES TEAM LTD
Revenue,Neighbourhoods,Cultural and Related Services,Recreation and Sport,5105619721,04.10.2019,Medina Leisure Centre,Stationery,11.85,SUPPLIES TEAM LTD
Revenue,Neighbourhoods,Cultural and Related Services,Recreation and Sport,5105622308,16.10.2019,Medina Leisure Centre,Stationery,6.48,SUPPLIES TEAM LTD
Revenue,Neighbourhoods,Cultural and Related Services,Recreation and Sport,5105622308,16.10.2019,Medina Leisure Centre,Stationery,11.85,SUPPLIES TEAM LTD
Revenue,Neighbourhoods,Cultural and Related Services,Recreation and Sport,5105623144,28.10.2019,Medina Leisure Centre,Stationery,7.56,SUPPLIES TEAM LTD
Revenue,Neighbourhoods,Cultural and Related Services,Recreation and Sport,5105622308,16.10.2019,Medina Leisure Centre,Stationery,0.86,SUPPLIES TEAM LTD
Revenue,Neighbourhoods,Cultural and Related Services,Open Spaces,5105623780,30.10.2019,Rights of Way Operations,Stationery,5.89,SUPPLIES TEAM LTD
Revenue,Neighbourhoods,Cultural and Related Services,Library Service,5105623770,30.10.2019,Ryde Library,Stationery,12.64,SUPPLIES TEAM LTD
Revenue,Neighbourhoods,Cultural and Related Services,Library Service,5105623770,30.10.2019,Ryde Library,Stationery,5.15,SUPPLIES TEAM LTD
Revenue,Neighbourhoods,Cultural and Related Services,Library Service,5105623770,30.10.2019,Ryde Library,Stationery,23.70,SUPPLIES TEAM LTD
Revenue,Neighbourhoods,Cultural and Related Services,Library Service,5105623770,30.10.2019,Ryde Library,Stationery,4.14,SUPPLIES TEAM LTD
Revenue,Neighbourhoods,Cultural and Related Services,Library Service,5105622269,16.10.2019,Ryde Library,Stationery,0.58,SUPPLIES TEAM LTD
Revenue,Neighbourhoods,Cultural and Related Services,Library Service,5105622269,16.10.2019,Ryde Library,Stationery,23.70,SUPPLIES TEAM LTD
Revenue,Neighbourhoods,Cultural and Related Services,Library Service,5105622269,16.10.2019,Ryde Library,Stationery,5.52,SUPPLIES TEAM LTD
Revenue,Neighbourhoods,Cultural and Related Services,Library Service,5105622269,16.10.2019,Ryde Library,Stationery,4.24,SUPPLIES TEAM LTD
Revenue,Childrens Services,Children's & Education Services,Other Education and Community Budget,5105622137,09.10.2019,SEND Independent Advice & Support,Stationery,4.24,SUPPLIES TEAM LTD
Revenue,Fire & Rescue,Fire & Rescue Services,Fire fighting and Rescue Operations,5105622276,28.10.2019,Fire Technical Support,Stationery,11.85,SUPPLIES TEAM LTD
Revenue,Childrens Services,Children's & Education Services,Other Education and Community Budget,5105619737,04.10.2019,Admissions/Student Finance,Stationery,7.00,SUPPLIES TEAM LTD
Revenue,Childrens Services,Children's & Education Services,Other Education and Community Budget,5105619737,04.10.2019,Admissions/Student Finance,Stationery,0.70,SUPPLIES TEAM LTD
Revenue,Childrens Services,Children's & Education Services,Safeguarding Children/Young Peoples Svs,5105623780,30.10.2019,Children's office costs,Stationery,23.70,SUPPLIES TEAM LTD
Revenue,Childrens Services,Children's & Education Services,Safeguarding Children/Young Peoples Svs,5105624230,30.10.2019,Children's office costs,Stationery,35.55,SUPPLIES TEAM LTD
Revenue,Childrens Services,Children's & Education Services,Safeguarding Children/Young Peoples Svs,5105622114,09.10.2019,Children's office costs,Stationery,35.55,SUPPLIES TEAM LTD
Revenue,Childrens Services,Children's & Education Services,Safeguarding Children/Young Peoples Svs,5105622114,09.10.2019,Children's office costs,Stationery,23.70,SUPPLIES TEAM LTD
Revenue,Childrens Services,Children's & Education Services,Safeguarding Children/Young Peoples Svs,5105622114,09.10.2019,Children's office costs,Stationery,47.40,SUPPLIES TEAM LTD
Revenue,Childrens Services,Children's & Education Services,Safeguarding Children/Young Peoples Svs,5105622114,09.10.2019,Children's office costs,Stationery,5.85,SUPPLIES TEAM LTD
Revenue,Childrens Services,Children's & Education Services,Safeguarding Children/Young Peoples Svs,5105622271,09.10.2019,Children's office costs,Stationery,35.55,SUPPLIES TEAM LTD
Revenue,Childrens Services,Children's & Education Services,Safeguarding Children/Young Peoples Svs,5105622271,09.10.2019,Children's office costs,Stationery,5.85,SUPPLIES TEAM LTD
Revenue,Childrens Services,Children's & Education Services,Safeguarding Children/Young Peoples Svs,5105622271,09.10.2019,Children's office costs,Stationery,30.40,SUPPLIES TEAM LTD
Revenue,Childrens Services,Children's & Education Services,Safeguarding Children/Young Peoples Svs,5105619737,04.10.2019,Children's office costs,Stationery,0.17,SUPPLIES TEAM LTD
Revenue,Childrens Services,Children's & Education Services,Safeguarding Children/Young Peoples Svs,5105619737,04.10.2019,Children's office costs,Stationery,5.85,SUPPLIES TEAM LTD
Revenue,Childrens Services,Children's & Education Services,Children Looked After,5105622141,09.10.2019,Beaulieu House,Stationery,1.69,SUPPLIES TEAM LTD
Revenue,Childrens Services,Children's & Education Services,Children Looked After,5105622141,09.10.2019,Beaulieu House,Stationery,0.69,SUPPLIES TEAM LTD
Revenue,Childrens Services,Children's & Education Services,Children Looked After,5105622141,09.10.2019,Beaulieu House,Stationery,3.58,SUPPLIES TEAM LTD
Revenue,Adult Services,Adult Social Care,Commissioning & Service Delivery,5105622267,16.10.2019,Learning Disability Homes Management & Admin,Stationery,5.89,SUPPLIES TEAM LTD
Revenue,Adult Services,Adult Social Care,Commissioning & Service Delivery,5105622267,16.10.2019,Learning Disability Homes Management & Admin,Stationery,1.11,SUPPLIES TEAM LTD
Revenue,Adult Services,Adult Social Care,Commissioning & Service Delivery,5105623994,30.10.2019,Deputyship Office,Stationery,29.34,SUPPLIES TEAM LTD
Revenue,Adult Services,Adult Social Care,Commissioning & Service Delivery,5105622271,09.10.2019,Deputyship Office,Stationery,2.80,SUPPLIES TEAM LTD
Revenue,Adult Services,Adult Social Care,Assistive Equipment & Technology,5105622144,16.10.2019,Wightcare,Stationery,3.26,SUPPLIES TEAM LTD
Revenue,Adult Services,Adult Social Care,Assistive Equipment & Technology,5105622144,16.10.2019,Wightcare,Stationery,1.11,SUPPLIES TEAM LTD
Revenue,Adult Services,Adult Social Care,Assistive Equipment & Technology,5105622144,16.10.2019,Wightcare,Stationery,1.22,SUPPLIES TEAM LTD
Revenue,Adult Services,Adult Social Care,Assistive Equipment & Technology,5105622144,16.10.2019,Wightcare,Stationery,1.22,SUPPLIES TEAM LTD
Revenue,Adult Services,Adult Social Care,Assistive Equipment & Technology,5105622144,16.10.2019,Wightcare,Stationery,11.70,SUPPLIES TEAM LTD
Revenue,Adult Services,Adult Social Care,Assistive Equipment & Technology,5105622144,16.10.2019,Wightcare,Stationery,29.45,SUPPLIES TEAM LTD
Revenue,Adult Services,Adult Social Care,Assistive Equipment & Technology,5105622144,16.10.2019,Wightcare,Stationery,2.12,SUPPLIES TEAM LTD
Revenue,Adult Services,Adult Social Care,Assistive Equipment & Technology,5105622144,16.10.2019,Wightcare,Stationery,7.40,SUPPLIES TEAM LTD
Revenue,Adult Services,Adult Social Care,Assistive Equipment & Technology,5105622144,16.10.2019,Wightcare,Stationery,1.62,SUPPLIES TEAM LTD
Revenue,Adult Services,Adult Social Care,Assistive Equipment & Technology,5105622144,16.10.2019,Wightcare,Stationery,1.11,SUPPLIES TEAM LTD
Revenue,Adult Services,Adult Social Care,Assistive Equipment & Technology,5105622144,16.10.2019,Wightcare,Stationery,1.05,SUPPLIES TEAM LTD
Revenue,Adult Services,Adult Social Care,Assistive Equipment & Technology,5105622144,16.10.2019,Wightcare,Stationery,0.71,SUPPLIES TEAM LTD
Revenue,Adult Services,Adult Social Care,Assistive Equipment & Technology,5105622144,16.10.2019,Wightcare,Stationery,3.68,SUPPLIES TEAM LTD
Revenue,Adult Services,Adult Social Care,Assistive Equipment & Technology,5105622144,16.10.2019,Wightcare,Stationery,5.54,SUPPLIES TEAM LTD
Revenue,Adult Services,Adult Social Care,Assistive Equipment & Technology,5105622144,16.10.2019,Wightcare,Stationery,2.22,SUPPLIES TEAM LTD
Revenue,Adult Services,Adult Social Care,Assistive Equipment & Technology,5105622083,09.10.2019,Wightcare,Stationery,21.38,SUPPLIES TEAM LTD
Revenue,Adult Services,Adult Social Care,Assistive Equipment & Technology,5105622083,09.10.2019,Wightcare,Stationery,2.32,SUPPLIES TEAM LTD
Revenue,Adult Services,Adult Social Care,Central Codes (to be reallocated),5105622280,16.10.2019,Community Reablement,Stationery,59.25,SUPPLIES TEAM LTD
Revenue,Adult Services,Adult Social Care,Central Codes (to be reallocated),5105622280,16.10.2019,Community Reablement,Stationery,0.81,SUPPLIES TEAM LTD
Revenue,Adult Services,Adult Social Care,Central Codes (to be reallocated),5105622280,16.10.2019,Community Reablement,Stationery,0.37,SUPPLIES TEAM LTD
Revenue,Adult Services,Adult Social Care,Central Codes (to be reallocated),5105622284,16.10.2019,Community Reablement,Stationery,22.56,SUPPLIES TEAM LTD
Revenue,Resources,Central Services,Corporate and Democratic Core,5105624230,30.10.2019,Democratic Representation & Management,Stationery,11.85,SUPPLIES TEAM LTD
Revenue,Resources,Central Services,Corporate and Democratic Core,5105624230,30.10.2019,Democratic Representation & Management,Stationery,23.70,SUPPLIES TEAM LTD
Revenue,Resources,Central Services,Support Services,5105623132,25.10.2019,Legal Services Section,Stationery,3.78,SUPPLIES TEAM LTD
Revenue,Resources,Central Services,Support Services,5105622114,09.10.2019,Legal Services Section,Stationery,1.50,SUPPLIES TEAM LTD
Revenue,Resources,Central Services,Support Services,5105622114,09.10.2019,Legal Services Section,Stationery,2.46,SUPPLIES TEAM LTD
Revenue,Resources,Central Services,Support Services,5105622114,09.10.2019,Legal Services Section,Stationery,47.40,SUPPLIES TEAM LTD
Revenue,Neighbourhoods,Central Services,Central Services to the Public,5105622083,09.10.2019,"Registration Of Births,Deaths, Marriages",Stationery,1.06,SUPPLIES TEAM LTD
Revenue,Neighbourhoods,Central Services,Central Services to the Public,5105622083,09.10.2019,"Registration Of Births,Deaths, Marriages",Stationery,2.55,SUPPLIES TEAM LTD
Revenue,Neighbourhoods,Central Services,Central Services to the Public,5105622144,16.10.2019,"Registration Of Births,Deaths, Marriages",Stationery,2.89,SUPPLIES TEAM LTD
Revenue,Neighbourhoods,Central Services,Central Services to the Public,5105622144,16.10.2019,"Registration Of Births,Deaths, Marriages",Stationery,14.68,SUPPLIES TEAM LTD
Revenue,Neighbourhoods,Central Services,Central Services to the Public,5105622144,16.10.2019,"Registration Of Births,Deaths, Marriages",Stationery,2.55,SUPPLIES TEAM LTD
Revenue,Neighbourhoods,Central Services,Central Services to the Public,5105622144,16.10.2019,"Registration Of Births,Deaths, Marriages",Stationery,0.58,SUPPLIES TEAM LTD
Revenue,Resources,Central Services,Central Services to the Public,5105622323,09.10.2019,National Non Domestic Rates,Stationery,23.70,SUPPLIES TEAM LTD
Revenue,Resources,Central Services,Support Services,5105624230,30.10.2019,Creditor Payments Shared Service Centre,Stationery,23.70,SUPPLIES TEAM LTD
Revenue,Childrens Services,Children's & Education Services,Safeguarding Children/Young Peoples Svs,5105622268,16.10.2019,LSCB (Local Safeguarding Childrens Board),Stationery,47.40,SUPPLIES TEAM LTD
Revenue,Childrens Services,Children's & Education Services,Other Education and Community Budget,5105621487,04.10.2019,Education and Inclusion Service,Stationery,19.28,SUPPLIES TEAM LTD
Revenue,Childrens Services,Children's & Education Services,Other Education and Community Budget,5105621487,04.10.2019,Education and Inclusion Service,Stationery,2.10,SUPPLIES TEAM LTD
Revenue,Regeneration,Planning services,Building Control,5105622144,16.10.2019,Building Control,Stationery,4.24,SUPPLIES TEAM LTD
Revenue,Regeneration,Planning services,Building Control,5105622144,16.10.2019,Building Control,Stationery,0.82,SUPPLIES TEAM LTD
Revenue,Neighbourhoods,Environmental & Regulatory Services,Service Management and Support Services,5105622268,16.10.2019,Regulatory Management & Admin Support,Stationery,1.84,SUPPLIES TEAM LTD
Revenue,Neighbourhoods,Environmental & Regulatory Services,Service Management and Support Services,5105622268,16.10.2019,Regulatory Management & Admin Support,Stationery,1.57,SUPPLIES TEAM LTD
Revenue,Neighbourhoods,Environmental & Regulatory Services,Service Management and Support Services,5105622268,16.10.2019,Regulatory Management & Admin Support,Stationery,1.79,SUPPLIES TEAM LTD
Revenue,Neighbourhoods,Environmental & Regulatory Services,Service Management and Support Services,5105622268,16.10.2019,Regulatory Management & Admin Support,Stationery,2.48,SUPPLIES TEAM LTD
Revenue,Neighbourhoods,Environmental & Regulatory Services,Service Management and Support Services,5105622268,16.10.2019,Regulatory Management & Admin Support,Stationery,47.40,SUPPLIES TEAM LTD
Revenue,Childrens Services,Children's & Education Services,Other Education and Community Budget,5105623780,30.10.2019,Skills and Participation,Stationery,20.52,SUPPLIES TEAM LTD
Revenue,Childrens Services,Children's & Education Services,Other Education and Community Budget,5105622114,09.10.2019,Skills and Participation,Stationery,2.12,SUPPLIES TEAM LTD
Revenue,Childrens Services,Children's & Education Services,Other Education and Community Budget,5105622114,09.10.2019,Skills and Participation,Stationery,5.77,SUPPLIES TEAM LTD
Revenue,Regeneration,Planning services,Building Control,5105622083,09.10.2019,Building Control,Stationery,4.24,SUPPLIES TEAM LTD
Revenue,Regeneration,Planning services,Building Control,5105622099,04.10.2019,Building Control,Stationery,2.80,SUPPLIES TEAM LTD
Revenue,Regeneration,Planning services,Building Control,5105622083,09.10.2019,Building Control,Stationery,0.82,SUPPLIES TEAM LTD
Revenue,Regeneration,Planning services,Building Control,5105622083,09.10.2019,Building Control,Stationery,26.32,SUPPLIES TEAM LTD
Revenue,Regeneration,Planning services,Building Control,5105622083,09.10.2019,Building Control,Stationery,3.26,SUPPLIES TEAM LTD
Revenue,Regeneration,Planning services,Building Control,5105622115,09.10.2019,Building Control,Stationery,2.80,SUPPLIES TEAM LTD
Revenue,Childrens Services,Children's & Education Services,Special Schools & Alternative Provision,5105618436,16.10.2019,Island Learning Centre,Stationery,11.70,SUPPLIES TEAM LTD
Revenue,Childrens Services,Children's & Education Services,Special Schools & Alternative Provision,5105618436,16.10.2019,Island Learning Centre,Stationery,6.57,SUPPLIES TEAM LTD
Revenue,Childrens Services,Children's & Education Services,Special Schools & Alternative Provision,5105618436,16.10.2019,Island Learning Centre,Stationery,6.57,SUPPLIES TEAM LTD
Revenue,Childrens Services,Children's & Education Services,Safeguarding Children/Young Peoples Svs,5105622271,09.10.2019,Fostering Team,Stationery,36.35,SUPPLIES TEAM LTD
Revenue,Childrens Services,Children's & Education Services,Safeguarding Children/Young Peoples Svs,5105622271,09.10.2019,Fostering Team,Stationery,7.40,SUPPLIES TEAM LTD
Revenue,Childrens Services,Children's & Education Services,Safeguarding Children/Young Peoples Svs,5105622271,09.10.2019,Fostering Team,Stationery,2.90,SUPPLIES TEAM LTD
Revenue,Childrens Services,Children's & Education Services,Safeguarding Children/Young Peoples Svs,5105622271,09.10.2019,Fostering Team,Stationery,2.22,SUPPLIES TEAM LTD
Revenue,Neighbourhoods,Cultural and Related Services,Service Management and Support Services,5105623132,25.10.2019,Duke of Edingburgh Award,Stationery,1.89,SUPPLIES TEAM LTD
Revenue,Neighbourhoods,Cultural and Related Services,Library Service,5105623133,25.10.2019,Public Libraries Central,Stationery,18.90,SUPPLIES TEAM LTD
Revenue,Neighbourhoods,Cultural and Related Services,Library Service,5105623009,28.10.2019,Public Libraries Central,Stationery,6.19,SUPPLIES TEAM LTD
Revenue,Neighbourhoods,Cultural and Related Services,Recreation and Sport,5105619721,04.10.2019,Westridge Squash Courts,Stationery,54.33,SUPPLIES TEAM LTD
Revenue,Childrens Services,Children's & Education Services,Special Schools & Alternative Provision,5105623768,28.10.2019,Island Learning Centre,Stationery,0.80,SUPPLIES TEAM LTD
Revenue,Childrens Services,Children's & Education Services,Special Schools & Alternative Provision,5105623768,28.10.2019,Island Learning Centre,Stationery,0.71,SUPPLIES TEAM LTD
Revenue,Childrens Services,Children's & Education Services,Special Schools & Alternative Provision,5105623768,28.10.2019,Island Learning Centre,Stationery,7.34,SUPPLIES TEAM LTD
Revenue,Childrens Services,Children's & Education Services,Special Schools & Alternative Provision,5105623768,28.10.2019,Island Learning Centre,Stationery,2.55,SUPPLIES TEAM LTD
Revenue,Childrens Services,Children's & Education Services,Special Schools & Alternative Provision,5105623768,28.10.2019,Island Learning Centre,Stationery,1.06,SUPPLIES TEAM LTD
Revenue,Childrens Services,Children's & Education Services,Special Schools & Alternative Provision,5105623768,28.10.2019,Island Learning Centre,Stationery,2.48,SUPPLIES TEAM LTD
Revenue,Childrens Services,Children's & Education Services,Special Schools & Alternative Provision,5105619674,16.10.2019,Island Learning Centre,Stationery,-12.00,SUPPLIES TEAM LTD
Revenue,Childrens Services,Children's & Education Services,Special Schools & Alternative Provision,5105619674,16.10.2019,Island Learning Centre,Stationery,-2.86,SUPPLIES TEAM LTD
Revenue,Childrens Services,Children's & Education Services,Special Schools & Alternative Provision,5105619674,16.10.2019,Island Learning Centre,Stationery,-47.40,SUPPLIES TEAM LTD
Revenue,Childrens Services,Children's & Education Services,Special Schools & Alternative Provision,5105619674,16.10.2019,Island Learning Centre,Stationery,-1.11,SUPPLIES TEAM LTD
Revenue,Childrens Services,Children's & Education Services,Special Schools & Alternative Provision,5105619674,16.10.2019,Island Learning Centre,Stationery,-3.86,SUPPLIES TEAM LTD
Revenue,Childrens Services,Children's & Education Services,Special Schools & Alternative Provision,5105619674,16.10.2019,Island Learning Centre,Stationery,-1.22,SUPPLIES TEAM LTD
Revenue,Childrens Services,Children's & Education Services,Special Schools & Alternative Provision,5105619674,16.10.2019,Island Learning Centre,Stationery,-3.05,SUPPLIES TEAM LTD
Revenue,Childrens Services,Children's & Education Services,Special Schools & Alternative Provision,5105619674,16.10.2019,Island Learning Centre,Stationery,-4.86,SUPPLIES TEAM LTD
Revenue,Childrens Services,Children's & Education Services,Special Schools & Alternative Provision,5105618436,16.10.2019,Island Learning Centre,Stationery,12.00,SUPPLIES TEAM LTD
Revenue,Childrens Services,Children's & Education Services,Special Schools & Alternative Provision,5105618436,16.10.2019,Island Learning Centre,Stationery,2.86,SUPPLIES TEAM LTD
Revenue,Childrens Services,Children's & Education Services,Special Schools & Alternative Provision,5105618436,16.10.2019,Island Learning Centre,Stationery,47.40,SUPPLIES TEAM LTD
Revenue,Childrens Services,Children's & Education Services,Special Schools & Alternative Provision,5105618436,16.10.2019,Island Learning Centre,Stationery,1.11,SUPPLIES TEAM LTD
Revenue,Childrens Services,Children's & Education Services,Special Schools & Alternative Provision,5105618436,16.10.2019,Island Learning Centre,Stationery,3.86,SUPPLIES TEAM LTD
Revenue,Childrens Services,Children's & Education Services,Special Schools & Alternative Provision,5105618436,16.10.2019,Island Learning Centre,Stationery,1.22,SUPPLIES TEAM LTD
Revenue,Childrens Services,Children's & Education Services,Special Schools & Alternative Provision,5105618436,16.10.2019,Island Learning Centre,Stationery,3.05,SUPPLIES TEAM LTD
Revenue,Childrens Services,Children's & Education Services,Special Schools & Alternative Provision,5105618436,16.10.2019,Island Learning Centre,Stationery,4.86,SUPPLIES TEAM LTD
Revenue,Childrens Services,Children's & Education Services,Special Schools & Alternative Provision,5105618436,16.10.2019,Island Learning Centre,Stationery,0.98,SUPPLIES TEAM LTD
Revenue,Childrens Services,Children's & Education Services,Special Schools & Alternative Provision,5105618436,16.10.2019,Island Learning Centre,Stationery,4.56,SUPPLIES TEAM LTD
Revenue,Childrens Services,Children's & Education Services,Special Schools & Alternative Provision,5105618436,16.10.2019,Island Learning Centre,Stationery,18.50,SUPPLIES TEAM LTD
Revenue,Resources,Central Services,Support Services,5105622144,16.10.2019,ICT CCR,Stationery,1.25,SUPPLIES TEAM LTD
Revenue,Resources,Central Services,Support Services,5105622144,16.10.2019,ICT CCR,Stationery,2.55,SUPPLIES TEAM LTD
Revenue,Resources,Central Services,Support Services,5105622144,16.10.2019,ICT CCR,Stationery,1.06,SUPPLIES TEAM LTD
Revenue,Resources,Central Services,Support Services,5105622144,16.10.2019,ICT CCR,Stationery,1.22,SUPPLIES TEAM LTD
Revenue,Resources,Central Services,Support Services,5105622144,16.10.2019,ICT CCR,Stationery,0.90,SUPPLIES TEAM LTD
Revenue,Resources,Central Services,Support Services,5105622144,16.10.2019,ICT CCR,Stationery,1.06,SUPPLIES TEAM LTD
Revenue,Resources,Central Services,Support Services,5105622144,16.10.2019,ICT CCR,Stationery,3.14,SUPPLIES TEAM LTD
Revenue,Resources,Central Services,Support Services,5105622144,16.10.2019,ICT CCR,Stationery,1.62,SUPPLIES TEAM LTD
Revenue,Resources,Central Services,Support Services,5105622083,09.10.2019,ICT CCR,Stationery,1.62,SUPPLIES TEAM LTD
Revenue,Resources,Central Services,Support Services,5105622083,09.10.2019,ICT CCR,Stationery,1.11,SUPPLIES TEAM LTD
Revenue,Resources,Central Services,Support Services,5105622083,09.10.2019,ICT CCR,Stationery,1.25,SUPPLIES TEAM LTD
Revenue,Resources,Central Services,Support Services,5105622083,09.10.2019,ICT CCR,Stationery,2.55,SUPPLIES TEAM LTD
Revenue,Resources,Central Services,Support Services,5105622083,09.10.2019,ICT CCR,Stationery,1.06,SUPPLIES TEAM LTD
Revenue,Resources,Central Services,Support Services,5105622083,09.10.2019,ICT CCR,Stationery,3.14,SUPPLIES TEAM LTD
Revenue,Resources,Central Services,Support Services,5105622083,09.10.2019,ICT CCR,Stationery,1.22,SUPPLIES TEAM LTD
Revenue,Resources,Central Services,Support Services,5105622083,09.10.2019,ICT CCR,Stationery,2.22,SUPPLIES TEAM LTD
Revenue,Resources,Central Services,Support Services,5105622083,09.10.2019,ICT CCR,Stationery,0.90,SUPPLIES TEAM LTD
Revenue,Neighbourhoods,Housing Services,Private Sector Housing Renewal,5105624230,30.10.2019,Renewal & Enforcement,Stationery,4.05,SUPPLIES TEAM LTD
Revenue,Neighbourhoods,Housing Services,Private Sector Housing Renewal,5105622114,09.10.2019,Renewal & Enforcement,Stationery,5.10,SUPPLIES TEAM LTD
Revenue,Neighbourhoods,Housing Services,Private Sector Housing Renewal,5105622114,09.10.2019,Renewal & Enforcement,Stationery,5.54,SUPPLIES TEAM LTD
Revenue,Neighbourhoods,Housing Services,Private Sector Housing Renewal,5105619737,04.10.2019,Renewal & Enforcement,Stationery,2.22,SUPPLIES TEAM LTD
Revenue,Neighbourhoods,Housing Services,Private Sector Housing Renewal,5105619737,04.10.2019,Renewal & Enforcement,Stationery,2.12,SUPPLIES TEAM LTD
Revenue,Neighbourhoods,Housing Services,Private Sector Housing Renewal,5105619737,04.10.2019,Renewal & Enforcement,Stationery,35.55,SUPPLIES TEAM LTD
Revenue,Neighbourhoods,Housing Services,Private Sector Housing Renewal,5105619737,04.10.2019,Renewal & Enforcement,Stationery,2.58,SUPPLIES TEAM LTD
Revenue,Neighbourhoods,Housing Services,Private Sector Housing Renewal,5105619737,04.10.2019,Renewal & Enforcement,Stationery,10.10,SUPPLIES TEAM LTD
Revenue,Neighbourhoods,Housing Services,Private Sector Housing Renewal,5105619737,04.10.2019,Renewal & Enforcement,Stationery,1.48,SUPPLIES TEAM LTD
Revenue,Neighbourhoods,Housing Services,Private Sector Housing Renewal,5105619737,04.10.2019,Renewal & Enforcement,Stationery,1.11,SUPPLIES TEAM LTD
Revenue,Neighbourhoods,Housing Services,Private Sector Housing Renewal,5105619737,04.10.2019,Renewal & Enforcement,Stationery,1.22,SUPPLIES TEAM LTD
Revenue,Neighbourhoods,Housing Services,Private Sector Housing Renewal,5105619737,04.10.2019,Renewal & Enforcement,Stationery,23.70,SUPPLIES TEAM LTD
Revenue,Neighbourhoods,Housing Services,Private Sector Housing Renewal,5105619737,04.10.2019,Renewal & Enforcement,Stationery,12.34,SUPPLIES TEAM LTD
Revenue,Neighbourhoods,Housing Services,Private Sector Housing Renewal,5105619737,04.10.2019,Renewal & Enforcement,Stationery,1.48,SUPPLIES TEAM LTD
Revenue,Neighbourhoods,Housing Services,Private Sector Housing Renewal,5105619737,04.10.2019,Renewal & Enforcement,Stationery,0.58,SUPPLIES TEAM LTD
Revenue,Adult Services,Adult Social Care,Commissioning & Service Delivery,5105624230,30.10.2019,Director of Adult Social Services,Stationery,35.55,SUPPLIES TEAM LTD
Revenue,Adult Services,Adult Social Care,Commissioning & Service Delivery,5105622114,09.10.2019,Director of Adult Social Services,Stationery,11.85,SUPPLIES TEAM LTD
Revenue,Adult Services,Adult Social Care,Commissioning & Service Delivery,5105622114,09.10.2019,Director of Adult Social Services,Stationery,2.80,SUPPLIES TEAM LTD
Revenue,Adult Services,Adult Social Care,Commissioning & Service Delivery,5105622271,09.10.2019,Director of Adult Social Services,Stationery,23.70,SUPPLIES TEAM LTD
Revenue,Adult Services,Adult Social Care,Commissioning & Service Delivery,5105622271,09.10.2019,Director of Adult Social Services,Stationery,23.70,SUPPLIES TEAM LTD
Revenue,Resources,Central Services,Central Services to the Public,5105619737,04.10.2019,Elections,Stationery,0.26,SUPPLIES TEAM LTD
Revenue,Resources,Highways and Transport Services,Off Street Parking,5105624230,30.10.2019,Parking Services,Stationery,23.70,SUPPLIES TEAM LTD
Revenue,Resources,Central Services,Support Services,5105622323,09.10.2019,Customer Accounts Shared Service Centre,Stationery,23.70,SUPPLIES TEAM LTD
Revenue,Resources,Adult Social Care,Physical Support (to be reallocated),5105622323,09.10.2019,Blue Badge Admin Team Shared Services,Stationery,11.85,SUPPLIES TEAM LTD
Revenue,Adult Services,Adult Social Care,Commissioning & Service Delivery,5105622114,09.10.2019,ASC County Hall office costs,Stationery,2.57,SUPPLIES TEAM LTD
Revenue,Adult Services,Adult Social Care,Commissioning & Service Delivery,5105622114,09.10.2019,ASC County Hall office costs,Stationery,4.00,SUPPLIES TEAM LTD
Revenue,Adult Services,Adult Social Care,Commissioning & Service Delivery,5105622114,09.10.2019,ASC County Hall office costs,Stationery,2.30,SUPPLIES TEAM LTD
Revenue,Adult Services,Adult Social Care,Commissioning & Service Delivery,5105622116,16.10.2019,ASC County Hall office costs,Stationery,2.39,SUPPLIES TEAM LTD
Revenue,Adult Services,Adult Social Care,Commissioning & Service Delivery,5105619737,04.10.2019,ASC County Hall office costs,Stationery,2.71,SUPPLIES TEAM LTD
Revenue,Adult Services,Adult Social Care,Commissioning & Service Delivery,5105619737,04.10.2019,ASC County Hall office costs,Stationery,3.14,SUPPLIES TEAM LTD
Revenue,Adult Services,Adult Social Care,Commissioning & Service Delivery,5105619737,04.10.2019,ASC County Hall office costs,Stationery,1.79,SUPPLIES TEAM LTD
Revenue,Adult Services,Adult Social Care,Commissioning & Service Delivery,5105622271,09.10.2019,ASC County Hall office costs,Stationery,2.55,SUPPLIES TEAM LTD
Revenue,Adult Services,Adult Social Care,Commissioning & Service Delivery,5105622271,09.10.2019,ASC County Hall office costs,Stationery,2.48,SUPPLIES TEAM LTD
Revenue,Adult Services,Adult Social Care,Commissioning & Service Delivery,5105622271,09.10.2019,ASC County Hall office costs,Stationery,2.32,SUPPLIES TEAM LTD
Revenue,Adult Services,Adult Social Care,Commissioning & Service Delivery,5105622271,09.10.2019,ASC County Hall office costs,Stationery,7.40,SUPPLIES TEAM LTD
Revenue,Adult Services,Adult Social Care,Commissioning & Service Delivery,5105622271,09.10.2019,ASC County Hall office costs,Stationery,5.77,SUPPLIES TEAM LTD
Revenue,Adult Services,Adult Social Care,Commissioning & Service Delivery,5105622271,09.10.2019,ASC County Hall office costs,Stationery,1.72,SUPPLIES TEAM LTD
Revenue,Adult Services,Adult Social Care,Commissioning & Service Delivery,5105622271,09.10.2019,ASC County Hall office costs,Stationery,2.22,SUPPLIES TEAM LTD
Revenue,Adult Services,Adult Social Care,Social Care Activities,5105624230,30.10.2019,Hospital Team,Stationery,0.71,SUPPLIES TEAM LTD
Revenue,Adult Services,Adult Social Care,Social Care Activities,5105624230,30.10.2019,Hospital Team,Stationery,3.05,SUPPLIES TEAM LTD
Revenue,Adult Services,Adult Social Care,Social Care Activities,5105624230,30.10.2019,Hospital Team,Stationery,0.69,SUPPLIES TEAM LTD
Revenue,Adult Services,Adult Social Care,Social Care Activities,5105623994,30.10.2019,Hospital Team,Stationery,2.40,SUPPLIES TEAM LTD
Revenue,Adult Services,Adult Social Care,Social Care Activities,5105623780,30.10.2019,Hospital Team,Stationery,145.02,SUPPLIES TEAM LTD
Revenue,Regeneration,Planning services,Management & Support Services,5105622083,09.10.2019,Planning Management,Stationery,47.40,SUPPLIES TEAM LTD
Revenue,Regeneration,Planning services,Management & Support Services,5105622083,09.10.2019,Planning Management,Stationery,5.71,SUPPLIES TEAM LTD
Revenue,Regeneration,Planning services,Management & Support Services,5105622083,09.10.2019,Planning Management,Stationery,7.40,SUPPLIES TEAM LTD
Revenue,Regeneration,Planning services,Management & Support Services,5105622099,04.10.2019,Planning Management,Stationery,9.80,SUPPLIES TEAM LTD
Revenue,Regeneration,Planning services,Management & Support Services,5105622144,16.10.2019,Planning Management,Stationery,23.70,SUPPLIES TEAM LTD
Revenue,Regeneration,Planning services,Management & Support Services,5105622144,16.10.2019,Planning Management,Stationery,1.11,SUPPLIES TEAM LTD
Revenue,Regeneration,Planning services,Management & Support Services,5105622144,16.10.2019,Planning Management,Stationery,11.42,SUPPLIES TEAM LTD
Revenue,Regeneration,Planning services,Management & Support Services,5105622144,16.10.2019,Planning Management,Stationery,59.25,SUPPLIES TEAM LTD
Revenue,Regeneration,Planning services,Environmental Initiatives,5105622083,09.10.2019,A.O.N.B.,Stationery,11.85,SUPPLIES TEAM LTD
Revenue,Neighbourhoods,Environmental & Regulatory Services,"Cemetery, Cremation & Mortuary Services",5105622136,11.10.2019,Crematorium,Stationery,9.04,SUPPLIES TEAM LTD
Revenue,Neighbourhoods,Environmental & Regulatory Services,"Cemetery, Cremation & Mortuary Services",5105622136,11.10.2019,Crematorium,Stationery,3.75,SUPPLIES TEAM LTD
Revenue,Neighbourhoods,Environmental & Regulatory Services,"Cemetery, Cremation & Mortuary Services",5105622136,11.10.2019,Crematorium,Stationery,21.98,SUPPLIES TEAM LTD
Revenue,Neighbourhoods,Environmental & Regulatory Services,"Cemetery, Cremation & Mortuary Services",5105622136,11.10.2019,Crematorium,Stationery,23.70,SUPPLIES TEAM LTD
Revenue,Neighbourhoods,Environmental & Regulatory Services,"Cemetery, Cremation & Mortuary Services",5105622136,11.10.2019,Crematorium,Stationery,0.81,SUPPLIES TEAM LTD
Revenue,Neighbourhoods,Environmental & Regulatory Services,"Cemetery, Cremation & Mortuary Services",5105622136,11.10.2019,Crematorium,Stationery,1.57,SUPPLIES TEAM LTD
Revenue,Neighbourhoods,Environmental & Regulatory Services,"Cemetery, Cremation & Mortuary Services",5105622136,11.10.2019,Crematorium,Stationery,9.04,SUPPLIES TEAM LTD
Revenue,Neighbourhoods,Environmental & Regulatory Services,"Cemetery, Cremation & Mortuary Services",5105622136,11.10.2019,Crematorium,Stationery,8.44,SUPPLIES TEAM LTD
Revenue,Neighbourhoods,Environmental & Regulatory Services,"Cemetery, Cremation & Mortuary Services",5105622136,11.10.2019,Crematorium,Stationery,1.31,SUPPLIES TEAM LTD
Revenue,Neighbourhoods,Environmental & Regulatory Services,"Cemetery, Cremation & Mortuary Services",5105623008,25.10.2019,Crematorium,Stationery,12.38,SUPPLIES TEAM LTD
Revenue,Neighbourhoods,Environmental & Regulatory Services,"Cemetery, Cremation & Mortuary Services",5105623145,28.10.2019,Crematorium,Stationery,1.89,SUPPLIES TEAM LTD
Revenue,Neighbourhoods,Central Services,Central Services to the Public,5105622083,09.10.2019,Coroner,Stationery,231.80,SUPPLIES TEAM LTD
Revenue,Neighbourhoods,Central Services,Central Services to the Public,5105622144,16.10.2019,Coroner,Stationery,0.39,SUPPLIES TEAM LTD
Revenue,Neighbourhoods,Central Services,Central Services to the Public,5105622144,16.10.2019,Coroner,Stationery,14.36,SUPPLIES TEAM LTD
Revenue,Neighbourhoods,Central Services,Central Services to the Public,5105622144,16.10.2019,Coroner,Stationery,23.70,SUPPLIES TEAM LTD
Revenue,Neighbourhoods,Central Services,Central Services to the Public,5105622144,16.10.2019,Coroner,Stationery,3.14,SUPPLIES TEAM LTD
Revenue,Regeneration,Planning services,Management & Support Services,5105622083,09.10.2019,Planning Management,Stationery,11.70,SUPPLIES TEAM LTD
Revenue,Neighbourhoods,Cultural and Related Services,Culture and Heritage,5105622133,09.10.2019,Dinosaur Isle Museum (Sandown Geology),Stationery,4.24,SUPPLIES TEAM LTD
Revenue,Neighbourhoods,Cultural and Related Services,Culture and Heritage,5105622133,09.10.2019,Dinosaur Isle Museum (Sandown Geology),Stationery,3.42,SUPPLIES TEAM LTD
Revenue,Neighbourhoods,Cultural and Related Services,Culture and Heritage,5105616741,16.10.2019,Dinosaur Isle Museum (Sandown Geology),Stationery,118.50,SUPPLIES TEAM LTD
Revenue,Neighbourhoods,Cultural and Related Services,Culture and Heritage,5105616741,16.10.2019,Dinosaur Isle Museum (Sandown Geology),Stationery,5.40,SUPPLIES TEAM LTD
Revenue,Neighbourhoods,Cultural and Related Services,Culture and Heritage,5105616741,16.10.2019,Dinosaur Isle Museum (Sandown Geology),Stationery,2.46,SUPPLIES TEAM LTD
Revenue,Public Health,Public Health,Central Codes (to be reallocated),5105623780,30.10.2019,Public Health Core Staffing NP,Stationery,1.24,SUPPLIES TEAM LTD
Revenue,Public Health,Public Health,Central Codes (to be reallocated),5105622271,09.10.2019,Public Health Core Staffing NP,Stationery,5.71,SUPPLIES TEAM LTD
Revenue,Childrens Services,Children's & Education Services,Youth Justice,5105623780,30.10.2019,Youth Offending Team,Stationery,3.80,SUPPLIES TEAM LTD
Revenue,Childrens Services,Children's & Education Services,Youth Justice,5105623780,30.10.2019,Youth Offending Team,Stationery,71.10,SUPPLIES TEAM LTD
Revenue,Childrens Services,Children's & Education Services,Youth Justice,5105622114,09.10.2019,Youth Offending Team,Stationery,1.14,SUPPLIES TEAM LTD
Revenue,Childrens Services,Children's & Education Services,Youth Justice,5105622114,09.10.2019,Youth Offending Team,Stationery,19.28,SUPPLIES TEAM LTD
Revenue,Childrens Services,Children's & Education Services,Youth Justice,5105622114,09.10.2019,Youth Offending Team,Stationery,0.56,SUPPLIES TEAM LTD
Revenue,Childrens Services,Children's & Education Services,Youth Justice,5105622114,09.10.2019,Youth Offending Team,Stationery,1.57,SUPPLIES TEAM LTD
Revenue,Childrens Services,Children's & Education Services,Youth Justice,5105619737,04.10.2019,Youth Offending Team,Stationery,23.70,SUPPLIES TEAM LTD
Revenue,Resources,Central Services,Central Services to the Public,5105622804,25.10.2019,Council Tax,Stationery,118.50,SUPPLIES TEAM LTD
Revenue,Resources,Central Services,Support Services,5105622139,16.10.2019,Payments Social Care Team,Stationery,1.65,SUPPLIES TEAM LTD
Revenue,Resources,Central Services,Support Services,5105622139,16.10.2019,Payments Social Care Team,Stationery,12.72,SUPPLIES TEAM LTD
Revenue,Resources,Central Services,Support Services,5105622139,16.10.2019,Payments Social Care Team,Stationery,5.10,SUPPLIES TEAM LTD
Revenue,Resources,Central Services,Support Services,5105622139,16.10.2019,Payments Social Care Team,Stationery,0.58,SUPPLIES TEAM LTD
Revenue,Resources,Central Services,Support Services,5105623780,30.10.2019,Help Centres Shared Service Centre,Stationery,23.70,SUPPLIES TEAM LTD
Revenue,Resources,Central Services,Central Services to the Public,5105624230,30.10.2019,Internal Enforcement Team,Stationery,23.70,SUPPLIES TEAM LTD
Revenue,Resources,Central Services,Support Services,5105622114,09.10.2019,Business Hub - SMT,Stationery,16.73,SUPPLIES TEAM LTD
Revenue,Resources,Central Services,Support Services,5105622114,09.10.2019,Business Hub - SMT,Stationery,4.52,SUPPLIES TEAM LTD
Revenue,Resources,Central Services,Support Services,5105622271,09.10.2019,Business Hub - SMT,Stationery,4.52,SUPPLIES TEAM LTD
Revenue,Adult Services,Adult Social Care,Commissioning & Service Delivery,5105624230,30.10.2019,Shared Lives Management,Stationery,42.46,SUPPLIES TEAM LTD
Revenue,Childrens Services,Children's & Education Services,Safeguarding Children/Young Peoples Svs,5105622267,16.10.2019,ICS & Data,Stationery,1.89,SUPPLIES TEAM LTD
Revenue,Childrens Services,Children's & Education Services,Safeguarding Children/Young Peoples Svs,5105622267,16.10.2019,ICS & Data,Stationery,1.79,SUPPLIES TEAM LTD
Revenue,Childrens Services,Children's & Education Services,Safeguarding Children/Young Peoples Svs,5105622267,16.10.2019,ICS & Data,Stationery,21.40,SUPPLIES TEAM LTD
Revenue,Childrens Services,Children's & Education Services,Safeguarding Children/Young Peoples Svs,5105622267,16.10.2019,ICS & Data,Stationery,2.02,SUPPLIES TEAM LTD
Revenue,Adult Services,Adult Social Care,Central Codes (to be reallocated),5105622280,16.10.2019,Adelaide Resource Centre,Stationery,4.44,SUPPLIES TEAM LTD
Revenue,Adult Services,Adult Social Care,Central Codes (to be reallocated),5105622280,16.10.2019,Adelaide Resource Centre,Stationery,0.22,SUPPLIES TEAM LTD
Revenue,Adult Services,Adult Social Care,Central Codes (to be reallocated),5105622280,16.10.2019,Adelaide Resource Centre,Stationery,1.62,SUPPLIES TEAM LTD
Revenue,Adult Services,Adult Social Care,Central Codes (to be reallocated),5105622280,16.10.2019,Adelaide Resource Centre,Stationery,1.62,SUPPLIES TEAM LTD
Revenue,Adult Services,Adult Social Care,Central Codes (to be reallocated),5105622280,16.10.2019,Adelaide Resource Centre,Stationery,2.10,SUPPLIES TEAM LTD
Revenue,Adult Services,Adult Social Care,Central Codes (to be reallocated),5105622280,16.10.2019,Adelaide Resource Centre,Stationery,5.75,SUPPLIES TEAM LTD
Revenue,Adult Services,Adult Social Care,Central Codes (to be reallocated),5105622280,16.10.2019,Adelaide Resource Centre,Stationery,0.86,SUPPLIES TEAM LTD
Revenue,Adult Services,Adult Social Care,Central Codes (to be reallocated),5105622280,16.10.2019,Adelaide Resource Centre,Stationery,27.70,SUPPLIES TEAM LTD
Revenue,Adult Services,Adult Social Care,Central Codes (to be reallocated),5105622280,16.10.2019,Adelaide Resource Centre,Stationery,1.50,SUPPLIES TEAM LTD
Revenue,Adult Services,Adult Social Care,Central Codes (to be reallocated),5105622280,16.10.2019,Adelaide Resource Centre,Stationery,12.56,SUPPLIES TEAM LTD
Revenue,Adult Services,Adult Social Care,Central Codes (to be reallocated),5105622280,16.10.2019,Adelaide Resource Centre,Stationery,8.14,SUPPLIES TEAM LTD
Revenue,Adult Services,Adult Social Care,Central Codes (to be reallocated),5105622280,16.10.2019,Adelaide Resource Centre,Stationery,0.50,SUPPLIES TEAM LTD
Revenue,Adult Services,Adult Social Care,Central Codes (to be reallocated),5105622280,16.10.2019,Adelaide Resource Centre,Stationery,1.23,SUPPLIES TEAM LTD
Revenue,Adult Services,Adult Social Care,Central Codes (to be reallocated),5105622280,16.10.2019,Adelaide Resource Centre,Stationery,6.57,SUPPLIES TEAM LTD
Revenue,Adult Services,Adult Social Care,Central Codes (to be reallocated),5105622280,16.10.2019,Adelaide Resource Centre,Stationery,0.48,SUPPLIES TEAM LTD
Revenue,Adult Services,Adult Social Care,Central Codes (to be reallocated),5105619780,09.10.2019,Adelaide Resource Centre,Stationery,3.66,SUPPLIES TEAM LTD
Revenue,Adult Services,Adult Social Care,Central Codes (to be reallocated),5105619780,09.10.2019,Adelaide Resource Centre,Stationery,9.20,SUPPLIES TEAM LTD
Revenue,Adult Services,Adult Social Care,Central Codes (to be reallocated),5105619780,09.10.2019,Adelaide Resource Centre,Stationery,47.40,SUPPLIES TEAM LTD
Revenue,Adult Services,Adult Social Care,Central Codes (to be reallocated),5105619780,09.10.2019,Adelaide Resource Centre,Stationery,2.43,SUPPLIES TEAM LTD
Revenue,Childrens Services,Children's & Education Services,Safeguarding Children/Young Peoples Svs,5105623081,18.10.2019,Commissioning (Children & Families),Sundry Office Expenses,95.00,BARNARDO'S
Revenue,Childrens Services,Children's & Education Services,Children Looked After,5105621561,02.10.2019,Local Authority Care Advocacy Contract,Grants to External Bodies,"9,875.00",BARNARDO'S
Revenue,Childrens Services,Children's & Education Services,Family Support Services,5105623073,18.10.2019,Strengthening Families,Payment to Private Contractors,"12,000.00",BARNARDO'S
Revenue,Childrens Services,Children's & Education Services,Family Support Services,5105623075,18.10.2019,Strengthening Families,Payment to Private Contractors,"7,200.00",BARNARDO'S
Revenue,Childrens Services,Children's & Education Services,Family Support Services,5105623076,18.10.2019,Strengthening Families,Payment to Private Contractors,"8,000.00",BARNARDO'S
Revenue,Childrens Services,Children's & Education Services,Family Support Services,5105623079,18.10.2019,Strengthening Families,Payment to Private Contractors,"8,000.00",BARNARDO'S
Revenue,Childrens Services,Children's & Education Services,Sure Start Children's Centres,5105616394,18.10.2019,Early Help Contracts,Payments to Voluntary and Other Associations,"10,000.00",BARNARDO'S
Revenue,Resources,Central Services,Support Services,5105623613,28.10.2019,Litigation Costs,Legal Fees - Other Parties,125.00,BASCOMBE INTERNATIONAL
Revenue,Adult Services,Adult Social Care,Learning Disab Supp (to be reallocated),5105622327,30.10.2019,Plean Dene,Operational Equipment,42.08,LAKE CLEANING & CATERING SUPPLIES
Revenue,Childrens Services,Children's & Education Services,Children Looked After,5105621543,02.10.2019,Beaulieu House,General Materials,100.86,LAKE CLEANING & CATERING SUPPLIES
Revenue,Childrens Services,Children's & Education Services,Children Looked After,5105622328,09.10.2019,Beaulieu House,General Materials,302.72,LAKE CLEANING & CATERING SUPPLIES
Revenue,Childrens Services,Children's & Education Services,Children Looked After,5105623734,28.10.2019,Beaulieu House,General Materials,147.56,LAKE CLEANING & CATERING SUPPLIES
Revenue,Neighbourhoods,Cultural and Related Services,Recreation and Sport,5105623992,30.10.2019,The Heights,Consumable Cleaning Materials,143.02,LAKE CLEANING & CATERING SUPPLIES
Revenue,Neighbourhoods,Cultural and Related Services,Recreation and Sport,5105623732,28.10.2019,The Heights,Consumable Cleaning Materials,94.76,LAKE CLEANING & CATERING SUPPLIES
Revenue,Neighbourhoods,Cultural and Related Services,Recreation and Sport,5105622088,04.10.2019,The Heights,Consumable Cleaning Materials,110.75,LAKE CLEANING & CATERING SUPPLIES
Revenue,Neighbourhoods,Cultural and Related Services,Recreation and Sport,5105621802,09.10.2019,The Heights,Consumable Cleaning Materials,42.52,LAKE CLEANING & CATERING SUPPLIES
Revenue,Neighbourhoods,Cultural and Related Services,Recreation and Sport,5105621793,04.10.2019,Commercial Sales Team,Advertising & Publicity,"1,025.00",BEACON MEDIA LIMITED
Revenue,Adult Services,Adult Social Care,Support - Memory /Cognition-older people (65+),5105623689,28.10.2019,Memory & Cognition Nursing 65+,Charges from Independent Providers,"3,580.08",BEAUMONT LODGE LTD
Revenue,Adult Services,Housing Services,Homelessness,5105622406,09.10.2019,B&B Properties,Accommodation Costs - Bed & Breakfast,"6,496.00",BERTRAM LODGE
Revenue,Adult Services,Adult Social Care,Central Codes (to be reallocated),5105624012,30.10.2019,Gouldings Resource Centre,Consumable Cleaning Materials,20.45,BETA PAK LTD
Revenue,Adult Services,Adult Social Care,Central Codes (to be reallocated),5105621692,11.10.2019,Gouldings Resource Centre,Consumable Cleaning Materials,34.49,BETA PAK LTD
Revenue,Adult Services,Adult Social Care,Central Codes (to be reallocated),5105621727,02.10.2019,Gouldings Resource Centre,Consumable Cleaning Materials,-15.39,BETA PAK LTD
Revenue,Adult Services,Adult Social Care,Central Codes (to be reallocated),5105621728,16.10.2019,Gouldings Resource Centre,Consumable Cleaning Materials,-49.94,BETA PAK LTD
Revenue,Adult Services,Adult Social Care,Central Codes (to be reallocated),5105621729,02.10.2019,Gouldings Resource Centre,Consumable Cleaning Materials,-79.20,BETA PAK LTD
Revenue,Adult Services,Adult Social Care,Central Codes (to be reallocated),5105623141,18.10.2019,Gouldings Resource Centre,Consumable Cleaning Materials,70.76,BETA PAK LTD
Revenue,Adult Services,Adult Social Care,Central Codes (to be reallocated),5105623795,28.10.2019,Gouldings Resource Centre,Consumable Cleaning Materials,49.40,BETA PAK LTD
Revenue,Adult Services,Adult Social Care,Learning Disab Supp (to be reallocated),5105623837,30.10.2019,Plean Dene,Operational Equipment,133.62,BETA PAK LTD
Revenue,Adult Services,Adult Social Care,Learning Disab Supp (to be reallocated),5105623837,30.10.2019,Plean Dene,Operational Equipment,47.96,BETA PAK LTD
Revenue,Adult Services,Adult Social Care,Learning Disab Supp (to be reallocated),5105622714,16.10.2019,Saxonbury,Operational Equipment,395.04,BETA PAK LTD
Revenue,Adult Services,Adult Social Care,Learning Disab Supp (to be reallocated),5105620684,04.10.2019,Saxonbury,Operational Equipment,146.00,BETA PAK LTD
Revenue,Adult Services,Adult Social Care,Learning Disab Supp (to be reallocated),5105620904,02.10.2019,Saxonbury,Operational Equipment,47.60,BETA PAK LTD
Revenue,Adult Services,Adult Social Care,Social Support - Support for Carer,5105621805,02.10.2019,Westminster House,Operational Equipment,59.85,BETA PAK LTD
Revenue,Adult Services,Adult Social Care,Social Support - Support for Carer,5105622031,04.10.2019,Westminster House,Operational Equipment,117.04,BETA PAK LTD
Revenue,Adult Services,Adult Social Care,Social Support - Support for Carer,5105621491,02.10.2019,Westminster House,Operational Equipment,15.00,BETA PAK LTD
Revenue,Adult Services,Adult Social Care,Social Support - Support for Carer,5105621495,02.10.2019,Westminster House,Operational Equipment,2.05,BETA PAK LTD
Revenue,Adult Services,Adult Social Care,Social Support - Support for Carer,5105621555,02.10.2019,Westminster House,Operational Equipment,47.96,BETA PAK LTD
Revenue,Adult Services,Adult Social Care,Social Support - Support for Carer,5105621556,02.10.2019,Westminster House,Operational Equipment,11.13,BETA PAK LTD
Revenue,Adult Services,Adult Social Care,Social Support - Support for Carer,5105621558,16.10.2019,Westminster House,Operational Equipment,23.10,BETA PAK LTD
Revenue,Adult Services,Adult Social Care,Learning Disab Supp (to be reallocated),5105622187,11.10.2019,31 Carter Avenue,Operational Equipment,7.74,BETA PAK LTD
Revenue,Adult Services,Adult Social Care,Learning Disab Supp (to be reallocated),5105621567,11.10.2019,31 Carter Avenue,Operational Equipment,27.70,BETA PAK LTD
Revenue,Adult Services,Adult Social Care,Learning Disab Supp (to be reallocated),5105621568,11.10.2019,31 Carter Avenue,Operational Equipment,3.87,BETA PAK LTD
Revenue,Adult Services,Adult Social Care,Learning Disab Supp (to be reallocated),5105621569,11.10.2019,31 Carter Avenue,Operational Equipment,10.95,BETA PAK LTD
Revenue,Adult Services,Adult Social Care,Learning Disab Supp (to be reallocated),5105621698,09.10.2019,31 Carter Avenue,Operational Equipment,31.00,BETA PAK LTD
Revenue,Adult Services,Adult Social Care,Learning Disab Supp (to be reallocated),5105621706,11.10.2019,31 Carter Avenue,Operational Equipment,39.21,BETA PAK LTD
Revenue,Adult Services,Adult Social Care,Learning Disab Supp (to be reallocated),5105621700,09.10.2019,31 Carter Avenue,Operational Equipment,14.61,BETA PAK LTD
Revenue,Adult Services,Adult Social Care,Learning Disab Supp (to be reallocated),5105621108,11.10.2019,31 Carter Avenue,Operational Equipment,21.98,BETA PAK LTD
Revenue,Adult Services,Adult Social Care,Learning Disab Supp (to be reallocated),5105622059,11.10.2019,Seagulls,Operational Equipment,251.20,BETA PAK LTD
Revenue,Adult Services,Adult Social Care,Learning Disab Supp (to be reallocated),5105622345,09.10.2019,Seagulls,Operational Equipment,-18.97,BETA PAK LTD
Revenue,Adult Services,Adult Social Care,Learning Disab Supp (to be reallocated),5105622336,11.10.2019,Seagulls,Operational Equipment,16.75,BETA PAK LTD
Revenue,Adult Services,Adult Social Care,Learning Disab Supp (to be reallocated),5105622337,11.10.2019,Seagulls,Operational Equipment,18.97,BETA PAK LTD
Revenue,Adult Services,Adult Social Care,Learning Disab Supp (to be reallocated),5105622338,16.10.2019,Seagulls,Operational Equipment,23.45,BETA PAK LTD
Revenue,Adult Services,Adult Social Care,Learning Disab Supp (to be reallocated),5105621250,11.10.2019,40 Venner Avenue,Operational Equipment,315.98,BETA PAK LTD
Revenue,Adult Services,Adult Social Care,Learning Disab Supp (to be reallocated),5105620331,11.10.2019,40 Venner Avenue,Operational Equipment,278.14,BETA PAK LTD
Revenue,Adult Services,Adult Social Care,Learning Disab Supp (to be reallocated),5105620337,11.10.2019,40 Venner Avenue,Operational Equipment,71.29,BETA PAK LTD
Revenue,Adult Services,Adult Social Care,Mental Health Support (to be reallocated),5105621792,02.10.2019,Mental Health Day Services,Operational Equipment,53.37,BETA PAK LTD
Revenue,Adult Services,Adult Social Care,Central Codes (to be reallocated),5105621809,02.10.2019,Adelaide Resource Centre,Consumable Cleaning Materials,54.99,BETA PAK LTD
Revenue,Adult Services,Adult Social Care,Central Codes (to be reallocated),5105621810,02.10.2019,Adelaide Resource Centre,Consumable Cleaning Materials,5.11,BETA PAK LTD
Revenue,Adult Services,Adult Social Care,Central Codes (to be reallocated),5105622179,16.10.2019,Adelaide Resource Centre,Consumable Cleaning Materials,741.89,BETA PAK LTD
Revenue,Adult Services,Adult Social Care,Central Codes (to be reallocated),5105620606,04.10.2019,Adelaide Resource Centre,Consumable Cleaning Materials,493.57,BETA PAK LTD
Revenue,Adult Services,Adult Social Care,Central Codes (to be reallocated),5105623928,30.10.2019,Adelaide Resource Centre,Consumable Cleaning Materials,189.09,BETA PAK LTD
Revenue,Adult Services,Adult Social Care,Central Codes (to be reallocated),5105624010,30.10.2019,Adelaide Resource Centre,Consumable Cleaning Materials,73.98,BETA PAK LTD
Revenue,Adult Services,Adult Social Care,Central Codes (to be reallocated),5105623773,28.10.2019,Adelaide Resource Centre,Operational Equipment,214.99,BETA PAK LTD
Revenue,Neighbourhoods,Highways and Transport Services,Management and Support Services,5105621511,16.10.2019,Highways PFI Project,Consultants Fees,"2,840.20",BEVAN BRITTAN
Revenue,Neighbourhoods,Highways and Transport Services,Management and Support Services,5105621686,16.10.2019,Highways PFI Project,Consultants Fees,"8,634.84",BEVAN BRITTAN
Revenue,Neighbourhoods,Environmental & Regulatory Services,Service Management and Support Services,5105623149,23.10.2019,Waste Contract Management,Legal Fees - Other Parties,"1,113.00",BEVAN BRITTAN
Revenue,Regeneration,Planning services,Economic Development,5105622087,04.10.2019,Economic Development Projects,Professional Services,"3,881.00",BEVAN BRITTAN
Revenue,Adult Services,Adult Social Care,Central Codes (to be reallocated),5105623912,30.10.2019,Gouldings Resource Centre,Catering Purchases,4.98,3663 (BFS GROUP LTD)
Revenue,Adult Services,Adult Social Care,Central Codes (to be reallocated),5105623912,30.10.2019,Gouldings Resource Centre,Catering Purchases,177.05,3663 (BFS GROUP LTD)
Revenue,Adult Services,Adult Social Care,Central Codes (to be reallocated),5105623018,18.10.2019,Gouldings Resource Centre,Catering Purchases,202.05,3663 (BFS GROUP LTD)
Revenue,Resources,Central Services,Support Services,5105622097,09.10.2019,60 Dodnor Lane Store,"Refuse Collection, Disposal and Recycling Costs",3.50,BIFFA WASTE SERVICES LTD
Revenue,Adult Services,Adult Social Care,Assistive Equipment & Technology,5105622097,09.10.2019,Community Equipment Store,"Refuse Collection, Disposal and Recycling Costs",198.65,BIFFA WASTE SERVICES LTD
Revenue,Regeneration,Central Services,Support Services,5105622097,09.10.2019,"Enterprise House, Newport","Refuse Collection, Disposal and Recycling Costs","1,312.40",BIFFA WASTE SERVICES LTD
Revenue,Adult Services,Adult Social Care,Central Codes (to be reallocated),5105622095,04.10.2019,Gouldings Resource Centre,"Refuse Collection, Disposal and Recycling Costs",382.80,BIFFA WASTE SERVICES LTD
Revenue,Adult Services,Adult Social Care,Central Codes (to be reallocated),5105622096,04.10.2019,Gouldings Resource Centre,"Refuse Collection, Disposal and Recycling Costs",104.07,BIFFA WASTE SERVICES LTD
Revenue,Neighbourhoods,Cultural and Related Services,Recreation and Sport,5105622097,09.10.2019,Medina Leisure Centre,"Refuse Collection, Disposal and Recycling Costs",333.00,BIFFA WASTE SERVICES LTD
Revenue,Adult Services,Adult Social Care,Learning Disab Supp (to be reallocated),5105622097,09.10.2019,Plean Dene,"Refuse Collection, Disposal and Recycling Costs",211.60,BIFFA WASTE SERVICES LTD
Revenue,Neighbourhoods,Highways and Transport Services,"Airports, Harbours & Toll Facilities",5105622097,09.10.2019,Ryde Harbour,"Refuse Collection, Disposal and Recycling Costs",173.70,BIFFA WASTE SERVICES LTD
Revenue,Childrens Services,Children's & Education Services,Other Education and Community Budget,5105622097,09.10.2019,SEND Independent Advice & Support,"Refuse Collection, Disposal and Recycling Costs",48.65,BIFFA WASTE SERVICES LTD
Revenue,Adult Services,Adult Social Care,Learning Disab Supp (to be reallocated),5105622097,09.10.2019,Saxonbury,"Refuse Collection, Disposal and Recycling Costs",104.50,BIFFA WASTE SERVICES LTD
Revenue,Neighbourhoods,Highways and Transport Services,"Airports, Harbours & Toll Facilities",5105622097,09.10.2019,Ferry Management,"Refuse Collection, Disposal and Recycling Costs",92.35,BIFFA WASTE SERVICES LTD
Revenue,Childrens Services,Children's & Education Services,Children Looked After,5105622097,09.10.2019,Beaulieu House,"Refuse Collection, Disposal and Recycling Costs",218.80,BIFFA WASTE SERVICES LTD
Revenue,Adult Services,Adult Social Care,Social Care Activities,5105622097,09.10.2019,Mental Health Team,Professional Services,5.60,BIFFA WASTE SERVICES LTD
Revenue,Adult Services,Adult Social Care,Learning Disab Supp (to be reallocated),5105622097,09.10.2019,31 Carter Avenue,"Refuse Collection, Disposal and Recycling Costs",70.00,BIFFA WASTE SERVICES LTD
Revenue,Regeneration,Central Services,Support Services,5105622097,09.10.2019,"Westridge, Ryde","Refuse Collection, Disposal and Recycling Costs",95.13,BIFFA WASTE SERVICES LTD
Revenue,Neighbourhoods,Cultural and Related Services,Open Spaces,5105622097,09.10.2019,Fort Victoria,"Refuse Collection, Disposal and Recycling Costs",194.85,BIFFA WASTE SERVICES LTD
Revenue,Neighbourhoods,Highways and Transport Services,"Airports, Harbours & Toll Facilities",5105622097,09.10.2019,Newport Harbour Account,"Refuse Collection, Disposal and Recycling Costs",190.00,BIFFA WASTE SERVICES LTD
Revenue,Neighbourhoods,Highways and Transport Services,"Airports, Harbours & Toll Facilities",5105622097,09.10.2019,Newport Harbour Account,"Refuse Collection, Disposal and Recycling Costs",484.00,BIFFA WASTE SERVICES LTD
Revenue,Neighbourhoods,Highways and Transport Services,"Airports, Harbours & Toll Facilities",5105622097,09.10.2019,Newport Harbour Account,"Refuse Collection, Disposal and Recycling Costs",130.35,BIFFA WASTE SERVICES LTD
Revenue,Fire & Rescue,Fire & Rescue Services,Fire fighting and Rescue Operations,5105622097,09.10.2019,Fire Operations,"Refuse Collection, Disposal and Recycling Costs",394.05,BIFFA WASTE SERVICES LTD
Revenue,Neighbourhoods,Cultural and Related Services,Library Service,5105622097,09.10.2019,Public Libraries Central,"Refuse Collection, Disposal and Recycling Costs","1,141.88",BIFFA WASTE SERVICES LTD
Revenue,Neighbourhoods,Cultural and Related Services,Culture and Heritage,5105622097,09.10.2019,Cothey Bottom Store RYDE,"Refuse Collection, Disposal and Recycling Costs",47.56,BIFFA WASTE SERVICES LTD
Revenue,Neighbourhoods,Cultural and Related Services,Recreation and Sport,5105622097,09.10.2019,Westridge Squash Courts,"Refuse Collection, Disposal and Recycling Costs",47.56,BIFFA WASTE SERVICES LTD
Revenue,Regeneration,Central Services,Support Services,5105622097,09.10.2019,"County Hall,Newport","Refuse Collection, Disposal and Recycling Costs",624.35,BIFFA WASTE SERVICES LTD
Revenue,Regeneration,Central Services,Support Services,5105622097,09.10.2019,"Jubilee Stores, Newport","Refuse Collection, Disposal and Recycling Costs",123.00,BIFFA WASTE SERVICES LTD
Revenue,Adult Services,Adult Social Care,Learning Disab Supp (to be reallocated),5105622097,09.10.2019,Seagulls,"Refuse Collection, Disposal and Recycling Costs",92.35,BIFFA WASTE SERVICES LTD
Revenue,Adult Services,Adult Social Care,Learning Disab Supp (to be reallocated),5105622097,09.10.2019,40 Venner Avenue,"Refuse Collection, Disposal and Recycling Costs",92.35,BIFFA WASTE SERVICES LTD
Revenue,Neighbourhoods,Environmental & Regulatory Services,"Cemetery, Cremation & Mortuary Services",5105622097,09.10.2019,Crematorium,"Refuse Collection, Disposal and Recycling Costs",217.20,BIFFA WASTE SERVICES LTD
Revenue,Childrens Services,Children's & Education Services,Management & Support Services,5105622097,09.10.2019,Specialist Service Business Admin,"Refuse Collection, Disposal and Recycling Costs",150.35,BIFFA WASTE SERVICES LTD
Revenue,Regeneration,Planning services,Management & Support Services,5105622097,09.10.2019,Planning Management,"Refuse Collection, Disposal and Recycling Costs",476.60,BIFFA WASTE SERVICES LTD
Revenue,Neighbourhoods,Cultural and Related Services,Culture and Heritage,5105622097,09.10.2019,Dinosaur Isle Museum (Sandown Geology),"Refuse Collection, Disposal and Recycling Costs",148.80,BIFFA WASTE SERVICES LTD
Revenue,Regeneration,Central Services,Support Services,5105622097,09.10.2019,"Civic Centre,Sandown","Refuse Collection, Disposal and Recycling Costs",90.40,BIFFA WASTE SERVICES LTD
Revenue,Resources,Central Services,Support Services,5105622097,09.10.2019,Corporate Stores,"Refuse Collection, Disposal and Recycling Costs",160.80,BIFFA WASTE SERVICES LTD
Revenue,Adult Services,Adult Social Care,Mental Health Support (to be reallocated),5105622097,09.10.2019,Mental Health Day Services,"Refuse Collection, Disposal and Recycling Costs",103.00,BIFFA WASTE SERVICES LTD
Revenue,Resources,Central Services,Support Services,5105623287,23.10.2019,Staff Benefits,Payment to Private Contractors,243.00,BLACKBERRY LANE PRE-SCHOOL
Revenue,Childrens Services,Children's & Education Services,Children Looked After,5105623783,30.10.2019,Beaulieu House,Operational Equipment,41.85,BOC LTD
Revenue,Childrens Services,Children's & Education Services,Special Schools & Alternative Provision,5105622416,16.10.2019,Island Learning Centre,Bought in Prof Services - Curriculum (Schools),120.00,BODSTER EQUINE ASSISTED LEARN CIC
Revenue,Childrens Services,Children's & Education Services,Family Support Services,5105623151,18.10.2019,Short Breaks,Charges from Independent Providers,349.17,BODSTER EQUINE ASSISTED LEARN CIC
Revenue,Fire & Rescue,Fire & Rescue Services,Fire fighting and Rescue Operations,5105619086,02.10.2019,Fire Fighters Salaries,Medical Fees and Staff Welfare,39.72,BOLLE SAFETY
Revenue,Fire & Rescue,Fire & Rescue Services,Fire fighting and Rescue Operations,5105619086,02.10.2019,Fire Fighters Salaries,Medical Fees and Staff Welfare,15.00,BOLLE SAFETY
Revenue,Adult Services,Adult Social Care,Learning Disab Supp (to be reallocated),5105622645,11.10.2019,Plean Dene,Catering Purchases,12.47,BOOKER CASH & CARRY LTD
Revenue,Adult Services,Adult Social Care,Learning Disab Supp (to be reallocated),5105622645,11.10.2019,Plean Dene,Catering Purchases,1.49,BOOKER CASH & CARRY LTD
Revenue,Adult Services,Adult Social Care,Learning Disab Supp (to be reallocated),5105623740,28.10.2019,Plean Dene,Catering Purchases,213.24,BOOKER CASH & CARRY LTD
Revenue,Adult Services,Adult Social Care,Learning Disab Supp (to be reallocated),5105623740,28.10.2019,Plean Dene,Catering Purchases,26.14,BOOKER CASH & CARRY LTD
Revenue,Adult Services,Adult Social Care,Learning Disab Supp (to be reallocated),5105623856,30.10.2019,Plean Dene,Catering Purchases,7.89,BOOKER CASH & CARRY LTD
Revenue,Adult Services,Adult Social Care,Learning Disab Supp (to be reallocated),5105622104,30.10.2019,Plean Dene,Catering Purchases,28.78,BOOKER CASH & CARRY LTD
Revenue,Adult Services,Adult Social Care,Learning Disab Supp (to be reallocated),5105621826,02.10.2019,Plean Dene,Catering Purchases,213.38,BOOKER CASH & CARRY LTD
Revenue,Adult Services,Adult Social Care,Learning Disab Supp (to be reallocated),5105621826,02.10.2019,Plean Dene,Catering Purchases,18.53,BOOKER CASH & CARRY LTD
Revenue,Adult Services,Adult Social Care,Learning Disab Supp (to be reallocated),5105622750,16.10.2019,Plean Dene,Catering Purchases,10.59,BOOKER CASH & CARRY LTD
Revenue,Adult Services,Adult Social Care,Learning Disab Supp (to be reallocated),5105622748,18.10.2019,Plean Dene,Catering Purchases,7.37,BOOKER CASH & CARRY LTD
Revenue,Adult Services,Adult Social Care,Learning Disab Supp (to be reallocated),5105623150,23.10.2019,Plean Dene,Catering Purchases,29.13,BOOKER CASH & CARRY LTD
Revenue,Adult Services,Adult Social Care,Learning Disab Supp (to be reallocated),5105623148,18.10.2019,31 Carter Avenue,Catering Purchases,27.82,BOOKER CASH & CARRY LTD
Revenue,Adult Services,Adult Social Care,Learning Disab Supp (to be reallocated),5105622749,16.10.2019,31 Carter Avenue,Catering Purchases,1.70,BOOKER CASH & CARRY LTD
Revenue,Adult Services,Adult Social Care,Learning Disab Supp (to be reallocated),5105622749,16.10.2019,31 Carter Avenue,Catering Purchases,29.98,BOOKER CASH & CARRY LTD
Revenue,Public Health,Public Health,Smoking & Tobacco,5105623200,23.10.2019,Stop Smoking Services & Interventions NP,Payment to Private Contractors,54.60,BOOTS THE CHEMIST LTD (Ryde)
Revenue,Public Health,Public Health,Smoking & Tobacco,5105623200,23.10.2019,Stop Smoking Services & Interventions NP,Payment to Private Contractors,4.50,BOOTS THE CHEMIST LTD (Ryde)
Revenue,Public Health,Public Health,Smoking & Tobacco,5105623200,23.10.2019,Stop Smoking Services & Interventions NP,Payment to Private Contractors,4.00,BOOTS THE CHEMIST LTD (Ryde)
Revenue,Public Health,Public Health,Smoking & Tobacco,5105623200,23.10.2019,Stop Smoking Services & Interventions NP,Payment to Private Contractors,20.58,BOOTS THE CHEMIST LTD (Ryde)
Revenue,Public Health,Public Health,Smoking & Tobacco,5105623200,23.10.2019,Stop Smoking Services & Interventions NP,Payment to Private Contractors,20.00,BOOTS THE CHEMIST LTD (Ryde)
Revenue,Public Health,Public Health,Smoking & Tobacco,5105623181,23.10.2019,Stop Smoking Services & Interventions NP,Payment to Private Contractors,28.00,BOOTS UK LTD (SANDOWN LARGE STORE)
Revenue,Public Health,Public Health,Smoking & Tobacco,5105623181,23.10.2019,Stop Smoking Services & Interventions NP,Payment to Private Contractors,256.26,BOOTS UK LTD (SANDOWN LARGE STORE)
Revenue,Public Health,Public Health,Smoking & Tobacco,5105623181,23.10.2019,Stop Smoking Services & Interventions NP,Payment to Private Contractors,10.00,BOOTS UK LTD (SANDOWN LARGE STORE)
Revenue,Public Health,Public Health,Smoking & Tobacco,5105623181,23.10.2019,Stop Smoking Services & Interventions NP,Payment to Private Contractors,4.50,BOOTS UK LTD (SANDOWN LARGE STORE)
Revenue,Public Health,Public Health,Smoking & Tobacco,5105623181,23.10.2019,Stop Smoking Services & Interventions NP,Payment to Private Contractors,54.60,BOOTS UK LTD (SANDOWN LARGE STORE)
Revenue,Public Health,Public Health,Smoking & Tobacco,5105623624,28.10.2019,Stop Smoking Services & Interventions NP,Payment to Private Contractors,6.00,BOOTS UK LTD (COWES)
Revenue,Public Health,Public Health,Smoking & Tobacco,5105623624,28.10.2019,Stop Smoking Services & Interventions NP,Payment to Private Contractors,44.86,BOOTS UK LTD (COWES)
Revenue,Public Health,Public Health,Smoking & Tobacco,5105623192,23.10.2019,Stop Smoking Services & Interventions NP,Payment to Private Contractors,14.00,BOOTS UK LTD (FRESHWATER)
Revenue,Public Health,Public Health,Smoking & Tobacco,5105623192,23.10.2019,Stop Smoking Services & Interventions NP,Payment to Private Contractors,51.03,BOOTS UK LTD (FRESHWATER)
Revenue,Public Health,Public Health,Smoking & Tobacco,5105623180,23.10.2019,Stop Smoking Services & Interventions NP,Payment to Private Contractors,10.00,BOOTS UK LTD (NEWPORT)
Revenue,Public Health,Public Health,Smoking & Tobacco,5105623180,23.10.2019,Stop Smoking Services & Interventions NP,Payment to Private Contractors,44.60,BOOTS UK LTD (NEWPORT)
Revenue,Public Health,Public Health,Smoking & Tobacco,5105623191,23.10.2019,Stop Smoking Services & Interventions NP,Payment to Private Contractors,32.30,BOOTS UK LTD (TOWER HOUSE)
Revenue,Public Health,Public Health,Smoking & Tobacco,5105623191,23.10.2019,Stop Smoking Services & Interventions NP,Payment to Private Contractors,8.00,BOOTS UK LTD (TOWER HOUSE)
Revenue,Childrens Services,Children's & Education Services,Safeguarding Children/Young Peoples Svs,5105621292,02.10.2019,Commissioning (Children & Families),Payments to Other Local Authorities,"1,223.78",BOURNEMOUTH BOROUGH COUNCIL
Revenue,Adult Services,Housing Services,Homelessness,5105623271,23.10.2019,Private Rented Sector Leasing Scheme,Accommodation Costs - Leaseholder Payments,746.81,BRAMBLE LETTINGS
Revenue,Adult Services,Housing Services,Homelessness,5105623271,23.10.2019,Private Rented Sector Leasing Scheme,Accommodation Costs - Leaseholder Payments,746.81,BRAMBLE LETTINGS
Revenue,Adult Services,Housing Services,Homelessness,5105623271,23.10.2019,Private Rented Sector Leasing Scheme,Accommodation Costs - Leaseholder Payments,746.81,BRAMBLE LETTINGS
Revenue,Adult Services,Housing Services,Homelessness,5105623271,23.10.2019,Private Rented Sector Leasing Scheme,Accommodation Costs - Leaseholder Payments,281.66,BRAMBLE LETTINGS
Revenue,Adult Services,Housing Services,Homelessness,5105623271,23.10.2019,Private Rented Sector Leasing Scheme,Accommodation Costs - Leaseholder Payments,216.66,BRAMBLE LETTINGS
Revenue,Adult Services,Housing Services,Homelessness,5105623271,23.10.2019,Private Rented Sector Leasing Scheme,Accommodation Costs - Leaseholder Payments,769.43,BRAMBLE LETTINGS
Revenue,Adult Services,Housing Services,Homelessness,5105623271,23.10.2019,Private Rented Sector Leasing Scheme,Accommodation Costs - Leaseholder Payments,746.81,BRAMBLE LETTINGS
Revenue,Adult Services,Housing Services,Homelessness,5105623271,23.10.2019,Private Rented Sector Leasing Scheme,Accommodation Costs - Leaseholder Payments,746.81,BRAMBLE LETTINGS
Revenue,Adult Services,Housing Services,Homelessness,5105623271,23.10.2019,Private Rented Sector Leasing Scheme,Accommodation Costs - Leaseholder Payments,746.81,BRAMBLE LETTINGS
Revenue,Adult Services,Housing Services,Homelessness,5105623271,23.10.2019,Private Rented Sector Leasing Scheme,Accommodation Costs - Leaseholder Payments,746.81,BRAMBLE LETTINGS
Revenue,Adult Services,Housing Services,Homelessness,5105623271,23.10.2019,Private Rented Sector Leasing Scheme,Accommodation Costs - Leaseholder Payments,746.81,BRAMBLE LETTINGS
Revenue,Adult Services,Housing Services,Homelessness,5105623271,23.10.2019,Private Rented Sector Leasing Scheme,Accommodation Costs - Leaseholder Payments,588.38,BRAMBLE LETTINGS
Revenue,Adult Services,Housing Services,Homelessness,5105623271,23.10.2019,Private Rented Sector Leasing Scheme,Accommodation Costs - Leaseholder Payments,588.38,BRAMBLE LETTINGS
Revenue,Adult Services,Housing Services,Homelessness,5105623271,23.10.2019,Private Rented Sector Leasing Scheme,Accommodation Costs - Leaseholder Payments,588.38,BRAMBLE LETTINGS
Revenue,Adult Services,Housing Services,Homelessness,5105623271,23.10.2019,Private Rented Sector Leasing Scheme,Accommodation Costs - Leaseholder Payments,746.81,BRAMBLE LETTINGS
Revenue,Adult Services,Housing Services,Homelessness,5105623271,23.10.2019,Private Rented Sector Leasing Scheme,Accommodation Costs - Leaseholder Payments,588.38,BRAMBLE LETTINGS
Revenue,Adult Services,Housing Services,Homelessness,5105623271,23.10.2019,Private Rented Sector Leasing Scheme,Accommodation Costs - Leaseholder Payments,746.81,BRAMBLE LETTINGS
Revenue,Adult Services,Housing Services,Homelessness,5105623271,23.10.2019,Private Rented Sector Leasing Scheme,Accommodation Costs - Leaseholder Payments,746.81,BRAMBLE LETTINGS
Revenue,Adult Services,Housing Services,Homelessness,5105623271,23.10.2019,Private Rented Sector Leasing Scheme,Accommodation Costs - Leaseholder Payments,746.81,BRAMBLE LETTINGS
Revenue,Adult Services,Housing Services,Homelessness,5105623271,23.10.2019,Private Rented Sector Leasing Scheme,Accommodation Costs - Leaseholder Payments,746.81,BRAMBLE LETTINGS
Revenue,Adult Services,Housing Services,Homelessness,5105623271,23.10.2019,Private Rented Sector Leasing Scheme,Accommodation Costs - Leaseholder Payments,746.81,BRAMBLE LETTINGS
Revenue,Adult Services,Housing Services,Homelessness,5105623271,23.10.2019,Private Rented Sector Leasing Scheme,Accommodation Costs - Leaseholder Payments,588.38,BRAMBLE LETTINGS
Revenue,Adult Services,Housing Services,Homelessness,5105623271,23.10.2019,Private Rented Sector Leasing Scheme,Accommodation Costs - Leaseholder Payments,588.38,BRAMBLE LETTINGS
Revenue,Adult Services,Housing Services,Homelessness,5105623271,23.10.2019,Private Rented Sector Leasing Scheme,Accommodation Costs - Leaseholder Payments,746.81,BRAMBLE LETTINGS
Revenue,Neighbourhoods,Highways and Transport Services,"Airports, Harbours & Toll Facilities",5105622656,11.10.2019,Ryde Harbour,Payment to Private Contractors,150.00,BRIGHSTONE LANDSCAPING LTD
Revenue,Neighbourhoods,Cultural and Related Services,Recreation and Sport,5105622654,11.10.2019,Slipways & Steps (Beaches),Payment to Private Contractors,510.00,BRIGHSTONE LANDSCAPING LTD
Revenue,Neighbourhoods,Cultural and Related Services,Open Spaces,5105621268,04.10.2019,Play Areas Health & Safety work,Payment to Private Contractors,50.00,BRIGHSTONE LANDSCAPING LTD
Revenue,Neighbourhoods,Cultural and Related Services,Open Spaces,5105621107,04.10.2019,Play Areas Health & Safety work,Payment to Private Contractors,45.00,BRIGHSTONE LANDSCAPING LTD
Revenue,Neighbourhoods,Cultural and Related Services,Recreation and Sport,5105622620,11.10.2019,Beach Safety & Inspection / Beach Awards,Payment to Private Contractors,630.00,BRIGHSTONE LANDSCAPING LTD
Revenue,Neighbourhoods,Cultural and Related Services,Recreation and Sport,5105621117,02.10.2019,Beach Safety & Inspection / Beach Awards,Payment to Private Contractors,130.00,BRIGHSTONE LANDSCAPING LTD
Revenue,Neighbourhoods,Cultural and Related Services,Recreation and Sport,5105623815,28.10.2019,Beach Safety & Inspection / Beach Awards,Payment to Private Contractors,"1,785.00",BRIGHSTONE LANDSCAPING LTD
Revenue,Neighbourhoods,Cultural and Related Services,Open Spaces,5105622621,11.10.2019,Other Grounds Maintenance,Payment to Private Contractors,320.00,BRIGHSTONE LANDSCAPING LTD
Revenue,Neighbourhoods,Cultural and Related Services,Open Spaces,5105623565,30.10.2019,Other Grounds Maintenance,Payment to Private Contractors,180.00,BRIGHSTONE LANDSCAPING LTD
Revenue,Neighbourhoods,Environmental & Regulatory Services,(Street) Cleansing (not highways),5105621267,04.10.2019,Beach Cleaning,Payment to Private Contractors,110.00,BRIGHSTONE LANDSCAPING LTD
Revenue,Neighbourhoods,Environmental & Regulatory Services,(Street) Cleansing (not highways),5105624250,30.10.2019,Beach Cleaning,Beach Cleansing Contractors,"15,146.00",BRIGHSTONE LANDSCAPING LTD
Revenue,Neighbourhoods,Environmental & Regulatory Services,(Street) Cleansing (not highways),5105622257,18.10.2019,Beach Cleaning,Payment to Private Contractors,"1,533.00",BRIGHSTONE LANDSCAPING LTD
Revenue,Neighbourhoods,Environmental & Regulatory Services,(Street) Cleansing (not highways),5105623564,25.10.2019,Beach Cleaning,Payment to Private Contractors,350.00,BRIGHSTONE LANDSCAPING LTD
Revenue,Neighbourhoods,Environmental & Regulatory Services,Coast Protection,5105622050,16.10.2019,Coast Protection,Payment to Private Contractors,"3,460.00",BRIGHSTONE LANDSCAPING LTD
Revenue,Neighbourhoods,Environmental & Regulatory Services,Coast Protection,5105621703,09.10.2019,Coast Protection,Payment to Private Contractors,60.00,BRIGHSTONE LANDSCAPING LTD
Revenue,Neighbourhoods,Environmental & Regulatory Services,Coast Protection,5105621549,09.10.2019,Coast Protection,Payment to Private Contractors,630.00,BRIGHSTONE LANDSCAPING LTD
Revenue,Neighbourhoods,Environmental & Regulatory Services,Coast Protection,5105621552,09.10.2019,Coast Protection,Payment to Private Contractors,60.00,BRIGHSTONE LANDSCAPING LTD
Revenue,Neighbourhoods,Environmental & Regulatory Services,Coast Protection,5105621553,09.10.2019,Coast Protection,Payment to Private Contractors,60.00,BRIGHSTONE LANDSCAPING LTD
Revenue,Neighbourhoods,Environmental & Regulatory Services,Coast Protection,5105623814,28.10.2019,Coast Protection,Payment to Private Contractors,225.00,BRIGHSTONE LANDSCAPING LTD
Revenue,Neighbourhoods,Environmental & Regulatory Services,Coast Protection,5105620445,23.10.2019,Coast Protection,Payment to Private Contractors,55.00,BRIGHSTONE LANDSCAPING LTD
Revenue,Childrens Services,Children's & Education Services,Other Education and Community Budget,5105623124,18.10.2019,Adult Community Learning,Licences,500.00,BRITISH COMPUTER SOCIETY
Revenue,Childrens Services,Children's & Education Services,Other Education and Community Budget,5105623985,30.10.2019,Adult Community Learning,Licences,16.25,BRITISH COMPUTER SOCIETY
Revenue,Childrens Services,Children's & Education Services,Other Education and Community Budget,5105623985,30.10.2019,Adult Community Learning,Licences,16.25,BRITISH COMPUTER SOCIETY
Revenue,Childrens Services,Children's & Education Services,Other Education and Community Budget,5105623985,30.10.2019,Adult Community Learning,Licences,16.25,BRITISH COMPUTER SOCIETY
Revenue,Childrens Services,Children's & Education Services,Other Education and Community Budget,5105623985,30.10.2019,Adult Community Learning,Licences,80.00,BRITISH COMPUTER SOCIETY
Revenue,Childrens Services,Children's & Education Services,Other Education and Community Budget,5105623985,30.10.2019,Adult Community Learning,Licences,198.00,BRITISH COMPUTER SOCIETY
Revenue,Adult Services,Adult Social Care,Learning Disability Suppt-adults (18-64),5105623628,28.10.2019,Learning Disability Residential 18-64,Charges from Independent Providers,"6,840.12",BROADHAM CARE LTD
Revenue,Corporate Items,Balance Sheet,Balance Sheet,5105622675,16.10.2019,Insurance Suspense - Claims Outstanding,Order Settlement to Bal Sht GL,"2,092.00",BROWNE JACOBSON
Revenue,Corporate Items,Balance Sheet,Balance Sheet,5105622675,16.10.2019,Insurance Suspense - Claims Outstanding,Order Settlement to Bal Sht GL,66.00,BROWNE JACOBSON
Revenue,Neighbourhoods,Cultural and Related Services,Recreation and Sport,5105622331,09.10.2019,Play Development,Operational Equipment,285.75,BROXAP LTD
Revenue,Neighbourhoods,Cultural and Related Services,Recreation and Sport,5105622331,09.10.2019,Play Development,Operational Equipment,33.00,BROXAP LTD
Revenue,Neighbourhoods,Cultural and Related Services,Recreation and Sport,5105622331,09.10.2019,Play Development,Operational Equipment,39.00,BROXAP LTD
Capital,Corporate Items,Balance Sheet,Balance Sheet,5105623679,28.10.2019,Balance Sheet,Order Settlement to Bal Sht GL,92.12,BUCKLAND CARE LTD
Revenue,Adult Services,Adult Social Care,Support - Memory /Cognition-older people (65+),5105623679,28.10.2019,Memory & Cognition Residential 65+,Charges from Independent Providers,"2,053.52",BUCKLAND CARE LTD
Revenue,Adult Services,Adult Social Care,Support - Memory /Cognition-older people (65+),5105623679,28.10.2019,Memory & Cognition Residential 65+,Charges from Independent Providers,"2,414.16",BUCKLAND CARE LTD
Revenue,Adult Services,Adult Social Care,Support - Memory /Cognition-older people (65+),5105623679,28.10.2019,Memory & Cognition Residential 65+,Charges from Independent Providers,"2,414.16",BUCKLAND CARE LTD
Revenue,Adult Services,Adult Social Care,Support - Memory /Cognition-older people (65+),5105623679,28.10.2019,Memory & Cognition Residential 65+,Charges from Independent Providers,"2,414.16",BUCKLAND CARE LTD
Revenue,Adult Services,Adult Social Care,Physical Support - adults (18-64),5105623679,28.10.2019,Physical Support Residential 18-64,Charges from Independent Providers,"2,414.16",BUCKLAND CARE LTD
Revenue,Adult Services,Adult Social Care,Sensory Support - older people (65+),5105623679,28.10.2019,Sensory Support Residential 65+,Charges from Independent Providers,"2,414.16",BUCKLAND CARE LTD
Revenue,Adult Services,Adult Social Care,Physical Support - older people (65+),5105622160,09.10.2019,Physical Support Residential 65+,Charges from Independent Providers,"2,731.17",BUCKLAND CARE LTD
Revenue,Adult Services,Adult Social Care,Physical Support - older people (65+),5105622160,09.10.2019,Physical Support Residential 65+,Charges from Independent Providers,"4,655.88",BUCKLAND CARE LTD
Revenue,Adult Services,Adult Social Care,Physical Support - older people (65+),5105622160,09.10.2019,Physical Support Residential 65+,Charges from Independent Providers,"1,207.08",BUCKLAND CARE LTD
Revenue,Adult Services,Adult Social Care,Physical Support - older people (65+),5105623333,23.10.2019,Physical Support Residential 65+,Charges from Independent Providers,"1,724.40",BUCKLAND CARE LTD
Revenue,Adult Services,Adult Social Care,Physical Support - older people (65+),5105623333,23.10.2019,Physical Support Residential 65+,Charges from Independent Providers,"1,810.62",BUCKLAND CARE LTD
Revenue,Adult Services,Adult Social Care,Physical Support - older people (65+),5105623296,23.10.2019,Physical Support Residential 65+,Charges from Independent Providers,770.33,BUCKLAND CARE LTD
Revenue,Adult Services,Adult Social Care,Physical Support - older people (65+),5105622812,18.10.2019,Physical Support Residential 65+,Charges from Independent Providers,"2,801.20",BUCKLAND CARE LTD
Revenue,Adult Services,Adult Social Care,Learning Disability Support-older people,5105622435,11.10.2019,Learning Disability Residential 65+,Charges from Independent Providers,"3,017.70",BUCKLAND CARE LTD
Revenue,Adult Services,Adult Social Care,Physical Support - older people (65+),5105623679,28.10.2019,Physical Support Residential 65+,Charges from Independent Providers,"1,120.86",BUCKLAND CARE LTD
Revenue,Adult Services,Adult Social Care,Physical Support - older people (65+),5105623679,28.10.2019,Physical Support Residential 65+,Charges from Independent Providers,"2,414.16",BUCKLAND CARE LTD
Revenue,Adult Services,Adult Social Care,Physical Support - older people (65+),5105623679,28.10.2019,Physical Support Residential 65+,Charges from Independent Providers,"1,960.84",BUCKLAND CARE LTD
Revenue,Adult Services,Adult Social Care,Physical Support - older people (65+),5105623679,28.10.2019,Physical Support Residential 65+,Charges from Independent Providers,"1,896.84",BUCKLAND CARE LTD
Revenue,Adult Services,Adult Social Care,Physical Support - older people (65+),5105623679,28.10.2019,Physical Support Residential 65+,Charges from Independent Providers,"2,414.16",BUCKLAND CARE LTD
Revenue,Adult Services,Adult Social Care,Physical Support - older people (65+),5105623679,28.10.2019,Physical Support Residential 65+,Charges from Independent Providers,"2,414.16",BUCKLAND CARE LTD
Revenue,Adult Services,Adult Social Care,Physical Support - older people (65+),5105623679,28.10.2019,Physical Support Residential 65+,Charges from Independent Providers,"2,414.16",BUCKLAND CARE LTD
Revenue,Adult Services,Adult Social Care,Physical Support - older people (65+),5105623679,28.10.2019,Physical Support Residential 65+,Charges from Independent Providers,"2,414.16",BUCKLAND CARE LTD
Revenue,Adult Services,Adult Social Care,Physical Support - older people (65+),5105623679,28.10.2019,Physical Support Residential 65+,Charges from Independent Providers,"2,414.16",BUCKLAND CARE LTD
Revenue,Adult Services,Adult Social Care,Physical Support - older people (65+),5105623679,28.10.2019,Physical Support Residential 65+,Charges from Independent Providers,"2,414.16",BUCKLAND CARE LTD
Revenue,Adult Services,Adult Social Care,Physical Support - older people (65+),5105623679,28.10.2019,Physical Support Residential 65+,Charges from Independent Providers,"2,053.52",BUCKLAND CARE LTD
Revenue,Adult Services,Adult Social Care,Physical Support - older people (65+),5105623679,28.10.2019,Physical Support Residential 65+,Charges from Independent Providers,"2,053.52",BUCKLAND CARE LTD
Revenue,Adult Services,Adult Social Care,Physical Support - older people (65+),5105623679,28.10.2019,Physical Support Residential 65+,Charges from Independent Providers,"2,414.16",BUCKLAND CARE LTD
Revenue,Adult Services,Adult Social Care,Physical Support - older people (65+),5105623679,28.10.2019,Physical Support Residential 65+,Charges from Independent Providers,"2,053.52",BUCKLAND CARE LTD
Revenue,Adult Services,Adult Social Care,Physical Support - older people (65+),5105623679,28.10.2019,Physical Support Residential 65+,Charges from Independent Providers,"2,414.16",BUCKLAND CARE LTD
Revenue,Adult Services,Adult Social Care,Physical Support - older people (65+),5105623679,28.10.2019,Physical Support Residential 65+,Charges from Independent Providers,"2,414.16",BUCKLAND CARE LTD
Revenue,Adult Services,Adult Social Care,Physical Support - older people (65+),5105623679,28.10.2019,Physical Support Residential 65+,Charges from Independent Providers,785.96,BUCKLAND CARE LTD
Revenue,Adult Services,Adult Social Care,Physical Support - older people (65+),5105623355,25.10.2019,Physical Support Residential 65+,Charges from Independent Providers,"3,901.73",BUCKLAND CARE LTD
Revenue,Adult Services,Adult Social Care,Physical Support - older people (65+),5105623830,30.10.2019,Physical Support Residential 65+,Charges from Independent Providers,"1,207.08",BUCKLAND CARE LTD
Revenue,Adult Services,Adult Social Care,Physical Support - older people (65+),5105623960,30.10.2019,Physical Support Residential 65+,Charges from Independent Providers,"4,742.10",BUCKLAND CARE LTD
